{"text_format":"1","workbook":"xlsx","n_sheets":14,"sheets":["Danh mục BM18","A.Qui mô","B.SV có việc làm","C.Môn học","D.Giáo trình ...","E.Đồ án...","G.ĐT theo đơn ĐH","H.Hội nghị... ","I.NCKH-CGCN","J.Tạp chí","K.Thông tin KNPVCD","L.KĐCL CSGD","DSDonvi","ListDLNhap"],"not_rendered":{"charts":0,"images":1,"macros":1,"external_links":0,"defined_names":15,"comments":0,"pivot_tables":0},"unopened":[],"bounds":{"document_bytes":16777216,"sheet_cells":100000,"rows_first":2000,"rows_last":500,"rows_between":2000,"halvings":0,"cell_chars":16384,"cell_head_chars":4096},"cells_cut":0,"cells_raw":0,"read":"whole","date_system":"1900"}

{"sheet":"Danh mục BM18","index":0,"n_rows":14,"n_cols":5,"rows_kept":14,"cut":false,"hidden":false,"merged":[[0,1,0,4]]}
[null,"DANH MỤC CÁC MẪU BÁO CÁO TRONG BIỂU MẪU 18"]
[]
["STT","Tên mẫu báo cáo","Tên sheet","Đơn vị báo cáo","Ghi chú"]
[1,"A. Công khai thông tin về quy mô đào tạo hiện tại","A.Qui mô","Các khoa","Click vào ô C4 của Sheet A để chọn Khoa và nhập dữ liệu."]
[2,"B. Công khai thông tin về sinh viên tốt nghiệp và tỷ lệ sinh viên có việc làm sau 01 năm","B.SV có việc làm","- Phòng Đào tạo\n- TT QLCL","- P.ĐT cung cấp DS SV tốt nghiệp\n- TT QLCL cung cấp DL về SVTN"]
[3,"C. Công khai các môn học của từng khóa học, chuyên ngành","C.Môn học","Các khoa"]
[4,"D. Công khai thông tin về giáo trình, tài liệu tham khảo do cơ sở giáo dục tổ chức biên soạn","D.Giáo trình ...","Các khoa"]
[5,"E. Công khai thông tin về đồ án, khóa luận, luận văn, luận án tốt nghiệp","E.Đồ án...","Các khoa"]
[6,"G. Công khai thông tin đào tạo theo đơn đặt hàng của nhà nước, địa phương và doanh nghiệp","G.ĐT theo đơn ĐH","Các khoa"]
[7,"H. Công khai hội nghị, hội thảo khoa học do cơ sở giáo dục tổ chức","H.Hội nghị... ","Tất cả","Những đơn vị có tổ chức hội nghị, hội thảo khoa học"]
[8,"I. Công khai thông tin về các hoạt động nghiên cứu khoa học, chuyển giao công nghệ, sản xuất thử và tư vấn","I.NCKH-CGCN","Tất cả","Những đơn vị có hoạt động nghiên cứu khoa học, chuyển giao công nghệ, sản xuất thử và tư vấn"]
[9,"J. Công khai thông tin các bài được đăng tạp chí","J.Tạp chí","Tất cả","Những đơn vị có bài được đăng tạp chí"]
[10,"K. Công khai thông tin về các hoạt động kết nối và phục vụ cộng đồng ","K.Thông tin KNPVCD","Tất cả","Những đơn vị có hoạt động kết nối và phục vụ cộng đồng"]
[11,"L. Công khai thông tin kiểm định cơ sở giáo dục và chương trình giáo dục","L.KĐCL CSGD","TT QLCL"]

{"sheet":"A.Qui mô","index":1,"n_rows":74,"n_cols":12,"rows_kept":74,"cut":false,"hidden":false,"merged":[[0,0,0,5],[1,0,1,5],[5,3,6,3],[5,4,6,4],[5,5,5,6],[4,3,4,6],[4,2,6,2],[4,0,7,0],[4,1,7,1]]}
["CÔNG KHAI THÔNG TIN CHẤT LƯỢNG ĐÀO TẠO THỰC TẾ CỦA CƠ SỞ GIÁO DỤC ĐẠI HỌC\nNăm học 2019 - 2020",null,null,null,null,null,null,null,null,null,null,"ïTrở về\nDanh mục"]
["A. Công khai thông tin về quy mô đào tạo hiện tại"]
[]
[null,null,"Khoa Công nghệ Cơ khí"]
["Khối ngành","Mã ngành","Tên ngành","Quy mô sinh viên/người học hiện tại"]
[null,null,null,"Tiến sĩ","Thạc sĩ","Đại học"]
[null,null,null,null,null,"Chính quy","Vừa làm vừa học"]
[null,null,"Tổng số",{"$f":"D15+D29+D36+D65+D69","v":0},{"$f":"E15+E29+E36+E65+E69","v":10},1290,37]
["Column1","Column2","Column7","Column3","Column6","Column5","Column4","Đơn vị"]
[1,null,"Khối ngành I"]
["I",null,"Ngành…"]
["I",null,"Ngành…"]
[2,null,"Khối ngành II"]
["II",null,"Ngành..."]
[3,null,"Khối ngành III",null,{"$f":"SUM(E16:E28)","v":0},{"$f":"SUM(F16:F28)","v":0},0]
["III",null,"Trình độ ĐHCQ"]
["III",7340301,"Ngành Kế toán-ĐHCQ",null,null,null,null,"Khoa Tài chính Kế toán"]
["III",7340201,"Ngành Tài chính ngân hàng_ĐHCQ",null,null,null,null,"Khoa Tài chính Kế toán"]
["III",7340101,"Ngành Quản trị kinh doanh_ĐHCQ",null,null,null,null,"Khoa Quản trị kinh doanh"]
["III",7380107,"Ngành Luật kinh tế_ĐHCQ",null,null,null,null,"Khoa Chính trị - Luật"]
["III",7340120,"Ngành Kinh doanh quốc tế_ĐHCQ",null,null,null,null,"Khoa Quản trị kinh doanh"]
["III",null,"Trình độ ĐHLT"]
["III",null,"Ngành Kế toán_ĐHLT",null,null,null,null,"Khoa Tài chính Kế toán"]
["III",null,"Ngành Tài chính - Ngân hàng_ĐHLT",null,null,null,null,"Khoa Tài chính Kế toán"]
["III",null,"Ngành Quản trị kinh doanh_ĐHLT",null,null,null,null,"Khoa Quản trị kinh doanh"]
["III",null,"Trình độ Thạc sỹ"]
["III",null,"Ngành Quản trị kinh doanh_ThS",null,null,null,null,"Khoa Quản trị kinh doanh"]
["III",null,"Ngành Tài chính ngân hàng_ThS",null,null,null,null,"Khoa Tài chính Kế toán"]
[4,null,"Khối ngành IV",null,{"$f":"SUM(E30:E35)","v":0},{"$f":"SUM(F30:F35)","v":0},{"$f":"SUM(G30:G35)","v":0}]
["IV",null,"Trình độ ĐHCQ"]
["IV",7420201,"Ngành Công nghệ Sinh học_ĐHCQ",null,null,null,null,"Khoa Công nghệ Sinh học"]
["IV",null,"Trình độ ĐHLT"]
["IV",null,"Ngành Công nghệ sinh họcĐHLT",null,null,null,null,"Khoa Công nghệ Sinh học"]
["IV",null,"Trình độ Thạc sỹ"]
["IV",null,"Ngành Công nghệ sinh học_ThS",null,null,null,null,"Khoa Công nghệ Sinh học"]
[5,null,"Khối ngành V",null,{"$f":"SUM(E37:E64)","v":10},{"$f":"SUM(F37:F64)","v":1290},37]
["V",null,"Trình độ ĐHCQ"]
["V",7480201,"Ngành Công nghệ thông tin_ĐHCQ",null,null,null,null,"Khoa Công nghệ Thông tin"]
["V",7510301,"Ngành Công nghệ kỹ thuật điện - điện tử_ĐHCQ",null,null,null,null,"Khoa Công nghệ Điện - Điện tử"]
["V",7510202,"Ngành Công nghệ chế tạo máy_ĐHCQ",null,null,838,null,"Khoa Công nghệ Cơ khí"]
["V",7510203,"Ngành Công nghệ kỹ thuật cơ điện tử_ĐHCQ",null,null,452,null,"Khoa Công nghệ Cơ khí"]
["V",7510401,"Ngành Công nghệ kỹ thuật hoá học_ĐHCQ",null,null,null,null,"Khoa Công nghệ Hóa học"]
["V",7510402,"Ngành Công nghệ vật liệu_ĐHCQ",null,null,null,null,"Khoa Công nghệ Hóa học"]
["V",7540101,"Ngành Công nghệ thực phẩm_ĐHCQ",null,null,null,null,"Khoa Công nghệ Thực phẩm"]
["V",7540110,"Ngành Đảm bảo chất lượng và an toàn thực phẩm_ĐHCQ",null,null,null,null,"Khoa Công nghệ Thực phẩm"]
["V",7540105,"Ngành Công nghệ chế biến thuỷ sản_ĐHCQ",null,null,null,null,"Khoa Thủy sản"]
["V",7510406,"Ngành Công nghệ kỹ thuật môi trường_ĐHCQ",null,null,null,null,"Khoa Môi trường - Tài nguyên và biến đổi khí hậu"]
["V",7540204,"Ngành Công nghệ  dệt, may_ĐHCQ",null,null,null,null,"Khoa Công nghệ May và Thời trang"]
["V",7510303,"Ngành Công nghệ kỹ thuật điều khiển và tự động hóa_ĐHCQ",null,null,null,null,"Khoa Công nghệ Điện - Điện tử"]
["V",7480202,"Ngành An toàn thông tin_ĐHCQ",null,null,null,null,"Khoa Công nghệ Thông tin"]
["V",7620303,"Ngành Khoa học Thủy sản_ĐHCQ",null,null,null,null,"Khoa Thủy sản"]
["V",null,"Trình độ ĐHLT"]
["V",null,"Ngành Công nghệ thông tin_ĐHLT",null,null,null,null,"Khoa Công nghệ Thông tin"]
["V",null,"Ngành Công nghệ kỹ thuật điện, điện tử_ĐHLT",null,null,null,null,"Khoa Công nghệ Điện - Điện tử"]
["V",null,"Ngành Công nghệ chế tạo máy_ĐHLT",null,null,null,37,"Khoa Công nghệ Cơ khí"]
["V",null,"Ngành Công nghệ kỹ thuật hoá học_ĐHLT",null,null,null,null,"Khoa Công nghệ Hóa học"]
["V",null,"Ngành Công nghệ thực phẩm_ĐHLT",null,null,null,null,"Khoa Công nghệ Thực phẩm"]
["V",null,"Ngành Công nghệ kỹ thuật môi trường_ĐHLT",null,null,null,null,"Khoa Môi trường - Tài nguyên và biến đổi khí hậu"]
["V",null,"Trình độ Thạc sỹ"]
["V",null,"Ngành Kỹ thuật hóa học_ThS",null,null,null,null,"Khoa Công nghệ Hóa học"]
["V",null,"Ngành Kỹ thuật Môi trường_ThS",null,null,null,null,"Khoa Môi trường - Tài nguyên và biến đổi khí hậu"]
["V",null,"Ngành Kỹ thuật Cơ khí_ThS",null,10,null,null,"Khoa Công nghệ Cơ khí"]
["V",null,"Ngành Kỹ thuật Điện_ThS",null,null,null,null,"Khoa Công nghệ Điện - Điện tử"]
["V",null,"Ngành Công nghệ Thực phẩm_ThS",null,null,null,null,"Khoa Công nghệ Thực phẩm"]
[6,null,"Khối ngành VI",null,{"$f":"SUM(E67:E68)","v":0},{"$f":"SUM(F67:F68)","v":0},0]
["VI",null,"Trình độ ĐHCQ"]
["VI",7720498,"Ngành Khoa học chế biến món ăn_ĐHCQ",null,null,null,null,"Khoa Du lịch và Ẩm thực"]
["VI",7720499,"Ngành Khoa học dinh dưỡng và Ẩm thực_ĐHCQ",null,null,null,null,"Khoa Du lịch và Ẩm thực"]
[7,null,"Khối ngành VII",null,{"$f":"SUM(E70:E74)","v":0},{"$f":"SUM(F70:F74)","v":0},0]
["VII",null,"Trình độ ĐHCQ"]
["VII",7810103,"Ngành Quản trị dịch vụ du lịch và lữ hành_ĐHCQ",null,null,null,null,"Khoa Du lịch và Ẩm thực"]
["VII",7220201,"Ngành Ngôn ngữ Anh_ĐHCQ",null,null,null,null,"Khoa Ngoại ngữ"]
["VII",7850101,"Ngành Quản lý tài nguyên và môi trường_ĐHCQ",null,null,null,null,"Khoa Môi trường - Tài nguyên và biến đổi khí hậu"]
["VII",7810202,"Ngành Quản trị nhà hàng và dịch vụ ăn uống_ĐHCQ",null,null,null,null,"Khoa Du lịch và Ẩm thực"]

{"sheet":"B.SV có việc làm","index":2,"n_rows":73,"n_cols":11,"rows_kept":73,"cut":false,"hidden":false,"merged":[[8,6,11,6],[72,0,72,6],[21,2,22,2],[21,3,22,3],[21,4,22,4],[21,5,22,5],[21,6,22,6],[16,2,19,2],[16,3,19,3],[16,4,19,4],[16,5,19,5],[16,6,19,6],[0,0,0,6],[12,6,15,6],[3,0,4,0],[3,1,4,1],[3,2,4,2],[3,3,3,5],[8,2,11,2],[8,3,11,3],[8,4,11,4],[8,5,11,5],[12,2,15,2],[12,3,15,3],[12,4,15,4],[12,5,15,5],[1,0,1,6],[3,6,4,6]]}
["CÔNG KHAI THÔNG TIN CHẤT LƯỢNG ĐÀO TẠO THỰC TẾ CỦA CƠ SỞ GIÁO DỤC ĐẠI HỌC\nNăm học 2018 - 2019",null,null,null,null,null,null,null,null,null,"ïTrở về\nDanh mục"]
["B. Công khai thông tin về sinh viên tốt nghiệp và tỷ lệ sinh viên có việc làm sau 01 năm"]
[]
["STT","Tên ngành","Số sinh viên tốt nghiệp","Phân loại tốt nghiệp (%)",null,null,"Tỷ lệ sinh viên tốt nghiệp có việc làm sau 1 năm ra trường (%)*"]
[null,null,null,"Loại xuất sắc","Loại giỏi","Loại khá"]
[null,"Tổng số"]
[1,"Khối ngành I"]
[null,"Ngành..."]
[null,"Ngành..."]
[2,"Khối ngành II"]
[null,"Ngành..."]
[3,"Khối ngành III"]
[null,"Trình độ ĐHCQ"]
[null,"Ngành Kế toán"]
[null,"Ngành Tài chính ngân hàng"]
[null,"Ngành Quản trị kinh doanh"]
[null,"Ngành Luật kinh tế"]
[null,"Ngành Kinh doanh quốc tế"]
[null,"Trình độ ĐHLT"]
[null,"Ngành Kế toán"]
[null,"Ngành Tài chính - Ngân hàng"]
[null,"Ngành Quản trị kinh doanh"]
[null,"Trình độ Thạc sỹ"]
[null,"Ngành Quản trị kinh doanh"]
[null,"Ngành Tài chính ngân hàng"]
[4,"Khối ngành IV"]
[null,"Trình độ ĐHCQ"]
[null,"Ngành Công nghệ Sinh học"]
[null,"Ngành Khoa học dinh dưỡng và Ẩm thực"]
[null,"Ngành Khoa học chế biến món ăn"]
[null,"Trình độ ĐHLT"]
[null,"Ngành Công nghệ sinh học"]
[null,"Trình độ Thạc sỹ"]
[null,"Ngành Công nghệ sinh học"]
[5,"Khối ngành V"]
[null,"Trình độ ĐHCQ"]
[null,"Ngành Công nghệ thông tin"]
[null,"Ngành Công nghệ kỹ thuật điện - điện tử"]
[null,"Ngành Công nghệ chế tạo máy"]
[null,"Ngành Công nghệ kỹ thuật cơ điện tử"]
[null,"Ngành Công nghệ kỹ thuật hoá học"]
[null,"Ngành Công nghệ vật liệu"]
[null,"Ngành Công nghệ thực phẩm"]
[null,"Ngành Đảm bảo chất lượng và an toàn thực phẩm"]
[null,"Ngành Công nghệ chế biến thuỷ sản"]
[null,"Ngành Công nghệ kỹ thuật môi trường"]
[null,"Ngành Công nghệ may"]
[null,"Ngành Công nghệ kỹ thuật điều khiển và tự động hóa"]
[null,"Ngành An toàn thông tin"]
[null,"Ngành Khoa học Thủy sản"]
[null,"Trình độ ĐHLT"]
[null,"Ngành Công nghệ thông tin"]
[null,"Ngành Công nghệ kỹ thuật điện, điện tử"]
[null,"Ngành Công nghệ chế tạo máy"]
[null,"Ngành Công nghệ kỹ thuật hoá học"]
[null,"Ngành Công nghệ thực phẩm"]
[null,"Ngành Công nghệ kỹ thuật môi trường"]
[null,"Trình độ Thạc sỹ"]
[null,"Ngành Kỹ thuật hóa học"]
[null,"Ngành Kỹ thuật Môi trường"]
[null,"Ngành Kỹ thuật Cơ khí"]
[null,"Ngành Kỹ thuật Điện"]
[null,"Ngành Công nghệ Thực phẩm"]
[6,"Khối ngành VI"]
[null,"Ngành..."]
[7,"Khối ngành VII"]
[null,"Trình độ ĐHCQ"]
[null,"Ngành Quản trị dịch vụ du lịch và lữ hành"]
[null,"Ngành Ngôn ngữ Anh"]
[null,"Ngành Quản lý tài nguyên và môi trường"]
[null,"Ngành Quản trị nhà hàng và dịch vụ ăn uống"]
[]
["(*) Tỷ lệ SVTN có việc làm tính theo công thức: ((SL SVTN có việc làm + SL SVTN đang học nâng cao)/tổng số SVTN được khảo sát)* 100"]

{"sheet":"C.Môn học","index":3,"n_rows":182,"n_cols":10,"rows_kept":182,"cut":false,"hidden":false,"merged":[[0,0,0,7],[1,0,1,7],[3,2,3,4]]}
["CÔNG KHAI THÔNG TIN CHẤT LƯỢNG ĐÀO TẠO THỰC TẾ CỦA CƠ SỞ GIÁO DỤC ĐẠI HỌC\nNăm học 2019 - 2020",null,null,null,null,null,null,null,null,"ïTrở về\nDanh mục"]
["C. Công khai các môn học của từng khóa học, chuyên ngành"]
[]
["Đơn vị:",null,{"$f":"'A.Qui mô'!C4","v":"Khoa Công nghệ Cơ khí"}]
["STT","Khóa học","Chuyên ngành","Tên môn học","Mục đích môn học","Số tín chỉ","Lịch trình giảng dạy","Phương pháp đánh giá sinh viên"]
[1,"Khóa: KTCK_SDH_2018","Kỹ thuật Cơ khí","CAD/CAM nâng cao","Trình bày và cung cấp giải pháp thiết kế và phân tích chuyên sâu với sự hổ trợ của máy tính",3,"HK1","- Báo cáo tiểu luận:30%\n- Điểm thi kết thúc môn học: 70%"]
[2,"Khóa: KTCK_SDH_2018","Kỹ thuật Cơ khí","Công nghệ tạo mẫu nhanh và in 3D","Cung cấp giải pháp gia công phi truyền thống bằng phương pháp cộng",2,"HK1","- Báo cáo tiểu luận:30%\n- Điểm thi kết thúc môn học: 70%"]
[3,"Khóa: KTCK_SDH_2018","Kỹ thuật Cơ khí","Công nghệ vật liệu mới","Trình bày và cung cấp các mô hình ứng dụng các loại vật liệu mới phi kim loại",3,"HK1","- Báo cáo tiểu luận:30%\n- Điểm thi kết thúc môn học: 70%"]
[4,"Khóa: KTCK_SDH_2018","Kỹ thuật Cơ khí","Nhiệt động lực học nâng cao","Cung cấp các phương pháp phân tích động học các cơ hệ. Mô phỏng số đáp ứng động học cơ hệ",3,"HK1","- Báo cáo tiểu luận:30%\n- Điểm thi kết thúc môn học: 70%"]
[5,"Khóa: KTCK_SDH_2018","Kỹ thuật Cơ khí","Phương pháp tính hiện đại","Phân tích và mô phỏng cơ hệ bằng phương pháp phần tử hữu hạn",3,"HK1","- Báo cáo tiểu luận:30%\n- Điểm thi kết thúc môn học: 70%"]
[6,"Khóa: KTCK_SDH_2018","Kỹ thuật Cơ khí","Thiết kế đảm bảo X (Design For X)","Cung cấp các phương pháp thiết kế đảm bảo độ rtin cậy và tính lắp ghép của các chi tiết máy",2,"HK1","- Báo cáo tiểu luận:30%\n- Điểm thi kết thúc môn học: 70%"]
[7,"Khóa: KTCK_SDH_2018","Kỹ thuật Cơ khí","Vật liệu và hệ thống thông minh","Trình bày và cung cấp các mô hình ứng dụng các loại vật liệu thông minh",2,"HK1","- Báo cáo tiểu luận:30%\n- Điểm thi kết thúc môn học: 70%"]
[8,"Khóa: KTCK_SDH_2018","Kỹ thuật Cơ khí","Động lực học cơ hệ","Phân tích và mô phỏng động lực học cơ hệ",3,"HK2","- Báo cáo tiểu luận:30%\n- Điểm thi kết thúc môn học: 70%"]
[9,"Khóa: KTCK_SDH_2018","Kỹ thuật Cơ khí","Hệ thống điều khiển hiện đại","Phương pháp phân tích và thiết kế điều khiển dựa trên môn hình biến trạng thái, thiết kế bộ ước lượng trạng thái đủ bậc, bộ ước lượng trạng thái đủ bậc",3,"HK2","- Báo cáo tiểu luận:30%\n- Điểm thi kết thúc môn học: 70%"]
[10,"Khóa: KTCK_SDH_2018","Kỹ thuật Cơ khí","Quy hoạch và xử lý số liệu thực nghiệm","Xử lý kết quả thống kê ban đầu và chọn mô hình phương trình hồi quy.",3,"HK2","- Báo cáo tiểu luận:30%\n- Điểm thi kết thúc môn học: 70%"]
[11,"Khóa 07DHCK","Công nghệ Chế tạo máy","Bơm - quạt - máy nén trong công nghiệp","Đáp ứng CĐR a,c,d,e,i",2,"HK1","- Đánh giá quá trình:\n+ Điểm thái độ học tập: 0%.\n+ Điểm tiểu luận: 30%.\n+ Điểm kiểm tra giữ học phần: 0%.\n+ Điểm thi kết thúc học phần: 70%."]
[12,"Khóa 07DHCK","Công nghệ Chế tạo máy","Công nghệ chế tạo máy 2","Đáp ứng CĐR a,c,d,e,i",2,"HK1","- Đánh giá quá trình:\n + Điểm thái độ học tập: 0%\n + Điểm tiểu luận: 30%\n + Điểm kiểm tra giữa học phần: 00% \n- Điểm thi kết thúc học phần: 70%."]
[13,"Khóa 07DHCK","Công nghệ Chế tạo máy","Đồ án chi tiết máy","Đáp ứng CĐR a,c,d,e,k",1,"HK1","- Đánh giá quá trình:\n + Điểm thái độ học tập: 50%\n + Điểm tiểu luận: %\n + Điểm kiểm tra giữa học phần: 00% \n- Điểm bảo vệ kết thúc học phần: 50% "]
[14,"Khóa 07DHCK","Công nghệ Chế tạo máy","Đồ án chuyên ngành Công nghệ chế tạo máy","Đáp ứng CĐR a,b,c,d,e,k",2,"HK1","- Đánh giá quá trình:\n+ Điểm thái độ học tập: 50%\n+ Điểm tiểu luận: 00%\n+ Điểm kiểm tra giữa học phần: 00% \n- Bảo vệ kết thúc học phần: 50% "]
[15,"Khóa 07DHCK","Công nghệ Chế tạo máy","Đồ án công nghệ chế tạo máy","Đáp ứng CĐR a,c,d,e,k",1,"HK1","- Đánh giá quá trình:\n + Điểm thái độ học tập: 50%\n + Điểm tiểu luận: 00%\n+ Điểm kiểm tra giữa học phần: 00% \n+ Bảo vệ kết thúc học phần: 50% "]
[16,"Khóa 07DHCK","Công nghệ Chế tạo máy","Gia công chính xác","Đáp ứng CĐR a,c,d,e,i",2,"HK1","- Đánh giá quá trình:\n + Điểm thái độ học tập: 0%\n + Điểm tiểu luận: 30% \n- Điểm thi kết thúc học phần: 70%."]
[17,"Khóa 07DHCK","Công nghệ Chế tạo máy","Kỹ thuật nâng chuyển","Đáp ứng CĐR a,c,d,e,i",2,"HK1","- Đánh giá quá trình:\n + Điểm thái độ học tập: 0%\n + Điểm tiểu luận: 30%\n + Điểm kiểm tra giữa học phần: 00% \n+ Điểm thi kết thúc học phần: 70%."]
[18,"Khóa 07DHCK","Công nghệ Chế tạo máy","Quản lý và kỹ thuật bảo trì công nghiệp","Đáp ứng CĐR b,c,d,f,g,j",2,"HK1","- Đánh giá quá trình:\n + Điểm thái độ học tập: 0%\n + Điểm tiểu luận: 30%\n+ Điểm thi kết thúc học phần: 70%."]
[19,"Khóa 07DHCK","Công nghệ Chế tạo máy","Truyền động thủy lực khí nén","Đáp ứng CĐR a,c,d,e,i",2,"HK1","- Đánh giá quá trình:\n + Điểm thái độ học tập: 0%\n + Điểm tiểu luận: 30%\n- Điểm thi kết thúc học phần: 70%."]
[20,"Khóa 07DHCK","Công nghệ Chế tạo máy","Khoá luận tốt nghiệp","Đáp ứng CĐR a,b,c,d,e,f",8,"HK2","– Điểm chấm giảng viên hướng dẫn: 50%\n– Điểm chấm phản biện báo cáo: 50%."]
[21,"Khóa 07DHCK","Công nghệ Chế tạo máy","Thực tập nghề nghiệp","Đáp ứng CĐR a,d,e,f",2,"HK2","- Đánh giá quá trình:\n+ Điểm thái độ học tập: 50%\n+ Điểm tiểu luận: 00%\n+ Điểm kiểm tra giữa học phần: 00% \n+ Bảo vệ kết thúc học phần:50% "]
[22,"Khóa 07DHCK","Công nghệ Chế tạo máy","Thực tập quản lý","Đáp ứng CĐR d,e,f",1,"HK2","- Đánh giá quá trình:\n + Điểm thái độ học tập: 50%\n + Điểm tiểu luận: 00%\n+ Điểm kiểm tra giữa học phần: 00% \n- Bảo vệ kết thúc học phần: 50% "]
[23,"Khóa 08DHCK","Công nghệ Chế tạo máy","Công nghệ CNC","Đáp ứng CĐR a,c,d,e,i",2,"HK1","- Đánh giá quá trình:\n + Điểm thái độ học tập: 0%\n + Điểm tiểu luận: 30%\n + Điểm kiểm tra giữa học phần: 00% \n- Điểm thi kết thúc học phần: 70%."]
[24,"Khóa 08DHCK","Công nghệ Chế tạo máy","Đồ án học phần chi tiết máy","Đáp ứng CĐR a,c,d,e,k",1,"HK1","- Đánh giá quá trình:\n + Điểm thái độ học tập: 50%\n + Điểm tiểu luận: %\n + Điểm kiểm tra giữa học phần: 00% \n- Điểm bảo vệ kết thúc học phần: 50% "]
[25,"Khóa 08DHCK","Công nghệ Chế tạo máy","Đường lối cách mạng của Đảng Cộng sản Việt Nam","Đáp ứng CĐR a,k",3,"HK1","+ Điểm thái độ học tập: 10%.\n+ Điểm tiểu luận: 20%.\n+ Điểm kiểm tra giữa học phần: 0%.\n+ Điểm thi kết thúc học phần: 70%."]
[26,"Khóa 08DHCK","Công nghệ Chế tạo máy","Giáo dục quốc phòng - an ninh 2","Đáp ứng CĐR j,k",3,"HK1","+ Điểm kiểm tra giữa học phần: 30% (kiểm tra trắc nghiệm, từ bài 8 đến bài 10) \n+ Điểm thi kết thúc học phần: 70% (thi trắc nghiệm, từ bài 8 đến bài 15)"]
[27,"Khóa 08DHCK","Công nghệ Chế tạo máy","Giáo dục thể chất 3 (bóng chuyền)","Đáp ứng CĐR j,k",2,"HK1","- Đánh giá quá trình:\n+ Điểm thái độ học tập: \n+ Điểm tiểu luận:  \n+ Điểm kiểm tra giữa học phần: 30%\n- Điểm thi kết thúc học phần: 70%"]
[28,"Khóa 08DHCK","Công nghệ Chế tạo máy","Giáo dục thể chất 3 (cầu lông)","Đáp ứng CĐR j,k",2,"HK1","- Đánh giá quá trình:\n+ Điểm thái độ học tập: \n+ Điểm tiểu luận:  \n+ Điểm kiểm tra giữa học phần: 30%\n- Điểm thi kết thúc học phần: 70%"]
[29,"Khóa 08DHCK","Công nghệ Chế tạo máy","Giáo dục thể chất 3(Thể hình)","Đáp ứng CĐR j,k",2,"HK1","- Đánh giá quá trình:\n+ Điểm thái độ học tập: \n+ Điểm tiểu luận:  \n+ Điểm kiểm tra giữa học phần: 30%\n- Điểm thi kết thúc học phần: 70%"]
[30,"Khóa 08DHCK","Công nghệ Chế tạo máy","Kỹ thuật chế tạo 2","Đáp ứng CĐR c,e,k",2,"HK1","- Đánh giá quá trình:\n+ Điểm thái độ học tập: 0%\n+ Điểm tiểu luận: 30%\n+ Điểm kiểm tra giữa học phần: 0% \n+ Điểm thi kết thúc học phần: 70% "]
[31,"Khóa 08DHCK","Công nghệ Chế tạo máy","Kỹ thuật PLC và ứng dụng","Đáp ứng CĐR b,j",2,"HK1","- Đánh giá quá trình:\n+ Điểm kiểm tra trên lớp: 20%\n+ Điểm tiểu luận: 30%\n+ Điểm thi kết thúc học phần: 50% "]
[32,"Khóa 08DHCK","Công nghệ Chế tạo máy","Thiết kế khuôn mẫu","Đáp ứng CĐR c,j,k",2,"HK1","- Đánh giá quá trình:\n+ Điểm thái độ học tập: 0%\n+ Điểm tiểu luận: 30%\n+ Điểm kiểm tra giữa học phần: 0% \n+ Điểm thi kết thúc học phần: 70% "]
[33,"Khóa 08DHCK","Công nghệ Chế tạo máy","Thực hành phay - bào","Đáp ứng CĐR c,f",1,"HK1","Điểm học phần là trung bình cộng điểm các bài thực hành."]
[34,"Khóa 08DHCK","Công nghệ Chế tạo máy","Thực hành tiện","Đáp ứng CĐR c,f",2,"HK1","Điểm học phần là trung bình cộng điểm các bài thực hành."]
[35,"Khóa 08DHCK","Công nghệ Chế tạo máy","Thực hành truyền động thủy lực khí nén","Đáp ứng CĐR c,k",1,"HK1","-Đánh giá quá trình:\n+ Điểm thái độ học tập: 0%\n+ Điểm tiểu luận: 0%\n+ Điểm kiểm tra giữa học phần: 0% \n- Điểm thi kết thúc học phần: 100% (Trung bình cộng của các bài thực hành)"]
[36,"Khóa 08DHCK","Công nghệ Chế tạo máy","Bơm - quạt - máy nén trong công nghiệp","Đáp ứng CĐR c,j,k",2,"HK2","- Đánh giá quá trình:\n+ Điểm thái độ học tập: 0%\n+ Điểm tiểu luận: 30%\n+ Điểm kiểm tra giữa học phần: 00% \n+ Điểm thi kết thúc học phần: 70% "]
[37,"Khóa 08DHCK","Công nghệ Chế tạo máy","Đồ án học phần chi tiết máy","Đáp ứng CĐR c,e,k",1,"HK2","- Đánh giá quá trình:\n+ Điểm thái độ học tập: 50%\n+ Điểm tiểu luận: 00%\n+ Điểm kiểm tra giữa học phần: 00% \n- Bảo vệ kết thúc học phần:50% "]
[38,"Khóa 08DHCK","Công nghệ Chế tạo máy","Đồ án kỹ thuật chế tạo","Đáp ứng CĐR c,f",1,"HK2","- Đánh giá quá trình:\n+ Điểm thái độ học tập: 50%\n+ Điểm tiểu luận: 00%\n+ Điểm kiểm tra giữa học phần: 00% \n- Bảo vệ kết thúc học phần:50% "]
[39,"Khóa 08DHCK","Công nghệ Chế tạo máy","Kỹ thuật chế tạo 3","Đáp ứng CĐR c,e,k",2,"HK2","- Đánh giá quá trình:\n+ Điểm thái độ học tập: 0%\n+ Điểm tiểu luận: 30%\n+ Điểm kiểm tra giữa học phần: 0% \n+ Điểm thi kết thúc học phần: 70% "]
[40,"Khóa 08DHCK","Công nghệ Chế tạo máy","Môi trường và con người","Đáp ứng CĐR a,k",2,"HK2","- Dự lớp: 75% trở lên tính theo số tiết lên lớp.\n- Thi giữa học phần: 30%\n- Thi kết thúc học phần: 50%\n- Các yêu cầu khác: 20% (Thảo luận theo nhóm, tiểu luận, khác ….)"]
[41,"Khóa 08DHCK","Công nghệ Chế tạo máy","Quản trị học","Đáp ứng CĐR a,j",2,"HK2","- Đánh giá quá trình:\n+ Điểm thái độ học tập: 00%\n+ Điểm tiểu luận: 30%\n+ Điểm kiểm tra giữa học phần: 0% \n- Điểm thi kết thúc học phần: 70% "]
[42,"Khóa 08DHCK","Công nghệ Chế tạo máy","Quy hoạch thực nghiệm","Đáp ứng CĐR a,b",2,"HK2","- Đánh giá quá trình:\n+ Điểm thái độ học tâp: 0%\n+ Điểm tiểu luận hoặc kiểm tra: 30%\n- Điểm thi kết thúc học phần: 70% (Trắc nghiệm)."]
[43,"Khóa 08DHCK","Công nghệ Chế tạo máy","Thiết kế và phát triển sản phẩm","Đáp ứng CĐR c,j,k",2,"HK2","- Đánh giá quá trình:\n+ Điểm thái độ học tập: 0%\n+ Điểm tiểu luận: 30%\n+ Điểm kiểm tra giữa học phần: 00% \n- Điểm thi kết thúc học phần: 70% (Tự luận chương 1 -11)"]
[44,"Khóa 08DHCK","Công nghệ Chế tạo máy","Thực hành CAD/CAM","Đáp ứng CĐR b,c,f",2,"HK2","Trung bình cộng của các bài kiểm tra"]
[45,"Khóa 08DHCK","Công nghệ Chế tạo máy","Thực hành CNC","Đáp ứng CĐR b,c,f",2,"HK2","Điểm học phần là trung bình cộng điểm các bài thực hành"]
[46,"Khóa 08DHCK","Công nghệ Chế tạo máy","Thực hành công nghệ in 3D","Đáp ứng CĐR b,c,f",1,"HK2","- Đánh giá quá trình:\n+ Điểm thái độ học tập: 0%\n+ Điểm tiểu luận: 0%\n+ Điểm kiểm tra giữa học phần: 00% \n- Điểm thi kết thúc học phần: 100% "]
[47,"Khóa 08DHCK","Công nghệ Chế tạo máy","Thực hành hàn","Đáp ứng CĐR c,f,j",2,"HK2","Điểm học phần là trung bình cộng điểm các bài thực hành."]
[48,"Khóa 08DHCK","Công nghệ Chế tạo máy","Thực hành kỹ thuật PLC và ứng dụng","Đáp ứng CĐR b,g,j",1,"HK2","-   Điểm học phần là trung bình cộng điểm của các bài thực hành có trong học phần"]
[49,"Khóa 08DHCK","Công nghệ Chế tạo máy","Tin học chuyên ngành Công nghệ chế tạo máy","Đáp ứng CĐR b,c",1,"HK2","-   Điểm học phần là trung bình cộng điểm của các bài thực hành có trong học phần"]
[50,"Khóa 08DHCK","Công nghệ Chế tạo máy","Vẽ kỹ thuật cơ khí","Đáp ứng CĐR c,k",3,"HK2","- Đánh giá quá trình:\n+ Điểm thái độ học tập: 0%\n+ Điểm tiểu luận: 30%\n+ Điểm kiểm tra giữa học phần: 00% \n- Điểm thi kết thúc học phần: 70% "]
[51,"Khóa 09DHCK","Công nghệ Chế tạo máy","Anh văn B1","Đáp ứng CĐR h,k",3,"HK1","- Điểm đánh giá quá trình: 30% (đánh giá theo 4 kĩ năng)\n- Điểm thi kết thúc học phần: 70%  (đánh giá theo 4 kĩ năng)"]
[52,"Khóa 09DHCK","Công nghệ Chế tạo máy","Cơ lưu chất","Đáp ứng CĐR c,k",2,"HK1","- Đánh giá quá trình:\n+ Điểm thái độ học tập: 0%\n+ Điểm tiểu luận: 30%\n+ Điểm kiểm tra giữa học phần: 00%  \n+ Điểm thi kết thúc học phần: 70% (Trắc nghiệm)"]
[53,"Khóa 09DHCK","Công nghệ Chế tạo máy","Giáo dục thể chất 1 (bơi)","Đáp ứng CĐR j,k",2,"HK1","- Đánh giá quá trình:\n+ Điểm thái độ học tập: \n+ Điểm tiểu luận:  \n+ Điểm kiểm tra giữa học phần: 30%\n- Điểm thi kết thúc học phần: 70%"]
[54,"Khóa 09DHCK","Công nghệ Chế tạo máy","Giáo dục thể chất 1(Thể hình)","Đáp ứng CĐR j,k",2,"HK1","- Đánh giá quá trình:\n+ Điểm thái độ học tập: \n+ Điểm tiểu luận:  \n+ Điểm kiểm tra giữa học phần: 30%\n- Điểm thi kết thúc học phần: 70%"]
[55,"Khóa 09DHCK","Công nghệ Chế tạo máy","Kỹ thuật điện","Đáp ứng CĐR c,k",2,"HK1","- Đánh giá quá trình:\n+ Điểm thái độ học tập: 0%\n+ Điểm tiểu luận: 20%\n+ Điểm kiểm tra giữa học phần: 30% (Trắc nghiệm khách quan, chương 1-3)\n- Điểm thi kết thúc học phần: 50% (Trắc nghiệm khách quan, chương 3-7)"]
[56,"Khóa 09DHCK","Công nghệ Chế tạo máy","Kỹ thuật nhiệt","Đáp ứng CĐR c,k",2,"HK1","- Đánh giá quá trình:\n+ Điểm thái độ học tập: 0%\n+ Điểm tiểu luận: 30%\n+ Điểm kiểm tra giữa học phần: 0% ()\nĐiểm thi kết thúc học phần: 70% (Tự luận)"]
[57,"Khóa 09DHCK","Công nghệ Chế tạo máy","Nguyên lý máy","Đáp ứng CĐR c,e,k",2,"HK1","- Đánh giá quá trình:\n+ Điểm thái độ học tập: 0%\n+ Điểm tiểu luận: 30%\n+ Điểm kiểm tra giữa học phần: 00%\n- Điểm thi kết thúc học phần: 70%."]
[58,"Khóa 09DHCK","Công nghệ Chế tạo máy","Quy hoạch tuyến tính","Đáp ứng CĐR a,b",2,"HK1","- Đánh giá quá trình:\n+ Điểm thái độ học tập: 0%\n+ Điểm tiểu luận hoặc kiểm tra: 30%\n- Điểm thi kết thúc học phần: 70% (Trắc nghiệm khách quan)."]
[59,"Khóa 09DHCK","Công nghệ Chế tạo máy","Sức bền vật liệu","Đáp ứng CĐR c,e,k",2,"HK1","- Đánh giá quá trình:\n+ Điểm thái độ học tập: 0%\n+ Điểm tiểu luận: 20%\n+ Điểm kiểm tra giữa học phần: 30% \n+ Điểm thi kết thúc học phần: 50% "]
[60,"Khóa 09DHCK","Công nghệ Chế tạo máy","Thực hành nguội","Đáp ứng CĐR c,f",1,"HK1","Điểm học phần là trung bình cộng điểm các bài thực hành."]
[61,"Khóa 09DHCK","Công nghệ Chế tạo máy","Vật liệu và công nghệ xử lý","Đáp ứng CĐR c,k",2,"HK1","- Đánh giá quá trình:\n+ Điểm thái độ học tập: 0%\n+ Điểm tiểu luận: 20%\n+ Điểm kiểm tra giữa học phần: 30% \n+ Điểm thi kết thúc học phần: 50% \n+ Hình thức thi : trắc nghiệm"]
[62,"Khóa 09DHCK","Công nghệ Chế tạo máy","Anh văn B2","Đáp ứng CĐR h,k",3,"HK2","- Điểm đánh giá quá trình: 30% (đánh giá theo 4 kĩ năng)\n- Điểm thi kết thúc học phần: 70%  (đánh giá theo 4 kĩ năng)"]
[63,"Khóa 09DHCK","Công nghệ Chế tạo máy","Chi tiết máy","Đáp ứng CĐR c,e,k",3,"HK2","- Đánh giá quá trình:\n+ Điểm thái độ học tập: 0%\n+ Điểm tiểu luận: 30%\n+ Điểm kiểm tra giữa học phần: \n- Điểm thi kết thúc học phần: 70%  (Tự luận, chương 1-10)"]
[64,"Khóa 09DHCK","Công nghệ Chế tạo máy","Công nghệ vật liệu","Đáp ứng CĐR c,k",2,"HK2","- Đánh giá quá trình:\n+ Điểm thái độ học tập: 0%\n+ Điểm tiểu luận: 30%\n+ Điểm kiểm tra giữa học phần: 0% \n+ Điểm thi kết thúc học phần: 70% "]
[65,"Khóa 09DHCK","Công nghệ Chế tạo máy","Kỹ thuật chế tạo 1","Đáp ứng CĐR c,e,k",3,"HK2","- Đánh giá quá trình:\n+ Điểm thái độ học tập: 0%\n+ Điểm tiểu luận: 30%\n+ Điểm kiểm tra giữa học phần: 0% \n- Điểm thi kết thúc học phần: 70% "]
[66,"Khóa 09DHCK","Công nghệ Chế tạo máy","Kỹ thuật sấy","Đáp ứng CĐR c,j,k",2,"HK2","- Đánh giá quá trình:\n+ Điểm thái độ học tập: 0%\n+ Điểm tiểu luận: 20%\n+ Điểm kiểm tra giữa học phần: 30% (Trắc nghiệm chương 1 - 4)\n- Điểm thi kết thúc học phần: 50% (Trắc nghiệm chương 5 - 10)"]
[67,"Khóa 09DHCK","Công nghệ Chế tạo máy","Nguyên lý cắt kim loại","Đáp ứng CĐR c,k",2,"HK2","- Đánh giá quá trình:\n+ Điểm thái độ học tập: 0%\n+ Điểm tiểu luận: 30%\n+ Điểm kiểm tra trên lớp giữa học phần: 20% \n- Điểm thi kết thúc học phần: 50% "]
[68,"Khóa 09DHCK","Công nghệ Chế tạo máy","Thí nghiệm vật liệu","Đáp ứng CĐR c,k",1,"HK2","- Đánh giá quá trình:\n+ Điểm thái độ học tập: 0%\n+ Điểm chuyên cần: 20%\n+ Điểm hoàn thành báo cáo: 30% \n+ Điểm thi kết thúc học phần (vấn đáp): 50% "]
[69,"Khóa 09DHCK","Công nghệ Chế tạo máy","Thực hành điện cơ bản","Đáp ứng CĐR c,k",1,"HK2","─      Điểm học phần là trung bình cộng điểm của các bài thực hành có trong học phần "]
[70,"Khóa 09DHCK","Công nghệ Chế tạo máy","Thực hành đúc - nhiệt luyện","Đáp ứng CĐR c,f",1,"HK2","- Đánh giá quá trình:\n+ Điểm thái độ học tập: 20%\n+ Điểm tiểu luận: 00%\n+ Điểm kiểm tra giữa học phần: 00% \n+ Điểm đánh giá là trung bình các bài thực hành: 80% \n+ Hình thức đánh giá: kết quả thực hành"]
[71,"Khóa 09DHCK","Công nghệ Chế tạo máy","Truyền động thủy lực khí nén","Đáp ứng CĐR c,k",2,"HK2","- Đánh giá quá trình:\n+ Điểm thái độ học tập: 0%\n+ Điểm tiểu luận: 30%\n- Điểm thi kết thúc học phần: 70% (Tự luận 1-10)"]
[72,"Khóa 09DHCK","Công nghệ Chế tạo máy","Tư tưởng Hồ Chí Minh","Đáp ứng CĐR a,k",2,"HK2","+ Điểm tiểu luận: 30%\n  + Điểm thi kết thúc học phần: 70%"]
[73,"Khóa 10DHCK","Công nghệ Chế tạo máy","An toàn lao động","Đáp ứng CĐR c,j",2,"HK1","- Đánh giá quá trình:\n+ Điểm thái độ học tập: 0%\n+ Điểm tiểu luận: 20%\n+ Điểm kiểm tra giữa học phần: 30% (trắc nghiệm từ chương 1-4)\n- Điểm thi kết thúc học phần: 50% (trắc nghiệm từ chương 5-9)"]
[74,"Khóa 10DHCK","Công nghệ Chế tạo máy","Giáo dục quốc phòng - an ninh 1","Đáp ứng CĐR j,k",3,"HK1","+ Điểm kiểm tra giữa học phần: 30% (kiểm tra trắc nghiệm, từ bài 1 đến 4) \n+ Điểm thi kết thúc học phần: 70% (thi trắc nghiệm, từ bài 1 đến 7)"]
[75,"Khóa 10DHCK","Công nghệ Chế tạo máy","Giáo dục thể chất 2 (bơi)","Đáp ứng CĐR j,k",1,"HK1","- Đánh giá quá trình:\n+ Điểm thái độ học tập: \n+ Điểm tiểu luận:  \n+ Điểm kiểm tra giữa học phần: 30%\n- Điểm thi kết thúc học phần: 70%"]
[76,"Khóa 10DHCK","Công nghệ Chế tạo máy","Kỹ năng ứng dụng Công nghệ Thông tin","Đáp ứng CĐR b,k",3,"HK1","- Đánh giá quá trình: 40%\n- Kiểm tra cuối học phần: 60%"]
[77,"Khóa 10DHCK","Công nghệ Chế tạo máy","Nhập môn kỹ thuật","Đáp ứng CĐR a,c,h,k",2,"HK1","- Đánh giá quá trình:\n+ Điểm thái độ học tập:    10%\n+ Điểm xeminar:              30%\n+ Điểm tiểu luận kết thúc học phần:  60% "]
[78,"Khóa 10DHCK","Công nghệ Chế tạo máy","Pháp luật đại cương","Đáp ứng CĐR CLO1.2, CLO2.3, CLO3.1",2,"HK1","+ Điểm tiểu luận: 30%\n+ Điểm kiểm tra giữa học phần: 00% \n+ Điểm thi kết thúc học phần: 70% (Trắc nghiệm khách quan)"]
[79,"Khóa 10DHCK","Công nghệ Chế tạo máy","Triết học Mác - Lênin","Đáp ứng CĐR CLO1.2, CLO2.3, CLO3.1",3,"HK1","- Đánh giá quá trình của học phần: 30%\n- Đánh giá kết thúc học phần: 70%"]
[80,"Khóa 10DHCK","Công nghệ Chế tạo máy","Anh văn A1","Đáp ứng CĐR h,k",3,"HK2","Đánh giá kết thúc học phần: 70%"]
[81,"Khóa 10DHCK","Công nghệ Chế tạo máy","Chủ nghĩa xã hội khoa học","Đáp ứng CĐR CLO1.2, CLO2.3, CLO3.1",2,"HK2","- Đánh giá quá trình của học phần: 30%\n- Đánh giá kết thúc học phần: 70%"]
[82,"Khóa 10DHCK","Công nghệ Chế tạo máy","Cơ kỹ thuật","Đáp ứng CĐR c,k",3,"HK2","- Đánh giá quá trình:\n+ Điểm thái độ học tập: 0%\n+ Điểm tiểu luận: 20%\n+ Điểm kiểm tra giữa học phần: 30% \n+ Điểm thi kết thúc học phần: 50% "]
[83,"Khóa 10DHCK","Công nghệ Chế tạo máy","Dung sai lắp ghép","Đáp ứng CĐR c,e,k",2,"HK2"," Đánh giá quá trình:\n+ Điểm thái độ học tập: 0%\n+ Điểm tiểu luận: 30% \n- Điểm thi kết thúc học phần: 70% "]
[84,"Khóa 10DHCK","Công nghệ Chế tạo máy","Kinh tế chính trị Mác – Lênin","Đáp ứng CĐR CLO1.2, CLO2.3, CLO3.1",2,"HK2","- Đánh giá quá trình của học phần: 30%\n- Đánh giá kết thúc học phần: 70%"]
[85,"Khóa 10DHCK","Công nghệ Chế tạo máy","Tham quan kiến tập","Đáp ứng CĐR c,d,g",1,"HK2","- Đánh giá quá trình:\n+ Điểm thái độ học tập: 50%\n+ Điểm tiểu luận: 00%\n+ Điểm kiểm tra giữa học phần: 00% \n- Báo cáo kết thúc học phần: 50% "]
[86,"Khóa 10DHCK","Công nghệ Chế tạo máy","Thực hành kỹ thuật đo lường cơ khí","Đáp ứng CĐR c,e,k",1,"HK2","Điểm học phần là trung bình cộng điểm các bài thực hành."]
[87,"Khóa 10DHCK","Công nghệ Chế tạo máy","Vẽ kỹ thuật cơ khí","Đáp ứng CĐR c,k",3,"HK2","- Đánh giá quá trình:\n+ Điểm thái độ học tập: 0%\n+ Điểm tiểu luận: 30%\n+ Điểm kiểm tra giữa học phần: 00% \n- Điểm thi kết thúc học phần: 70% "]
[88,"Khóa 10DHCK","Công nghệ Chế tạo máy","Xác suất thống kê","Đáp ứng CĐR a,b",2,"HK2","- Đánh giá quá trình:\n+ Điểm thái độ học tập: 0%\n+ Điểm tiểu luận hoặc kiểm tra: 30% \n+ Điểm thi kết thúc học phần: 70% (Trắc nghiệm khách quan)."]
[89,"Khóa 07DHCDT","Công nghệ Kỹ thuật Cơ điện tử","Công nghệ CAD/CAM","Đáp ứng CĐR a,c,d,e,i",2,"HK1","- Đánh giá quá trình:\n + Điểm thái độ học tập: 0%\n + Điểm tiểu luận: 30%\n + Điểm kiểm tra giữa học phần: 0% \n- Điểm thi kết thúc học phần: 70% "]
[90,"Khóa 07DHCDT","Công nghệ Kỹ thuật Cơ điện tử","Đồ án học phần Cơ điện tử 2","Đáp ứng CĐR d,e,f,k",1,"HK1","- Đánh giá quá trình:\n+ Điểm thái độ học tập: 0%\n+ Điểm tiểu luận: 0%\n+ Điểm kiểm tra giữa học phần: 0% \n- Điểm bảo vệ đồ án: 100%"]
[91,"Khóa 07DHCDT","Công nghệ Kỹ thuật Cơ điện tử","Kỹ thuật Cơ điện tử 2","Đáp ứng CĐR d,e,f",2,"HK1","- Đánh giá quá trình:\n+ Điểm thái độ học tập: 0%\n+ Điểm tiểu luận: 00%\n+ Điểm kiểm tra giữa học phần: 30% \n- Điểm thi kết thúc học phần: 70%  "]
[92,"Khóa 07DHCDT","Công nghệ Kỹ thuật Cơ điện tử","Truyền động và điểu khiển máy CNC","Đáp ứng CĐR a,c,d,e,i",2,"HK1","- Đánh giá quá trình:\n + Điểm thái độ học tập: 0%\n + Điểm tiểu luận: 30%\n- Điểm thi kết thúc học phần: 70%."]
[93,"Khóa 07DHCDT","Công nghệ Kỹ thuật Cơ điện tử","Tự động hóa quá trình công nghệ","Đáp ứng CĐR b,c,d,g,h,j",2,"HK1","- Đánh giá quá trình:\n + Điểm thái độ học tập: 0%\n + Điểm tiểu luận: 30%\n- Điểm thi kết thúc học phần: 70%."]
[94,"Khóa 07DHCDT","Công nghệ Kỹ thuật Cơ điện tử","Tự động hóa quá trình sản xuất","Đáp ứng CĐR b,c,d,g,h,j",2,"HK1","- Đánh giá quá trình:\n + Điểm thái độ học tập: 0%\n + Điểm tiểu luận: 30%\n- Điểm thi kết thúc học phần: 70%."]
[95,"Khóa 07DHCDT","Công nghệ Kỹ thuật Cơ điện tử","Khoá luận tốt nghiệp","Đáp ứng CĐR a,b,c,d,e,f",8,"HK2","– Điểm chấm giảng viên hướng dẫn: 50%\n– Điểm chấm phản biện báo cáo: 50%."]
[96,"Khóa 07DHCDT","Công nghệ Kỹ thuật Cơ điện tử","Thực tập nghề nghiệp","Đáp ứng CĐR a,d,e,f",2,"HK2","- Đánh giá quá trình:\n+ Điểm thái độ học tập: 50%\n+ Điểm tiểu luận: 00%\n+ Điểm kiểm tra giữa học phần: 00% \n+ Bảo vệ kết thúc học phần:50% "]
[97,"Khóa 07DHCDT","Công nghệ Kỹ thuật Cơ điện tử","Thực tập quản lý","Đáp ứng CĐR d,e,f",1,"HK2","- Đánh giá quá trình:\n + Điểm thái độ học tập: 50%\n + Điểm tiểu luận: 00%\n+ Điểm kiểm tra giữa học phần: 00% \n- Bảo vệ kết thúc học phần: 50% "]
[98,"Khóa 08DHCDT","Công nghệ Kỹ thuật Cơ điện tử","Cơ sở tự động","Đáp ứng CĐR b,c",2,"HK1","- Đánh giá quá trình:\n + Điểm thái độ học tập: 0%\n + Điểm tiểu luận: 30%\n- Điểm thi kết thúc học phần: 70%."]
[99,"Khóa 08DHCDT","Công nghệ Kỹ thuật Cơ điện tử","Công nghệ CNC","Đáp ứng CĐR a,c,d,e,i",2,"HK1","- Đánh giá quá trình:\n + Điểm thái độ học tập: 0%\n + Điểm tiểu luận, bài tập: 50%\n- Điểm thi kết thúc học phần: 50%."]
[100,"Khóa 08DHCDT","Công nghệ Kỹ thuật Cơ điện tử","Đồ án học phần cơ điện tử 1","Đáp ứng CĐR d,e,f,k",1,"HK1","- Đánh giá quá trình:\n+ Điểm thái độ học tập: 0%\n+ Điểm tiểu luận: 0%\n+ Điểm kiểm tra giữa học phần: 0% \n- Điểm bảo vệ đồ án: 100%"]
[101,"Khóa 08DHCDT","Công nghệ Kỹ thuật Cơ điện tử","Đường lối cách mạng của Đảng Cộng sản Việt Nam","Đáp ứng CĐR a",3,"HK1","+ Điểm thái độ học tập: 10%\n+ Điểm tiểu luận:  20%\n+ Điểm kiểm tra giữa học phần: 0%\n+ Điểm thi kết thúc học phần: 70%"]
[102,"Khóa 08DHCDT","Công nghệ Kỹ thuật Cơ điện tử","Kỹ thuật cơ điện tử 1","Đáp ứng CĐR d,e,f",2,"HK1","+ Điểm thái độ học tập: 0%\n+ Điểm tiểu luận:  0%\n+ Điểm kiểm tra giữa học phần: 30%\n+ Điểm thi kết thúc học phần: 70%"]
[103,"Khóa 08DHCDT","Công nghệ Kỹ thuật Cơ điện tử","Kỹ thuật PLC và ứng dụng","Đáp ứng CĐR d,e,f",2,"HK1","- Đánh giá quá trình:\n+ Điểm kiểm tra trên lớp: 20%\n+ Điểm tiểu luận: 30%\n+ Điểm thi kết thúc học phần: 50% "]
[104,"Khóa 08DHCDT","Công nghệ Kỹ thuật Cơ điện tử","Môi trường và con người","Đáp ứng CĐR k,l",2,"HK1","- Dự lớp: 75% trở lên tính theo số tiết lên lớp.\n- Thi giữa học phần: 30%\n- Thi kết thúc học phần: 50%\n-Các yêu cầu khác: 20% (Thảo luận theo nhóm, tiểu luận, khác ….)"]
[105,"Khóa 08DHCDT","Công nghệ Kỹ thuật Cơ điện tử","Thực hành CNC","Đáp ứng CĐR g,h",2,"HK1","- Điểm học phần là trung bình cộng điểm các bài thực hành."]
[106,"Khóa 08DHCDT","Công nghệ Kỹ thuật Cơ điện tử","Thực hành truyền động thủy lực khí nén","Đáp ứng CĐR e,g,h",1,"HK1","- Đánh giá quá trình:\n+ Điểm thái độ học tập: 0%\n+ Điểm tiểu luận: 0%\n+ Điểm kiểm tra giữa học phần: 0% \n- Điểm thi kết thúc học phần: 100% (Trung bình cộng của các bài thực hành)"]
[107,"Khóa 08DHCDT","Công nghệ Kỹ thuật Cơ điện tử","Thực hành vi điều khiển và ứng dụng 1","Đáp ứng CĐR g,h,i",1,"HK1"," Điểm học phần là trung bình cộng điểm các bài thực hành "]
[108,"Khóa 08DHCDT","Công nghệ Kỹ thuật Cơ điện tử","Vi điều khiển và ứng dụng 1","Đáp ứng CĐR e,f",2,"HK1","- Đánh giá quá trình:\t\n+ Điểm thái độ học tập: 0%\n+ Điểm tiểu luận: 50%\n+ Điểm kiểm tra giữa học phần: 0% \n+ Điểm thi kết thúc học phần: 50% "]
[109,"Khóa 08DHCDT","Công nghệ Kỹ thuật Cơ điện tử","Đồ án học phần cơ điện tử 1","Đáp ứng CĐR d,e,f,k",1,"HK2","- Đánh giá quá trình:\n+ Điểm thái độ học tập: 0%\n+ Điểm tiểu luận: 0%\n+ Điểm kiểm tra giữa học phần: 0% \n- Điểm bảo vệ đồ án: 100%"]
[110,"Khóa 08DHCDT","Công nghệ Kỹ thuật Cơ điện tử","Đồ án học phần Cơ điện tử 2","Đáp ứng CĐR d,e,f,k",1,"HK2","- Đánh giá quá trình:\n+ Điểm thái độ học tập: 0%\n+ Điểm tiểu luận: 0%\n+ Điểm kiểm tra giữa học phần: 0% \n- Điểm bảo vệ đồ án: 100%"]
[111,"Khóa 08DHCDT","Công nghệ Kỹ thuật Cơ điện tử","Kỹ thuật Cơ điện tử 2","Đáp ứng CĐR d,e,f",2,"HK2","- Đánh giá quá trình:\n+ Điểm thái độ học tập: 0%\n+ Điểm tiểu luận: 00%\n+ Điểm kiểm tra giữa học phần: 30% \n- Điểm thi kết thúc học phần: 70%  "]
[112,"Khóa 08DHCDT","Công nghệ Kỹ thuật Cơ điện tử","Quản trị học","Đáp ứng CĐR a",2,"HK2","- Đánh giá quá trình:\n+ Điểm thái độ học tập: 00%\n+ Điểm tiểu luận: 30%\n+ Điểm kiểm tra giữa học phần:\t  0% \n- Điểm thi kết thúc học phần: 70% "]
[113,"Khóa 08DHCDT","Công nghệ Kỹ thuật Cơ điện tử","Robot công nghiệp","Đáp ứng CĐR d,e,f",2,"HK2","- Đánh giá quá trình:\n+ Điểm thái độ học tập: 0%\n+ Điểm tiểu luận: 50%\n+ Điểm kiểm tra giữa học phần: 0% \n+ Điểm thi kết thúc học phần: 50% "]
[114,"Khóa 08DHCDT","Công nghệ Kỹ thuật Cơ điện tử","Thực hành CAD/CAM","Đáp ứng CĐR g,h",2,"HK2","- Trung bình cộng của các bài kiểm tra"]
[115,"Khóa 08DHCDT","Công nghệ Kỹ thuật Cơ điện tử","Thực hành kỹ thuật PLC và ứng dụng","Đáp ứng CĐR g,k,l",1,"HK2","- Điểm học phần là trung bình cộng điểm của các bài thực hành có trong học phần"]
[116,"Khóa 08DHCDT","Công nghệ Kỹ thuật Cơ điện tử","Thực hành tin học trong cơ điện tử","Đáp ứng CĐR b,h",1,"HK2","- Điểm học phần là trung bình cộng điểm của các chương thực hành có trong học phần "]
[117,"Khóa 08DHCDT","Công nghệ Kỹ thuật Cơ điện tử","Thực hành tự động hóa và robot","Đáp ứng CĐR g,k,l",1,"HK2","- Điểm học phần là trung bình cộng điểm của các bài thực hành có trong học phần "]
[118,"Khóa 08DHCDT","Công nghệ Kỹ thuật Cơ điện tử","Thực hành vi điều khiển và ứng dụng 1","Đáp ứng CĐR g,h,i",1,"HK2","- Điểm học phần là trung bình cộng điểm các bài thực hành "]
[119,"Khóa 08DHCDT","Công nghệ Kỹ thuật Cơ điện tử","Trang bị điện công nghiệp","Đáp ứng CĐR e,f",2,"HK2","- Đánh giá quá trình:\n+ Điểm thái độ học tập: 0%\n+ Điểm tiểu luận: 20%\n+ Điểm kiểm tra giữa học phần: 30% \n+ Điểm thi kết thúc học phần: 50% "]
[120,"Khóa 08DHCDT","Công nghệ Kỹ thuật Cơ điện tử","Truyền động điện và điện tử công suất","Đáp ứng CĐR d,e,f",2,"HK2","- Đánh giá quá trình:\n+ Điểm thái độ học tập: 0%\n+ Điểm tiểu luận: 30%\n+ Điểm kiểm tra giữa học phần: 00% \n+ Điểm thi kết thúc học phần: 70% "]
[121,"Khóa 08DHCDT","Công nghệ Kỹ thuật Cơ điện tử","Tư tưởng Hồ Chí Minh","Đáp ứng CĐR a",2,"HK2","+ Điểm tiểu luận: 30%\n + Điểm thi kết thúc học phần: 70% "]
[122,"Khóa 08DHCDT","Công nghệ Kỹ thuật Cơ điện tử","Xử lý số tín hiệu","Đáp ứng CĐR b,c,d",2,"HK2","- Đánh giá quá trình:\n+ Điểm thái độ học tập: 0%\n+ Điểm tiểu luận: 30%\n+ Điểm kiểm tra giữa học phần: 0% \n+ Điểm thi kết thúc học phần: 70% "]
[123,"Khóa 09DHCDT","Công nghệ Kỹ thuật Cơ điện tử","An toàn lao động","Đáp ứng CĐR c,d,l",2,"HK1","- Đánh giá quá trình:\n+ Điểm thái độ học tập: 0%\n+ Điểm tiểu luận: 20%\n+ Điểm kiểm tra giữa học phần: 30% (trắc nghiệm từ chương 1-4)\n- Điểm thi kết thúc học phần: 50% (trắc nghiệm từ chương 5-9)"]
[124,"Khóa 09DHCDT","Công nghệ Kỹ thuật Cơ điện tử","Chi tiết máy","Đáp ứng CĐR c,f",3,"HK1","- Đánh giá quá trình:\n+ Điểm thái độ học tập: 0%\n+ Điểm tiểu luận: 30%\n+ Điểm kiểm tra giữa học phần: \n- Điểm thi kết thúc học phần: 70%  (Tự luận, chương 1-10)"]
[125,"Khóa 09DHCDT","Công nghệ Kỹ thuật Cơ điện tử","Dung sai lắp ghép","Đáp ứng CĐR c",2,"HK1"," Đánh giá quá trình:\n+ Điểm thái độ học tập: 0%\n+ Điểm tiểu luận: 30% \n- Điểm thi kết thúc học phần: 70% "]
[126,"Khóa 09DHCDT","Công nghệ Kỹ thuật Cơ điện tử","Hàm phức và phép biến đổi Laplace","Đáp ứng CĐR b",2,"HK1","+ Đánh giá quá trình: \n+ Điểm thái độ học tập: 0%\n+ Điểm tiểu luận hoặc kiểm tra: 30%.\n+ Thi kết thúc học phần: 70% (trắc nghiệm khách quan)."]
[127,"Khóa 09DHCDT","Công nghệ Kỹ thuật Cơ điện tử","Kỹ thuật điện tử","Đáp ứng CĐR c,e",2,"HK1","- Đánh giá quá trình:\n+ Điểm thái độ học tập: 0%\n+ Điểm bài tập, tiểu luận: 20%\n+ Điểm kiểm tra giữa học phần: 30% \n- Điểm thi kết thúc học phần: 50% (Tự luận)"]
[128,"Khóa 09DHCDT","Công nghệ Kỹ thuật Cơ điện tử","Lập trình ứng dụng","Đáp ứng CĐR b,c",3,"HK1","+ Đánh giá quá trình:\n+ Điểm thái độ học tập: 0%\n+ Điểm tiểu luận: 50%\n+ Điểm kiểm tra giữa học phần: 0% \n+ Điểm thi kết thúc học phần: 50% "]
[129,"Khóa 09DHCDT","Công nghệ Kỹ thuật Cơ điện tử","Những nguyên lý cơ bản của chủ nghĩa Mác-Lênin 2","Đáp ứng CĐR a",3,"HK1","- Điểm tiểu luận:  30%\n- Điểm thi kết thúc học phần: 70%"]
[130,"Khóa 09DHCDT","Công nghệ Kỹ thuật Cơ điện tử","Thực hành điện cơ bản","Đáp ứng CĐR c,h,k",1,"HK1","- Điểm học phần là trung bình cộng điểm của các bài thực hành có trong học phần "]
[131,"Khóa 09DHCDT","Công nghệ Kỹ thuật Cơ điện tử","Toán cao cấp A2","Đáp ứng CĐR b",2,"HK1","- Đánh giá quá trình:\n+ Điểm thái độ học tâp\t: 0%\n+ Điểm tiểu luận hoặc kiểm tra\t: 30%\n- Điểm thi kết thúc học phần: 70% (Trắc nghiệm khách quan"]
[132,"Khóa 09DHCDT","Công nghệ Kỹ thuật Cơ điện tử","Anh văn B2","Đáp ứng CĐR j",3,"HK2","- Điểm đánh giá quá trình: 30% (đánh giá theo 4 kĩ năng)\n- Điểm thi kết thúc học phần: 70%  (đánh giá theo 4 kĩ năng)"]
[133,"Khóa 09DHCDT","Công nghệ Kỹ thuật Cơ điện tử","Cảm biến trong hệ thống Cơ điện tử","Đáp ứng CĐR d,e",2,"HK2","- Đánh giá quá trình:\n+ Điểm thái độ học tập: 0%\n+ Điểm tiểu luận: 30%\n+ Điểm kiểm tra giữa học phần: 00% \n+ Điểm thi kết thúc học phần: 70% "]
[134,"Khóa 09DHCDT","Công nghệ Kỹ thuật Cơ điện tử","Giáo dục quốc phòng - an ninh 3 AB","Đáp ứng CĐR a",2,"HK2","- Điểm kiểm tra giữa học phần: 30% (kiểm tra trắc nghiệm, từ bài 8 đến bài 10) \n- Điểm thi kết thúc học phần: 70% (thi trắc nghiệm, từ bài 8 đến bài 15)"]
[135,"Khóa 09DHCDT","Công nghệ Kỹ thuật Cơ điện tử","Giáo dục thể chất 3 (bơi)","Đáp ứng CĐR a",2,"HK2","- Đánh giá quá trình:\n+ Điểm thái độ học tập: \n+ Điểm tiểu luận:  \n+ Điểm kiểm tra giữa học phần: 30%\n- Điểm thi kết thúc học phần: 70%"]
[136,"Khóa 09DHCDT","Công nghệ Kỹ thuật Cơ điện tử","Kỹ thuật chế tạo 1","Đáp ứng CĐR e,f",3,"HK2","- Đánh giá quá trình:\n+ Điểm thái độ học tập: 0%\n+ Điểm tiểu luận: 30%\n+ Điểm kiểm tra giữa học phần: 0% \n- Điểm thi kết thúc học phần: 70% "]
[137,"Khóa 09DHCDT","Công nghệ Kỹ thuật Cơ điện tử","Kỹ thuật số và ứng dụng","Đáp ứng CĐR c,e,f",2,"HK2","- Đánh giá quá trình:\n+ Điểm thái độ học tập: 0%\n+ Điểm tiểu luận: 30%\n+ Điểm kiểm tra giữa học phần: 0%\nĐiểm thi kết thúc học phần: 70% (Tự luận)"]
[138,"Khóa 09DHCDT","Công nghệ Kỹ thuật Cơ điện tử","Tham quan kiến tập","Đáp ứng CĐR i,k,l",1,"HK2","- Đánh giá quá trình:\n+ Điểm thái độ học tập: 50%\n+ Điểm tiểu luận: 00%\n+ Điểm kiểm tra giữa học phần: 00% \n- Báo cáo kết thúc học phần: 50% "]
[139,"Khóa 09DHCDT","Công nghệ Kỹ thuật Cơ điện tử","Thực hành điện tử cơ bản","Đáp ứng CĐR c,h,k",1,"HK2","Điểm học phần là trung bình cộng điểm các bài báo cáo thực hành."]
[140,"Khóa 09DHCDT","Công nghệ Kỹ thuật Cơ điện tử","Thực hành đo lường kỹ thuật","Đáp ứng CĐR g,h",1,"HK2","Điểm học phần là trung bình cộng điểm các bài thực hành."]
[141,"Khóa 09DHCDT","Công nghệ Kỹ thuật Cơ điện tử","Thực hành kỹ thuật số và ứng dụng","Đáp ứng CĐR e,g,h",1,"HK2","Điểm học phần là trung bình cộng điểm của các Chương thực hành có trong học phần "]
[142,"Khóa 09DHCDT","Công nghệ Kỹ thuật Cơ điện tử","Thực tập cơ khí đại cương","Đáp ứng CĐR c,h,k",2,"HK2","Điểm học phần là trung bình cộng điểm các bài thực hành "]
[143,"Khóa 09DHCDT","Công nghệ Kỹ thuật Cơ điện tử","Truyền động thủy lực khí nén","Đáp ứng CĐR e,f",2,"HK2","- Đánh giá quá trình:\n+ Điểm thái độ học tập: 0%\n+ Điểm tiểu luận: 30%\n- Điểm thi kết thúc học phần: 70% (Tự luận 1-10)"]
[144,"Khóa 10DHCDT","Công nghệ Kỹ thuật Cơ điện tử","Giáo dục quốc phòng - an ninh 1","Đáp ứng CĐR a",3,"HK1","+ Điểm kiểm tra giữa học phần: 30% (kiểm tra trắc nghiệm, từ bài 1 đến 4) \n+ Điểm thi kết thúc học phần: 70% (thi trắc nghiệm, từ bài 1 đến 7)"]
[145,"Khóa 10DHCDT","Công nghệ Kỹ thuật Cơ điện tử","Giáo dục thể chất 2 (bơi)","Đáp ứng CĐR a",1,"HK1","- Đánh giá quá trình:\n+ Điểm thái độ học tập: \n+ Điểm tiểu luận:  \n+ Điểm kiểm tra giữa học phần: 30%\n- Điểm thi kết thúc học phần: 70%"]
[146,"Khóa 10DHCDT","Công nghệ Kỹ thuật Cơ điện tử","Kỹ năng ứng dụng Công nghệ Thông tin","Đáp ứng CĐR b",3,"HK1","- Đánh giá quá trình: 40%\n- Kiểm tra cuối học phần: 60%"]
[147,"Khóa 10DHCDT","Công nghệ Kỹ thuật Cơ điện tử","Kỹ thuật điện","Đáp ứng CĐR c",2,"HK1","- Đánh giá quá trình:\n+ Điểm thái độ học tập: 0%\n+ Điểm tiểu luận: 20%\n+ Điểm kiểm tra giữa học phần: 30% (Trắc nghiệm khách quan, chương 1-3)\n- Điểm thi kết thúc học phần: 50% (Trắc nghiệm khách quan, chương 3-7)"]
[148,"Khóa 10DHCDT","Công nghệ Kỹ thuật Cơ điện tử","Nhập môn kỹ thuật","Đáp ứng CĐR c,d,l",2,"HK1","- Đánh giá quá trình:\n+ Điểm thái độ học tập:    10%\n+ Điểm xeminar:              30%\n+ Điểm tiểu luận kết thúc học phần:  60% "]
[149,"Khóa 10DHCDT","Công nghệ Kỹ thuật Cơ điện tử","Pháp luật đại cương","Đáp ứng CĐR a",2,"HK1","- Đánh giá quá trình của học phần: 30%\n- Đánh giá kết thúc học phần: 70%"]
[150,"Khóa 10DHCDT","Công nghệ Kỹ thuật Cơ điện tử","Triết học Mác - Lênin","Đáp ứng CĐR ",3,"HK1","- Đánh giá quá trình của học phần: 30%\n- Đánh giá kết thúc học phần: 70%"]
[151,"Khóa 10DHCDT","Công nghệ Kỹ thuật Cơ điện tử","Anh văn A1","Đáp ứng CĐR j",3,"HK2","- Điểm đánh giá quá trình: 30% (đánh giá theo 4 kĩ năng)\n- Điểm thi kết thúc học phần: 70%  (đánh giá theo 4 kĩ năng) "]
[152,"Khóa 10DHCDT","Công nghệ Kỹ thuật Cơ điện tử","Anh văn A2","Đáp ứng CĐR j",3,"HK2","- Điểm đánh giá quá trình: 30% (đánh giá theo 4 kĩ năng)\n- Điểm thi kết thúc học phần: 70%  (đánh giá theo 4 kĩ năng) "]
[153,"Khóa 10DHCDT","Công nghệ Kỹ thuật Cơ điện tử","Chủ nghĩa xã hội khoa học","Đáp ứng CĐR ",2,"HK2","- Đánh giá quá trình của học phần: 30%\n- Đánh giá kết thúc học phần: 70%"]
[154,"Khóa 10DHCDT","Công nghệ Kỹ thuật Cơ điện tử","Cơ kỹ thuật","Đáp ứng CĐR c",3,"HK2","- Đánh giá quá trình:\n+ Điểm thái độ học tập: 0%\n+ Điểm tiểu luận: 20%\n+ Điểm kiểm tra giữa học phần: 30% \n+ Điểm thi kết thúc học phần: 50% "]
[155,"Khóa 10DHCDT","Công nghệ Kỹ thuật Cơ điện tử","Giáo dục quốc phòng - an ninh 2","Đáp ứng CĐR a",3,"HK2","+ Điểm kiểm tra giữa học phần: 30% (kiểm tra trắc nghiệm, từ bài 8 đến bài 10) \n+ Điểm thi kết thúc học phần: 70% (thi trắc nghiệm, từ bài 8 đến bài 15)"]
[156,"Khóa 10DHCDT","Công nghệ Kỹ thuật Cơ điện tử","Giáo dục thể chất 1 (bóng chuyền)","Đáp ứng CĐR a",2,"HK2","- Đánh giá quá trình:\n+ Điểm thái độ học tập: \n+ Điểm tiểu luận:  \n+ Điểm kiểm tra giữa học phần: 30%\n- Điểm thi kết thúc học phần: 70%"]
[157,"Khóa 10DHCDT","Công nghệ Kỹ thuật Cơ điện tử","Giáo dục thể chất 1 (võ thuật)","Đáp ứng CĐR a",2,"HK2","- Đánh giá quá trình:\n+ Điểm thái độ học tập: \n+ Điểm tiểu luận:  \n+ Điểm kiểm tra giữa học phần: 30%\n- Điểm thi kết thúc học phần: 70%"]
[158,"Khóa 10DHCDT","Công nghệ Kỹ thuật Cơ điện tử","Kinh tế chính trị Mác – Lênin","Đáp ứng CĐR ",2,"HK2","- Đánh giá quá trình của học phần: 30%\n- Đánh giá kết thúc học phần: 70%"]
[159,"Khóa 10DHCDT","Công nghệ Kỹ thuật Cơ điện tử","Nguyên lý máy","Đáp ứng CĐR c,e",2,"HK2","- Đánh giá quá trình:\n+ Điểm thái độ học tập: 0%\n+ Điểm tiểu luận: 30%\n+ Điểm kiểm tra giữa học phần: 00%\n- Điểm thi kết thúc học phần: 70%."]
[160,"Khóa 10DHCDT","Công nghệ Kỹ thuật Cơ điện tử","Toán cao cấp A1","Đáp ứng CĐR b",3,"HK2","- Đánh giá quá trình:\n+ Điểm thái độ học tập\t: 0%\n+ Điểm tiểu luận hoặc kiểm tra\t: 30%\n-Điểm thi kết thúc học phần: 70% (Trắc nghiệm khách quan)."]
[161,"Khóa 10DHCDT","Công nghệ Kỹ thuật Cơ điện tử","Vẽ kỹ thuật cơ khí","Đáp ứng CĐR c",3,"HK2","- Đánh giá quá trình:\n+ Điểm thái độ học tập: 0%\n+ Điểm tiểu luận: 30%\n+ Điểm kiểm tra giữa học phần: 00% \n- Điểm thi kết thúc học phần: 70% "]
[162,"Khóa 08DHLCK_LT","Công nghệ Chế tạo máy","Kỹ thuật chế tạo nâng cao","Đáp ứng CĐR d,e",3,"HK1","- Đánh giá quá trình:\n+ Điểm thái độ học tập: 0%\n+ Điểm tiểu luận: 30%\n+ Điểm kiểm tra giữa học phần: 00% \n+ Điểm thi kết thúc học phần: 70%"]
[163,"Khóa 08DHLCK_LT","Công nghệ Chế tạo máy","Kỹ thuật PLC và ứng dụng","Đáp ứng CĐR e,g,i",2,"HK1","- Đánh giá quá trình:\n+ Điểm kiểm tra trên lớp: 20%\n+ Điểm tiểu luận: 30%\n+ Điểm thi kết thúc học phần: 50% "]
[164,"Khóa 08DHLCK_LT","Công nghệ Chế tạo máy","Kỹ thuật sấy","Đáp ứng CĐR d,e,h",2,"HK1","- Đánh giá quá trình:\n+ Điểm thái độ học tập: 0%\n+ Điểm tiểu luận: 20%\n+ Điểm kiểm tra giữa học phần: 30% (Trắc nghiệm chương 1 - 4)\n- Điểm thi kết thúc học phần: 50% (Trắc nghiệm chương 5 - 10)"]
[165,"Khóa 08DHLCK_LT","Công nghệ Chế tạo máy","Máy và thiết bị lạnh","Đáp ứng CĐR b,h",2,"HK1","- Đánh giá quá trình:\n+ Điểm thái độ học tập: \t0%\n+ Điểm tiểu luận: \t30%\n+ Điểm kiểm tra giữa học phần:\t0% \n+ Điểm thi kết thúc học phần: \t70% "]
[166,"Khóa 08DHLCK_LT","Công nghệ Chế tạo máy","Phương pháp nghiên cứu khoa học","Đáp ứng CĐR a,i",2,"HK1","- Đánh giá quá trình:\n+ Điểm tiểu luận: 30%\n- Điểm thi kết thúc học phần: 70% (Trắc nghiệm + Tự luận)"]
[167,"Khóa 08DHLCK_LT","Công nghệ Chế tạo máy","Quản lý dự án","Đáp ứng CĐR d,f",2,"HK1"," -Đánh giá quá trình:\n+ Điểm thái độ học tập: 00%\n+ Điểm tiểu luận, kiểm tra:  30%\n- Điểm thi kết thúc học phần: 70%"]
[168,"Khóa 08DHLCK_LT","Công nghệ Chế tạo máy","Quản trị chất lượng","Đáp ứng CĐR d,f",2,"HK1","- Đánh giá quá trình:\n+ Điểm thái độ học tập: 10 %\n+ Điểm tiểu luận: 20 %\n- Điểm thi kết thúc học phần: 70%"]
[169,"Khóa 08DHLCK_LT","Công nghệ Chế tạo máy","Quy hoạch thực nghiệm","Đáp ứng CĐR a,d",2,"HK1","- Đánh giá quá trình:\n+ Điểm thái độ học tâp: 0%\n+ Điểm tiểu luận hoặc kiểm tra: 30%\n- Điểm thi kết thúc học phần: 70% (Trắc nghiệm)."]
[170,"Khóa 08DHLCK_LT","Công nghệ Chế tạo máy","Robot công nghiệp","Đáp ứng CĐR d,g",2,"HK1","- Đánh giá quá trình:\n+ Điểm thái độ học tập: 0%\n+ Điểm tiểu luận: 50%\n+ Điểm kiểm tra giữa học phần: 0% \n+ Điểm thi kết thúc học phần: 50% "]
[171,"Khóa 08DHLCK_LT","Công nghệ Chế tạo máy","Các phương pháp gia công đặc biệt","Đáp ứng CĐR d,e,i",2,"HK2","- Đánh giá quá trình:\n+ Điểm thái độ học tập: 0%\n+ Điểm tiểu luận: 30%\n+ Điểm kiểm tra giữa học phần: 0% \n+ Điểm thi kết thúc học phần: 70% (Tự luận chương 1 - 5)"]
[172,"Khóa 08DHLCK_LT","Công nghệ Chế tạo máy","Công nghệ CNC","Đáp ứng CĐR b,d,e",2,"HK2","- Đánh giá quá trình:\n + Điểm thái độ học tập: 0%\n + Điểm tiểu luận, bài tập: 50%\n- Điểm thi kết thúc học phần: 50%."]
[173,"Khóa 08DHLCK_LT","Công nghệ Chế tạo máy","Kỹ thuật cảm biến","Đáp ứng CĐR d,h",2,"HK2","- Đánh giá quá trình:\n+ Điểm thái độ học tập: 0%\n+ Điểm tiểu luận: 30%\n+ Điểm kiểm tra giữa học phần:  \n+ Điểm thi kết thúc học phần: 70% "]
[174,"Khóa 08DHLCK_LT","Công nghệ Chế tạo máy","Máy chế biến nông sản - thực phẩm","Đáp ứng CĐR b,d,e",2,"HK2","- Đánh giá quá trình:\n+ Điểm thái độ học tập: 0%\n+ Điểm tiểu luận: 30%\n+ Điểm kiểm tra giữa học phần: 00% \n+ Điểm thi kết thúc học phần: 70% (Tự luận, chương 1 - 12)"]
[175,"Khóa 08DHLCK_LT","Công nghệ Chế tạo máy","Quản lý và kỹ thuật bảo trì công nghiệp","Đáp ứng CĐR c,g",2,"HK2","- Đánh giá quá trình:\n + Điểm thái độ học tập: 0%\n + Điểm tiểu luận: 30%\n+ Điểm thi kết thúc học phần: 70%."]
[176,"Khóa 08DHLCK_LT","Công nghệ Chế tạo máy","Tạo mẫu nhanh","Đáp ứng CĐR d,e",2,"HK2","- Đánh giá quá trình:\n+ Điểm thái độ học tập: 0%\n+ Điểm tiểu luận: 30%\n+ Điểm kiểm tra giữa học phần: 0% \n+ Điểm thi kết thúc học phần: 70% (Tự luận chương 1 - 8)"]
[177,"Khóa 08DHLCK_LT","Công nghệ Chế tạo máy","Thiết kế khuôn mẫu","Đáp ứng CĐR a,e",2,"HK2","- Đánh giá quá trình:\n+ Điểm thái độ học tập: 0%\n+ Điểm tiểu luận: 30%\n+ Điểm kiểm tra giữa học phần: 0% \n+ Điểm thi kết thúc học phần: 70% "]

{"sheet":"D.Giáo trình ...","index":4,"n_rows":13,"n_cols":14,"rows_kept":13,"cut":false,"hidden":false,"merged":[[0,0,0,11],[1,0,1,11],[4,0,5,0],[4,2,5,2],[4,3,4,5],[4,6,5,6],[4,11,5,11],[4,7,4,10],[4,1,5,1],[3,2,3,5]]}
["CÔNG KHAI THÔNG TIN CHẤT LƯỢNG ĐÀO TẠO THỰC TẾ CỦA CƠ SỞ GIÁO DỤC ĐẠI HỌC\nNăm học 2019 - 2020",null,null,null,null,null,null,null,null,null,null,null,null,"ïTrở về\nDanh mục"]
["D. Công khai thông tin về giáo trình, tài liệu tham khảo do cơ sở giáo dục tổ chức biên soạn"]
[]
["Đơn vị:",null,{"$f":"'A.Qui mô'!C4","v":"Khoa Công nghệ Cơ khí"}]
["STT","Ngành","Tên giáo trình, tài liệu tham khảo (kể cả giáo trình điện tử)","Chủ biên và các thành viên",null,null,"Năm xuất bản","Phân loại sách (đánh dấu x)",null,null,null,"Kế hoạch soạn thảo giáo trình, tài liệu tham khảo (kể cả giáo trình điện tử)"]
[null,null,null,"Mã số CBVC","Họ và tên","Chủ biên\n(đánh dấu x)",null,"Chuyên khảo","Giáo trình","Tham khảo","Hướng dẫn"]
[]
[1,"Công nghệ Chế tạo máy","Sức bền vật liệu","01003029","Nguyễn Hữu Thọ","x",2019,"x"]
[2,"Công nghệ Chế tạo máy","Sức bền vật liệu","01003025","Lê Thể Truyền",null,2019]
[3,"Công nghệ Chế tạo máy","Sức bền vật liệu","01003016","Đinh Lê Cao Kỳ",null,2019]
[4,"Công nghệ Chế tạo máy","Dung sai lắp ghép và kỹ thuật đo lường","01017003","Võ Tuyển","x",2019,"x"]
[5,"Công nghệ Chế tạo máy","Dung sai lắp ghép và kỹ thuật đo lường","01003020","Hồ Thị Mỹ Nữ",null,2019]
[6,"Công nghệ Chế tạo máy","Dung sai lắp ghép và kỹ thuật đo lường","01003016","Đinh Lê Cao Kỳ",null,2019]

{"sheet":"E.Đồ án...","index":5,"n_rows":294,"n_cols":11,"rows_kept":294,"cut":false,"hidden":false,"merged":[[0,0,0,9],[1,0,1,9],[4,9,5,9],[4,7,4,8],[4,0,5,0],[4,1,5,1],[4,2,5,2],[4,3,5,3],[4,5,5,6],[3,2,3,6],[4,4,5,4]]}
["CÔNG KHAI THÔNG TIN CHẤT LƯỢNG ĐÀO TẠO THỰC TẾ CỦA CƠ SỞ GIÁO DỤC ĐẠI HỌC\nNăm học 2019 - 2020",null,null,null,null,null,null,null,null,null,"ïTrở về\nDanh mục"]
["E. Công khai thông tin về đồ án, khóa luận, luận văn, luận án tốt nghiệp"]
[]
["Đơn vị:",null,{"$f":"'A.Qui mô'!C4","v":"Khoa Công nghệ Cơ khí"}]
["STT","Khóa","Ngành","Tên đề tài","MSSV","Họ và tên người thực hiện",null,"Người hướng dẫn",null,"Nội dung tóm tắt"]
[null,null,null,null,null,null,null,"Mã số CBVC","Họ và tên"]
[]
[1,"Khóa 07DHCK","Công nghệ Chế tạo máy","Nghiên cứu, tính toán hệ thống cơ khí  máy ép nước thanh long năng suất 20kg/giờ ","2003160111","LÊ CAM","BUỐL","01003007","Đặng Văn Hải","Nghiên cứu, tính toán hệ thống cơ khí  máy ép nước thanh long năng suất 20kg/giờ "]
[2,"Khóa 07DHCK","Công nghệ Chế tạo máy","Nghiên cứu, tính toán hệ thống cơ khí  máy ép viên thức ăn gia cầm  năng suất 10kg/giờ  ","2003160112","PHẠM QUANG","CAO","01003007","Đặng Văn Hải","Nghiên cứu, tính toán hệ thống cơ khí  máy ép viên thức ăn gia cầm  năng suất 10kg/giờ  "]
[3,"Khóa 07DHCK","Công nghệ Chế tạo máy","Nghiên cứu, tính toán hệ thống cơ khí  máy sấy thăng hoa năng suất 2kg/mẻ  ","2003160010","NGUYỄN HUY","CHIẾN","01003007","Đặng Văn Hải","Nghiên cứu, tính toán hệ thống cơ khí  máy làm bún  năng suất 10kg/giờ  "]
[4,"Khóa 07DHCK","Công nghệ Chế tạo máy","Nghiên cứu, tính toán hệ thống điện điều khiển máy ép viên thức ăn gia cầm  năng suất 10kg/giờ  ","2003160125","TRỊNH LÊ","DUY","01003007","Đặng Văn Hải","Nghiên cứu, tính toán hệ thống điện điều khiển máy ép viên thức ăn gia cầm  năng suất 10kg/giờ  "]
[5,"Khóa 07DHCK","Công nghệ Chế tạo máy","Nghiên cứu, tính toán hệ thống điện điều khiển máy sấy thăng hoa năng suất 2kg/mẻ  ","2003160014","LÊ ĐỖ TỊNH","ĐÌNH","01003007","Đặng Văn Hải","Nghiên cứu, tính toán hệ thống điện điều khiển máy làm bún  năng suất 10kg/giờ "]
[6,"Khóa 07DHCK","Công nghệ Chế tạo máy","Nghiên cứu, tính toán, chế tạo  máy ép viên thức ăn gia cầm  năng suất 10kg/giờ ","2003160133","HUỲNH ĐẠI","HẢI","01003007","Đặng Văn Hải","Nghiên cứu, tính toán, chế tạo  máy ép viên thức ăn gia cầm  năng suất 10kg/giờ "]
[7,"Khóa 07DHCK","Công nghệ Chế tạo máy","Nghiên cứu, tính toán hệ thống điện điều khiển máy ép nước thanh long năng suất 20kg/giờ ","2003160166","ĐINH NHẬT","KHÁNH","01003007","Đặng Văn Hải","Nghiên cứu, tính toán hệ thống điện điều khiển máy ép nước thanh long năng suất 20kg/giờ "]
[8,"Khóa 07DHCK","Công nghệ Chế tạo máy","Nghiên cứu, tính toán, chế tạo  máy sấy thăng hoa năng suất 2kg/mẻ  ","2003160169","LÊ HUỲNH MINH","KHOA","01003007","Đặng Văn Hải","Nghiên cứu, tính toán, chế tạo  máy làm bún  năng suất 10kg/giờ"]
[9,"Khóa 07DHCK","Công nghệ Chế tạo máy","Nghiên cứu, tính toán lắp ráp hệ thống điện máy ép viên thức ăn gia cầm  năng suất 10kg/giờ ","2003160171","ĐẶNG DUY","KHƯƠNG","01003007","Đặng Văn Hải","Nghiên cứu, tính toán lắp ráp hệ thống điện máy ép viên thức ăn gia cầm  năng suất 10kg/giờ "]
[10,"Khóa 07DHCK","Công nghệ Chế tạo máy","Nghiên cứu, tính toán hệ thống cơ khí  máy ép dầu đậu phộng  năng suất 10kg/giờ  ","2003160197","TÔ HẢI","NAM","01003007","Đặng Văn Hải","Nghiên cứu, tính toán hệ thống cơ khí  máy ép dầu đậu phộng  năng suất 10kg/giờ  "]
[11,"Khóa 07DHCK","Công nghệ Chế tạo máy","Nghiên cứu, tính toán, chế tạo  máy ép nước thanh long năng suất 20kg/giờ ","2003160202","VĂN TẤN","NGỌC","01003007","Đặng Văn Hải","Nghiên cứu, tính toán, chế tạo  máy ép nước thanh long năng suất 20kg/giờ "]
[12,"Khóa 07DHCK","Công nghệ Chế tạo máy","Nghiên cứu, tính toán lắp ráp hệ thống điện máy ép nước thanh long năng suất 20kg/giờ ","2003160203","DƯ LÂM","NGUYỄN","01003007","Đặng Văn Hải","Nghiên cứu, tính toán lắp ráp hệ thống điện máy ép nước thanh long năng suất 20kg/giờ "]
[13,"Khóa 07DHCK","Công nghệ Chế tạo máy","Nghiên cứu, tính toán, thiết kế  máy sấy  năng suất 10kg/giờ  ","2003160055","BÙI ĐỨC","NHƯ","01003007","Đặng Văn Hải","Nghiên cứu, tính toán, thiết kế  cơ khí máy sấy  năng suất 10kg/giờ "]
[14,"Khóa 07DHCK","Công nghệ Chế tạo máy","Nghiên cứu, tính toán, thiết kế  máy sấy  năng suất 10kg/giờ ","2003160242","NGUYỄN TRUNG","TÂN","01003007","Đặng Văn Hải","Nghiên cứu, tính toán, thiết kế  hệ thống nhiệt máy sấy  năng suất 10kg/giờ "]
[15,"Khóa 07DHCK","Công nghệ Chế tạo máy","Nghiên cứu, tính toán hệ thống điện điều khiển máy ép dầu đậu phộng  năng suất 10kg/giờ  ","2003160244","NGUYỄN VĂN","TẤN","01003007","Đặng Văn Hải","Nghiên cứu, tính toán hệ thống điện điều khiển máy ép dầu đậu phộng  năng suất 10kg/giờ  "]
[16,"Khóa 07DHCK","Công nghệ Chế tạo máy","Nghiên cứu, tính toán, thiết kế  máy sấy  năng suất 10kg/giờ ","2003160097","TRẦN VĂN","THỐNG","01003007","Đặng Văn Hải","Nghiên cứu, tính toán, thiết kế  hệ thống điện máy sấy  năng suất 10kg/giờ "]
[17,"Khóa 07DHCK","Công nghệ Chế tạo máy","Nghiên cứu, tính toán lắp ráp hệ thống điện máy sấy thăng hoa năng suất 2kg/mẻ  ","2003160253","PHAN THÀNH","THƠ","01003007","Đặng Văn Hải","Nghiên cứu, tính toán lắp ráp hệ thống điện máy làm bún  năng suất 10kg/giờ "]
[18,"Khóa 07DHCK","Công nghệ Chế tạo máy","Nghiên cứu, tính toán, thiết kế  máy sấy  năng suất 10kg/giờ ","2003160087","VÕ THẾ","TRUYỀN","01003007","Đặng Văn Hải","Nghiên cứu, tính toán,chế tạo máy sấy  năng suất 10kg/giờ "]
[19,"Khóa 07DHCK","Công nghệ Chế tạo máy","Nghiên cứu, tính toán, chế tạo  máy ép viên thức ăn gia cầm  năng suất 10kg/giờ ","2003160272","HỒ CÔNG","TRỰC","01003007","Đặng Văn Hải","Nghiên cứu, tính toán, chế tạo  máy ép viên thức ăn gia cầm  năng suất 10kg/giờ "]
[20,"Khóa 07DHCK","Công nghệ Chế tạo máy","Thiết kế máy cuộn hoa nhựa trang trí","2003150112","Hồ Lục","Dương","01003016","Đinh Lê Cao Kỳ","Phân tích máy cuộn hoa nhựa trang trí"]
[21,"Khóa 07DHCK","Công nghệ Chế tạo máy","Thiết kế máy vô hộp giấy cho sản phẩm dạng chai","2003160121","NGUYỄN KHÁNH","DƯƠNG","01003016","Đinh Lê Cao Kỳ","Thiết kế cơ cấu máy cuộn hoa nhựa trang trí"]
[22,"Khóa 07DHCK","Công nghệ Chế tạo máy","Tính toán máy vô hộp giấy cho sản phẩm dạng chai","2003160013","VÕ QUỐC","ĐẠT","01003016","Đinh Lê Cao Kỳ","Chế tạo cơ cấu cuộn hoa nhựa trang trí"]
[23,"Khóa 07DHCK","Công nghệ Chế tạo máy","Chế tạo máy vô hộp giấy cho sản phẩm dạng chai","2003160120","TRẦN VĂN","ĐÌNH","01003016","Đinh Lê Cao Kỳ","Thiết kế cơ cấu vô hộp giấy cho sản phẩm dạng chai"]
[24,"Khóa 07DHCK","Công nghệ Chế tạo máy","Tính toán máy cuộn hoa nhựa trang trí","2003150039","Phạm Ngọc","Hải","01003016","Đinh Lê Cao Kỳ","Tính toán cơ cấu vô hộp giấy cho sản phẩm dạng chai"]
[25,"Khóa 07DHCK","Công nghệ Chế tạo máy","Thiết kế máy xếp vỏ hộp giấy","2003140280","Nguyễn Ngọc","Hảo","01003016","Đinh Lê Cao Kỳ","Chế tạo cơ cấu vô hộp giấy cho sản phẩm dạng chai"]
[26,"Khóa 07DHCK","Công nghệ Chế tạo máy","Chế tạo máy cuộn hoa nhựa trang trí","2003150167","Trần Ngọc","Hiếu","01003016","Đinh Lê Cao Kỳ","Thiết kế cơ cấu xếp vỏ hộp giấy"]
[27,"Khóa 07DHCK","Công nghệ Chế tạo máy","Chế tạo máy xếp vỏ hộp giấy","2003160159","TRẦN QUANG","HUY","01003016","Đinh Lê Cao Kỳ","Chế tạo cơ cấu xếp vỏ hộp giấy"]
[28,"Khóa 07DHCK","Công nghệ Chế tạo máy","Thiết kế, chế tạo hộp giảm tốc khai triển bằng in 3D","2003130061","Bùi Đức","Quang","01003016","Đinh Lê Cao Kỳ","Nghiên cứu in 3D cho các chi tiết hộp giảm tôc"]
[29,"Khóa 07DHCK","Công nghệ Chế tạo máy","Thiết kế, chế tạo hộp giảm tốc đồng trục bằng in 3D","2003130065","Phạm","Vỹ","01003016","Đinh Lê Cao Kỳ","Nghiên cứu in 3D cho các chi tiết hộp giảm tôc"]
[30,"Khóa 07DHCK","Công nghệ Chế tạo máy","Thiết kế và chế tạo phần cấp nhiệt cho hệ thống sấy bơm nhiệt ","2003160116","TRẦN QUANG","ĐẠI","01003020\n01003009","Hồ Thị Mỹ Nữ\nNguyễn Thị Út Hiền","Thực hiện khảo sát, tính toán tải nhiệt, thiết kế và chế tạo   phần cấp nhiệt cho hệ thống sấy bơm nhiệt "]
[31,"Khóa 07DHCK","Công nghệ Chế tạo máy","Thiết kế và chế tạo phần tách ẩm cho hệ thống sấy bơm nhiệt ","2003160135","NGUYỄN QUỐC","HÀO","01003020\n01003009","Hồ Thị Mỹ Nữ\nNguyễn Thị Út Hiền","Thực hiện khảo sát, tính toán tải lạnh, thiết kế và chế tạo phần tách ẩm cho hệ thống sấy bơm nhiệt "]
[32,"Khóa 07DHCK","Công nghệ Chế tạo máy","Thiết kế hệ thống sấy và khảo nghiệm chế độ sấy bơ ở nhiệt độ 70 [độ C]","2003160310","PHẠM KHANG","HUY","01003020\n01003009","Hồ Thị Mỹ Nữ\nNguyễn Thị Út Hiền","Thiết kế hệ thống sấy và khảo nghiệm chế độ sấy bơ ở nhiệt độ 70 [độ C] để xác định ảnh hưởng của nhiệt độ, độ ẩm theo theo thời gian "]
[33,"Khóa 07DHCK","Công nghệ Chế tạo máy","Thiết kế và chế tạo phần buồng sấy cho hệ thống sấy bơm nhiệt ","2003160258","LÊ ĐÀO QUỐC","TIẾN","01003020\n01003009","Hồ Thị Mỹ Nữ\nNguyễn Thị Út Hiền"," Từ công suất sấy và chọn thiết bị sấy phù hợp tiến hành thiết kế và chế tạo phần buồng sấy cho hệ thống sấy bơm nhiệt "]
[34,"Khóa 07DHCK","Công nghệ Chế tạo máy","Thiết kế hệ thống sấy và khảo nghiệm chế độ sấy bơ ở nhiệt độ 60 [độ C]","2003160277","NGUYỄN VĂN NGỌC","TÚ","01003020\n01003009","Hồ Thị Mỹ Nữ\nNguyễn Thị Út Hiền","Từ công suất sấy tiến hành thiết kế hệ thống sấy phù hợp và khảo nghiệm chế độ sấy bơ ở nhiệt độ 60 [độ C] để xác định ảnh hưởng của nhiệt độ, độ ẩm theo theo thời gian "]
[35,"Khóa 07DHCK","Công nghệ Chế tạo máy","Thiết kế hệ thống sấy và khảo nghiệm chế độ sấy bơ ở nhiệt độ 80 [độ C]","2003160279","NGUYỄN NHẬT","TÚ","01003020\n01003009","Hồ Thị Mỹ Nữ\nNguyễn Thị Út Hiền","Từ công suất sấy tiến hành thiết kế hệ thống sấy phù hợp và khảo nghiệm chế độ sấy bơ ở nhiệt độ 80 [độ C] để xác định ảnh hưởng của nhiệt độ, độ ẩm theo theo thời gian "]
[36,"Khóa 07DHCK","Công nghệ Chế tạo máy","Thiết kế hệ thống sấy và khảo nghiệm chế độ sấy bơ ở nhiệt độ 65 [độ C]","2003160255","TRẦN CÔNG MINH","THUẦN","01003020\n01003009","Hồ Thị Mỹ Nữ\nNguyễn Thị Út Hiền","Từ công suất sấy tiến hành thiết kế hệ thống sấy phù hợp và khảo nghiệm chế độ sấy bơ ở nhiệt độ 65 [độ C] để xác định ảnh hưởng của nhiệt độ, độ ẩm theo theo thời gian "]
[37,"Khóa 07DHCK","Công nghệ Chế tạo máy","Thiết kế và thi công hệ thống điện cho hệ thống sấy bơm nhiệt ","2003160266","BÙI TRẦN QUỐC","TRIỀU","01003020\n01003009","Hồ Thị Mỹ Nữ\nNguyễn Thị Út Hiền","Dựa vào hệ thống hệ thống sấy, khảo sát các thiết bị điện tiến hành thiết kế và thi công hệ thống điện cho hệ thống sấy bơm nhiệt "]
[38,"Khóa 07DHCK","Công nghệ Chế tạo máy","Nghiên cứu thiết máy cắt dây Oring theo kich thước cho trước","2003160153","CAO CHU","HOÀNG","01003018","Huỳnh Văn Nam","Tìm hiểu các máy cắt dây điện hiện nay, lựa chọn phương án thích hợp, thiết kế bộ dao cắt"]
[39,"Khóa 07DHCK","Công nghệ Chế tạo máy","Nghiên cứu mô phỏng dòng chảy trong khuôn ép phun","2003160161","LÊ HOÀI","KHANH","01003018","Huỳnh Văn Nam","Tìm hiểu kết cấu khuôn nhựa, nghiên cứu hình dạng của chi tiết ảnh hưởng đến dòng chảy nhựa trong khuôn, mô phỏng dòng chảy nhựa bằng phầm mềm CAD/CAM"]
[40,"Khóa 07DHCK","Công nghệ Chế tạo máy","Nghiên cứu ảnh hưởng nhiệt độ trong khuôn ép phun","2003160190","ĐINH CÔNG","MINH","01003018","Huỳnh Văn Nam","Nghiên cứu kết cấu khuôn nhựa một tấm, mô phỏng nhiệt độ các vị trí trong lòng khuôn bằng phần mềm CAD/CAM"]
[41,"Khóa 07DHCK","Công nghệ Chế tạo máy","Nghiên cứu thiết kế kết cấu khuôn chi tiết dạng càng","2003160192","MAI SỸ","MINH","01003018","Huỳnh Văn Nam","Thiết kế mặt phân khuôn chi tiết dạng càng, thiết kế ty đẩy, thiết kế đường nước làm mát"]
[42,"Khóa 07DHCK","Công nghệ Chế tạo máy","Nghiên cứu thiết kế kết cấu khuôn chi tiết thân van","2003160526","NGUYỄN TẤN","PHÁT","01003018","Huỳnh Văn Nam","Thiết kế mặt phân khuôn, thiết kế ty đẩy, thiết kế đường nước làm mát"]
[43,"Khóa 07DHCK","Công nghệ Chế tạo máy","Nghiên cứu chế tạo khuôn chi tiết dạng càng","2003160215","TRẦN PHÚ","PHI","01003018","Huỳnh Văn Nam","Vẽ sản phẩm trên phần mềm CADCAM, thiết kế khuôn đực, khuôn cái, gia công chế tạo và lắp khuôn"]
[44,"Khóa 07DHCK","Công nghệ Chế tạo máy","Nghiên cứu mô phỏng ứng suất lòng khuôn\n chi tiết thân van","2003160402","TRÀ MINH","QUỐC","01003018","Huỳnh Văn Nam","Tìm hiểu biến dạng của thép SKD, tính áp suất tròn lòng khuôn trong quá trình ép phun, mô phỏng ứng suất lòng khuôn bằng phần mềm CADCAM"]
[45,"Khóa 07DHCK","Công nghệ Chế tạo máy","Nghiên cứu gia công chế tạo khuôn đực chi tiết thân van","2003160236","NGUYỄN MINH","TÀI","01003018","Huỳnh Văn Nam","Chọn phương án gia công, thiết kế đồ gá, lặp trình gia công khuôn"]
[46,"Khóa 07DHCK","Công nghệ Chế tạo máy","Nghiên cứu mô phỏng dòng chảy nhựa chi tiết dạng càng","2003160069","NGUYỄN VIẾT TRIỀU","TÂN","01003018","Huỳnh Văn Nam","Tìm hiểu kết cấu khuôn nhựa, nghiên cứu hình dạng của chi tiết ảnh hưởng đến dòng chảy nhựa trong khuôn, mô phỏng dòng chảy nhựa bằng phầm mềm CAD/CAM"]
[47,"Khóa 07DHCK","Công nghệ Chế tạo máy","Nghiên cứu  chế tạo máy cắt dây Oring theo kich thước cho trước","2003160259","TRẦN QUỐC","TIẾN","01003018","Huỳnh Văn Nam","Tìm hiểu các máy cắt dây điện hiện nay, lựa chọn phương án thích hợp, thiết kế bộ dao cắt, chế tạo và chạy thử nghiệm"]
[48,"Khóa 07DHCK","Công nghệ Chế tạo máy","Nghiên cứu gia công chế tạo khuôn cái chi tiết thân van","2003140168","Lê Thắng","Toàn","01003018","Huỳnh Văn Nam","Chọn phương án gia công, thiết kế đồ gá, lặp trình gia công khuôn"]
[49,"Khóa 07DHCK","Công nghệ Chế tạo máy","Nghiên cứu mô phỏng ứng suất lòng khuôn\n chi tiết thân van","2003160245","NGUYỄN QUỐC","THẮNG","01003018","Huỳnh Văn Nam","Tìm hiểu kết cấu khuôn nhựa, nghiên cứu hình dạng của chi tiết ảnh hưởng đến dòng chảy nhựa trong khuôn, mô phỏng dòng chảy nhựa bằng phầm mềm CAD/CAM"]
[50,"Khóa 07DHCK","Công nghệ Chế tạo máy","Nghiên cứu gia công chế tạo khuôn cái chi tiết lá chắn thân van","2003150138","Lê Bảo","Thắng","01003018","Huỳnh Văn Nam","Chọn phương án gia công, thiết kế đồ gá, lặp trình gia công khuôn"]
[51,"Khóa 07DHCK","Công nghệ Chế tạo máy","Nghiên cứu mô phỏng ứng suất lòng khuôn\n chi tiết lá chắn thân van","2003150073","Nguyễn Duy","Thế","01003018","Huỳnh Văn Nam","Tìm hiểu biến dạng của thép SKD, tính áp suất tròn lòng khuôn trong quá trình ép phun, mô phỏng ứng suất lòng khuôn bằng phần mềm CADCAM"]
[52,"Khóa 07DHCK","Công nghệ Chế tạo máy","Nghiên cứu mô phỏng ứng suất trong khuôn ép phun","2003160531","DƯƠNG TRẦN MINH","THOẠI","01003018","Huỳnh Văn Nam","Tìm hiểu biến dạng của thép SKD, tính áp suất tròn lòng khuôn trong quá trình ép phun, mô phỏng ứng suất lòng khuôn bằng phần mềm CADCAM"]
[53,"Khóa 07DHCK","Công nghệ Chế tạo máy","Nghiên cứu mô phỏng ứng suất lòng khuôn\n chi tiết thân van","2003160076","NGUYỄN THIỆN","THUẬN","01003018","Huỳnh Văn Nam","Tìm hiểu biến dạng của thép SKD, tính áp suất tròn lòng khuôn trong quá trình mô phỏng ứng suất lòng khuôn bằng phần mềm CADCAM"]
[54,"Khóa 07DHCK","Công nghệ Chế tạo máy","Nghiên cứu ảnh hưởng kết cấu của chi tiết đến dòng chảy\n trong khuôn ép phun","2003160084","HUỲNH PHÚ","TRỌNG","01003018","Huỳnh Văn Nam","Tìm hiểu độ dày, bán kính cong, độ giao cắt của các nhánh ảnh hưởng đến dòng chảy trong lòng khuôn"]
[55,"Khóa 07DHCK","Công nghệ Chế tạo máy","Nghiên cứu mô phỏng phân bố nhiệt độ lòng khuôn\n chi tiết lá chắn thân van","2003150129","Nguyễn Văn","Vinh","01003018","Huỳnh Văn Nam","Nghiên cứu kết cấu khuôn nhựa một tấm, mô phỏng nhiệt độ các vị trí trong lòng khuôn bằng phần mềm CAD/CAM"]
[56,"Khóa 07DHCK","Công nghệ Chế tạo máy","Nghiên cứu mô phỏng nhiệt trong lòng khuôn chi tiết\n dạng càng","2003160094","NGUYỄN ANH","VŨ","01003018","Huỳnh Văn Nam","Nghiên cứu kết cấu khuôn nhựa hai tấm, mô phỏng nhiệt độ các vị trí trong lòng khuôn bằng phần mềm CAD/CAM"]
[57,"Khóa 07DHCK","Công nghệ Chế tạo máy","Thiết kế bộ phận cấp bột máy làm bánh tráng bò bia","2003160506","CAO XUÂN","DIỆU","01003025","Lê Thể Truyền","Thiết kế bộ phận bơm và trải đều bột dạng lỏng"]
[58,"Khóa 07DHCK","Công nghệ Chế tạo máy","Thiết kế bộ gắp sản phẩm mềm dùng khí nén","2003160016","NGÔ HUỲNH","ĐỨC","01003025","Lê Thể Truyền","Thiết kế bộ gáp sản phẩm bằng khí nén"]
[59,"Khóa 07DHCK","Công nghệ Chế tạo máy","Thiết kế lô gia nhiệt làm bánh tráng bò bía","2003160144","ĐOÀN QUỐC","HIỆP","01003025","Lê Thể Truyền","Thiết kế lô nhiệt đảm bảo tính phân bố nhie654t đồng đều trên bề mặt lô"]
[60,"Khóa 07DHCK","Công nghệ Chế tạo máy","Thiết kế tay gắp sản phẩm 4 thành phần cho robot Dettal","2003150041","Đặng Quang","Phú","01003025","Lê Thể Truyền","Thiết kế tay gắp sản phẩm 4 thành phần cho robot Dettal"]
[61,"Khóa 07DHCK","Công nghệ Chế tạo máy","Thiết kế bộ điều khiển khí nén cho tay gắp sản phẩm mềm","2003160224","NGUYỄN VĂN","PHƯƠNG","01003025","Lê Thể Truyền",{"$f":"$D$68","v":"Thiết kế bộ điều khiển khí nén cho tay gắp sản phẩm mềm"}]
[62,"Khóa 07DHCK","Công nghệ Chế tạo máy","Nghiên cứu động học robot Delta","2003150070","Huỳnh Xuân","Quy","01003025","Lê Thể Truyền",{"$f":"$D$69","v":"Nghiên cứu động học robot Delta"}]
[63,"Khóa 07DHCK","Công nghệ Chế tạo máy","Thiết kế cơ khí robot Delta","2003150202","Vũ Quang","Sắc","01003025","Lê Thể Truyền",{"$f":"$D$70","v":"Thiết kế cơ khí robot Delta"}]
[64,"Khóa 07DHCK","Công nghệ Chế tạo máy","Thiết kế bộ cắt bánh liên tục","2003160281","LÊ XUÂN","TÚ","01003025","Lê Thể Truyền","Chế tạo bộ cắt bành liên tục dạng màng mỏng"]
[65,"Khóa 07DHCK","Công nghệ Chế tạo máy","Thiết kế cơ khí cánh tay robot gắp sản phẩm mềm","2003160278","ĐỒNG MINH","TÚ","01003025","Lê Thể Truyền","Thiết kế cơ khí cánh tay robot gắp sản phẩm mềm"]
[66,"Khóa 07DHCK","Công nghệ Chế tạo máy","Thiết kế bộ đếm và xếp bánh tự động","2003160539","PHẠM KHÁNH","TRÌNH","01003025","Lê Thể Truyền","Vẽ sản phẩm trên phần mềm CADCAM, thiết kế khuôn đực, khuôn cái, gia công chế tạo và lắp khuôn"]
[67,"Khóa 07DHCK","Công nghệ Chế tạo máy","Thiết kế bộ điều khiển cánh tay robot gắp sản phẩm","2003160275","TRẦN MINH","TRƯỜNG","01003025","Lê Thể Truyền",{"$f":"$D$74","v":"Thiết kế bộ điều khiển cánh tay robot gắp sản phẩm"}]
[68,"Khóa 07DHCK","Công nghệ Chế tạo máy","Thiết kế mô hình máy in 3D thực phẩm","2003160151","NGUYỄN HUY","HOÀNG","01003027","Nguyễn Hữu Thọ","Nghiên cứu kết cấu cơ khí, hình thành ý tưởng về máy in 3D thực phẩm, tìm hiểu các dạng thực phẩm để in"]
[69,"Khóa 07DHCK","Công nghệ Chế tạo máy","Thiết kế cổng trục tải trọng 5 tấn","2003160181","NGUYỄN NGỌC HOÀNG","LƯƠNG","01003027","Nguyễn Hữu Thọ","Nghiên cứu kết cấu cơ khí của cổng trục, kết cấu các cụm bánh xe, nâng vật, cáp nâng, tính toán và lựa chọn động cơ."]
[70,"Khóa 07DHCK","Công nghệ Chế tạo máy","Mô phỏng cổng trục tải trọng 5 tấn","2003140227","Lê Đình","Nam","01003027","Nguyễn Hữu Thọ","Nghiên cứu kết cấu cơ khí của cổng trục, kết cấu các cụm bánh xe, nâng vật, cáp nâng, tính toán và lựa chọn động cơ. Thực hiện thiết kế trên Autodesk Inventor"]
[71,"Khóa 07DHCK","Công nghệ Chế tạo máy","Thiết kế cần cẩu mini bán tự động cỡ nhỏ","2003160209","TRẦN YẾN","NHI","01003027","Nguyễn Hữu Thọ","Nghiên cứu kết cấu cơ khí của cần cẩu mini, kết cấu các cơ cấu nâng vật, cáp nâng, tính toán và lựa chọn động cơ."]
[72,"Khóa 07DHCK","Công nghệ Chế tạo máy","Thực nghiệm và đánh giá cần cẩu mini bán tự động cỡ nhỏ",2003160220,"ĐỖ GIA","PHONG","01003027","Nguyễn Hữu Thọ","Thiết kế cơ khí và thực nghiệm chế tạo mô hình cần cẩu mini."]
[73,"Khóa 07DHCK","Công nghệ Chế tạo máy","Mô phỏng mô hình máy in 3D thực phẩm","2003160216","NGUYỄN TRẦN","PHONG","01003027","Nguyễn Hữu Thọ","Nghiên cứu kết cấu cơ khí, hình thành ý tưởng về máy in 3D thực phẩm, tìm hiểu các dạng thực phẩm để in, thiết kế máy in"]
[74,"Khóa 07DHCK","Công nghệ Chế tạo máy","Thiết kế hệ thống cơ khí máy rải thức ăn cho cá","2003160059","PHẠM DUY","PHONG","01003027","Nguyễn Hữu Thọ","Thiết kế cơ khí thực hiện rải thức ăn cho cá phụ vụ ở các ao hồ lớn."]
[75,"Khóa 07DHCK","Công nghệ Chế tạo máy","Đánh giá kết quả mô phỏng cổng trục tải trọng 5 tấn","2003160229","NGUYỄN VĂN","SANG","01003027","Nguyễn Hữu Thọ","Nghiên cứu kết cấu cơ khí của cổng trục, kết cấu các cụm bánh xe, nâng vật, cáp nâng, tính toán và lựa chọn động cơ."]
[76,"Khóa 07DHCK","Công nghệ Chế tạo máy","Chế tạo cần cẩu mini bán tự động cỡ nhỏ","2003160232","NGUYỄN HOÀNG","SƠN","01003027","Nguyễn Hữu Thọ","Nghiên cứu kết cấu cơ khí của cần cẩu mini, kết cấu các cơ cấu nâng vật, cáp nâng, tính toán và lựa chọn động cơ."]
[77,"Khóa 07DHCK","Công nghệ Chế tạo máy","Mô phỏng cần cẩu mini bán tự động cỡ nhỏ","2003160237","NGUYỄN HỮU TẤN","TÀI","01003027","Nguyễn Hữu Thọ","Nghiên cứu kết cấu cơ khí của cần cẩu mini, kết cấu các cơ cấu nâng vật, cáp nâng, tính toán và lựa chọn động cơ."]
[78,"Khóa 07DHCK","Công nghệ Chế tạo máy","Chế tạo mô hình máy in 3D thực phẩm","2003160269","LÊ DUY","TRỌNG","01003027","Nguyễn Hữu Thọ","Nghiên cứu kết cấu cơ khí, hình thành ý tưởng về máy in 3D thực phẩm, tìm hiểu các dạng thực phẩm để in, thiết kế máy in. Kết cấu máy in tổng thể"]
[79,"Khóa 07DHCK","Công nghệ Chế tạo máy","Thực nghiệm và đánh giá mô hình máy in 3D thực phẩm","2003160306","VÕ PHÚC","VIỆT","01003027","Nguyễn Hữu Thọ","Nghiên cứu kết cấu cơ khí, hình thành ý tưởng về máy in 3D thực phẩm, tìm hiểu các dạng thực phẩm để in, thiết kế máy in. Các thông số của thực phẩm in"]
[80,"Khóa 07DHCK","Công nghệ Chế tạo máy","Tìm hiểu nguyên lý và kết cấu robot AGP","2003160141","PHẠM VĂN","HẬU","01002021","Nguyễn Lê Thái","Thiết kế cơ khí, vẽ các bản vẽ 2D và 3D cho máy in thực phẩm, sau đó thực nghiệm chế tạo và đánh giá cải tiến."]
[81,"Khóa 07DHCK","Công nghệ Chế tạo máy","Thiết kế mô hình robot AGP","2003160149","NGÔ MINH","HÒA","01002021","Nguyễn Lê Thái","Thiết kế cơ khí, vẽ các bản vẽ 2D và 3D cho máy in thực phẩm, sau đó thực nghiệm chế tạo và đánh giá cải tiến."]
[82,"Khóa 07DHCK","Công nghệ Chế tạo máy","Chế tạo mô hình robot AGP","2003160053","NGUYỄN CHÍ","NGOAN","01002021","Nguyễn Lê Thái","Thực nghiệm chế tạo mô hình máy in 3D thực phẩm"]
[83,"Khóa 07DHCK","Công nghệ Chế tạo máy","Tính toán cơ sở lý thuyết các phương án và chọn phương án tối ưu thiết kế máy tạo chả cá dạng viên dành cho hộ gia đình","2003160109","TRẦN VĂN","BẢO","01003012","Nguyễn Minh Huy","Thiết kế thang máy 4 tầng\n- Lựa chọn phương pháp thực hiện\n- Thiết kế hệ thống\n- Xây dựng mô hình\n- Viết chương trình điều khiển"]
[84,"Khóa 07DHCK","Công nghệ Chế tạo máy","Nghiên cứu các thông số lý thuyết trong quá trình “Chế tạo thiết bị trích xuất tinh dầu bơ nguyên chất”","2003160138","LÊ CÔNG","HẢO","01003012","Nguyễn Minh Huy","Điều khiển thang máy 4 tầng\n- Lựa chọn phương pháp thực hiện\n- Thiết kế hệ thống\n- Xây dựng mô hình\n- Viết chương trình điều khiển"]
[85,"Khóa 07DHCK","Công nghệ Chế tạo máy","Thiết kế và mô phỏng bằng phần mềm tính toán mô hình Máy tạo chả cá dạng viên dành cho hộ gia đình","2003160139","TRẦN TRUNG","HẤU","01003012","Nguyễn Minh Huy","Chế tạo thang máy 4 tầng\n- Lựa chọn phương pháp thực hiện\n- Thiết kế hệ thống\n- Xây dựng mô hình\n- Viết chương trình điều khiển"]
[86,"Khóa 07DHCK","Công nghệ Chế tạo máy","Nghiên cứa cơ sở lí thuyết và tính toán các phương án máy tách hạt macca","2003160163","NGUYỄN DUY","KHANH","01003012","Nguyễn Minh Huy","Thực nghiệm và đánh giá mô hình thang máy 4 tầng\n- Lựa chọn phương pháp thực hiện\n- Thiết kế hệ thống\n- Xây dựng mô hình\n- Viết chương trình điều khiển"]
[87,"Khóa 07DHCK","Công nghệ Chế tạo máy","Tính toán các chi tiết máy và mô phỏng bằng phần mềm tính toán  thiết bị trích xuất tinh dầu bơ nguyên chất","2003160180","NGUYỄN VĂN","LUẬN","01003012","Nguyễn Minh Huy","So sánh các phương án tối ưu, thiết kế thiết bị trích xuất tinh dầu bơ. Chọn phương án thiết kế và mô phỏng bằng phần mềm nguyên lý hoạt động và cấu tạo của máy. Tính toán bền cho từng chi tiết máy"]
[88,"Khóa 07DHCK","Công nghệ Chế tạo máy","Nghiên cứu các thông số ảnh hưởng đến quá trình trích xuất tinh dầu bơ","2003160201","NGUYỄN ĐỨC","NGHĨA","01003012","Nguyễn Minh Huy","Tìm hiểu các thông số ảnh hưởng đến quá trình trích xuất tinh dầu, nhiệt độ tối ưu tạo sản phẩm tốt nhất cho quá trình trích xuất. Nghiên cứu và điều chỉnh các thông số máy phù hợp với yêu cầu đặt ra"]
[89,"Khóa 07DHCK","Công nghệ Chế tạo máy","Tính toán và mô phỏng các chi tiết máy bằng phần mềm để thiết kế máy tách hạt macca","2003160219","LÊ HOÀNG","PHONG","01003012","Nguyễn Minh Huy","Nghiên cứu máy tách hạt macca trong nước và ngoài nước, phân tích ưu và nhược điểm, chọn phương án thiết kế máy và mô phỏng quá trình làm việc của máy và cấu tạo của máy. Tính toán bền cho từng chi tiết máy"]
[90,"Khóa 07DHCK","Công nghệ Chế tạo máy","Chế tạo và vận hành thử nghiệm mô hình máy tách hạt macca","2003160231","LÊ VĂN","SƠN","01003012","Nguyễn Minh Huy","Tính toán chọn động cơ và chọn các thông số phù hợp để chế tạo thiết bị trích xuất tinh dầu bơ. Chế tạo thiết bị và vận hành thử nghiệm thiết bị phù hợp các yêu cầu thiết kế"]
[91,"Khóa 07DHCK","Công nghệ Chế tạo máy","Tính toán và gia công các chi tiết  Máy tạo chả cá dạng viên dành cho hộ gia đình","2003160239","NGUYỄN HỮU","TÀI","01003012","Nguyễn Minh Huy","Tính toán các chi tiết máy cho phương án tối ưu máy tạo chả cá dạng viên. Mô phỏng bằng phần mềm nguyên lý hoạt động của từng chi tiết máy, gia công các chi tiết và lắp ráp cụm máy vận hành đảm bảo các thông số thiết kế"]
[92,"Khóa 07DHCK","Công nghệ Chế tạo máy","Chế tạo và chạy thử nghiệm mô hình Máy tạo chả cá dạng viên dành cho hộ gia đình","2003160276","PHẠM VĂN","TÚ","01003012","Nguyễn Minh Huy","Tính toán chọn động cơ và các chi tiết máy , dùng phần mềm mô phỏng nguyên lý hoạt động của từng chi tiết máy. Chế tạo chi tiết , lắp ráp và vận hành thử nghiệm thiết bị phù hợp các yêu cầu thiết kế"]
[93,"Khóa 07DHCK","Công nghệ Chế tạo máy","Chế tạo và vận hành thử nghiệm mô hình trích xuất tinh dầu bơ","2003160251","PHẠM XUÂN","THẾ","01003012","Nguyễn Minh Huy","Tính toán chọn động cơ và chọn các thông số phù hợp để chế tạo thiết bị trích xuất tinh dầu bơ. Chế tạo thiết bị và vận hành thử nghiệm thiết bị phù hợp các yêu cầu thiết kế"]
[94,"Khóa 07DHCK","Công nghệ Chế tạo máy","Thiết kế cải tiến cụm hệ thống cống thoát nước công cộng","2003160029","LÊ THIÊN","HOÀN","01003029","Nguyễn Ngọc Dũng","Thiết kế cải tiến cụm hệ thống cống thoát nước công cộng\n-Thiết kế cải tiến hệ cụm cống thoát nước công cộng để rác không lọt xuống cống, ngăn cản nước chảy ngược lên trên, và dễ vệ sinh thu gom chất thải trong lòng cống"]
[95,"Khóa 07DHCK","Công nghệ Chế tạo máy","Thiết kế mô phỏng cụm hệ thống thoát nước cải tiến","2003160182","NGUYỄN CÔNG","LÝ","01003029","Nguyễn Ngọc Dũng","Thiết kế mô phỏng cụm hệ thống thoát nước cải tiến\n-Mô hình hóa và mô phỏng hoạt động cụm hệ thống nước thải bằng phần mềm"]
[96,"Khóa 07DHCK","Công nghệ Chế tạo máy","Tính toán thiết kế mô hình xe tiết kiệm nhiên liệu ","2003160052","NGUYỄN HỮU","NGHĨA","01003029","Nguyễn Ngọc Dũng","Tính toán thiết kế mô hình xe tiết kiệm nhiên liệu \n- Thiết kế tổng thể xe tiết kiệm nhiên liệu tham gia cuộc thi Honda Eco"]
[97,"Khóa 07DHCK","Công nghệ Chế tạo máy","Thiết kế mô phỏng khung vỏ xe tiết kiệm nhiên liệu","2003160205","NGUYỄN THÀNH","NHÂN","01003029","Nguyễn Ngọc Dũng","Thiết kế mô phỏng khung vỏ xe tiết kiệm nhiên liệu\n- Áp dụng phần mềm tính toán mô phỏng kết cấu, dòng lưu chất mô phỏng hoạt động xe tiết kiệm nhiên liệu"]
[98,"Khóa 07DHCK","Công nghệ Chế tạo máy","Nghiên cứu tổng quan máy cuốn chả giò tự động","2003160108","ĐỖ TRƯỜNG","BẢO","01003015","Nguyễn Tấn Ken","Tìm hiểu, nghiên cứu và phân tích quy trình sản xuất bánh cuốn chả giò, đề xuất phương án chế tạo máy cuốn chả giò. "]
[99,"Khóa 07DHCK","Công nghệ Chế tạo máy","Thiết kế máy cuốn chả giò tự động trên inventer","2003160130","BÙI MINH","GIANG","01003015","Nguyễn Tấn Ken","Nghiên cứu hệ thống máy cuốn chả giò, thiết kế chi tiết máy cuốn chả giò phù hợp với yêu cầu."]
[100,"Khóa 07DHCK","Công nghệ Chế tạo máy","Nghiên cứu tổng quan hệ thống băng tải vận chuyển sản phẩm dạng sệt","2003160132","MAI VĂN","HẢI","01003015","Nguyễn Tấn Ken","Tìm hiểu, đánh giá tổng quan về hệ thống băng tải vận chuyển sản phẩm dạng sệt"]
[101,"Khóa 07DHCK","Công nghệ Chế tạo máy","Nghiên cứu tổng quan hệ thống băng tải vận chuyển sản phẩm dạng tấm mỏng","2003160023","LÊ QUANG","HẠNH","01003015","Nguyễn Tấn Ken","Tìm hiểu, đánh giá tổng quan về hệ thống băng tải vận chuyển sản phẩm dạng tấm"]
[102,"Khóa 07DHCK","Công nghệ Chế tạo máy","Thiết kế hệ thống băng tải vận chuyển sản phẩm dạng sệt trên phần mềm Inventer","2003160028","HUỲNH NHẬT","HÒA","01003015","Nguyễn Tấn Ken","Thiết kế hệ thống băng tải vận chuyển sản phẩm dạng sệt trên phần mềm Inventer"]
[103,"Khóa 07DHCK","Công nghệ Chế tạo máy","Thiết kế hệ thống băng tải vận chuyển sản phẩm dạng tấm mỏng trên phần mềm Inventer","2003160152","BÙI HUY","HOÀNG","01003015","Nguyễn Tấn Ken","Thiết kế hệ thống băng tải vận chuyển sản phẩm dạng tấm mỏng trên phần mềm Inventer"]
[104,"Khóa 07DHCK","Công nghệ Chế tạo máy","Chế tạo hệ thống băng tải vận chuyển sản phẩm dạng tấm mỏng","2003160183","NGUYỄN PHƯỚC","MẪN","01003015","Nguyễn Tấn Ken","Chế tạo và lắp ráp, vận hành hệ thống băng tải vận chuyển sản phẩm dạng tấm mỏng"]
[105,"Khóa 07DHCK","Công nghệ Chế tạo máy","Mô phỏng máy cuốn chả giò tự động trên inventer","2003160191","TRẦN THÁI","MINH","01003015","Nguyễn Tấn Ken","Mô phỏng quá trình hoạt động máy cuốn chả giò tự động trên inventer"]
[106,"Khóa 07DHCK","Công nghệ Chế tạo máy","Mô phỏng cánh tay robot manual 3 bậc tự do trên phần mềm Inventer ","2003160195","NGUYỄN XUÂN","NAM","01003015","Nguyễn Tấn Ken","Mô phỏng chuyển động giữa các khâu, khớp của cánh tay robot manual 3 bậc tự do trên phần mềm Inventer "]
[107,"Khóa 07DHCK","Công nghệ Chế tạo máy","Chế tạo cánh tay robot manual 3 bậc tự do bằng công nghệ in 3D","2003160311","HỒ ANH","NGỌC","01003015","Nguyễn Tấn Ken","Chế tạo, lắp ráp và vận hành cánh tay robot manual 3 bậc tự do bằng công nghệ in 3D"]
[108,"Khóa 07DHCK","Công nghệ Chế tạo máy","Mô phỏng hệ thống băng tải vận chuyển sản phẩm dạng sệt trên phần mềm Inventer","2003160221","LÂM THIỆN","PHÚ","01003015","Nguyễn Tấn Ken","Mô phỏng quá trình hoạt động của hệ thống băng tải vận chuyển sản phẩm dạng sệt trên phần mềm Inventer"]
[109,"Khóa 07DHCK","Công nghệ Chế tạo máy","Nghiên cứu tổng quan cánh tay robot manual 3 bậc tự do bằng công nghệ in 3D","2003160227","NGUYỄN NHẬT","QUANG","01003015","Nguyễn Tấn Ken","Nghiên cứu tổng quan và đưa ra nguyên lý hoạt động cánh tay robot manual 3 bậc tự do bằng công nghệ in 3D"]
[110,"Khóa 07DHCK","Công nghệ Chế tạo máy","Thiết kế cánh tay robot manual 3 bậc tự do trên phần mềm Inventer ","2003160225","VÕ NGUYÊN BẢO","QUÂN","01003015","Nguyễn Tấn Ken","Thiết kế cánh tay robot manual 3 bậc tự do trên phần mềm Inventer "]
[111,"Khóa 07DHCK","Công nghệ Chế tạo máy","Chế tạo mô hình máy cuốn chả giò tự động ","2003160238","TRẦN HỮU","TÀI","01003015","Nguyễn Tấn Ken","Chế tạo, lắp ráp và vận hành thực nghiệm mô hình máy cuốn chả giò tự động "]
[112,"Khóa 07DHCK","Công nghệ Chế tạo máy","Mô phỏng hệ thống băng tải vận chuyển sản phẩm dạng tấm mỏng trên phần mềm Inventer","2003160261","HUỲNH VÕ TRUNG","TÍN","01003015","Nguyễn Tấn Ken","Mô phỏng hệ thống băng tải vận chuyển sản phẩm dạng tấm mỏng trên phần mềm Inventer"]
[113,"Khóa 07DHCK","Công nghệ Chế tạo máy","Chế tạo hệ thống băng tải vận chuyển sản phẩm dạng sệt","2003160271","ĐẶNG MINH","TRỰC","01003015","Nguyễn Tấn Ken","Chế tạo, lắp ráp và vận hành thử nghiệm hệ thống băng tải vận chuyển sản phẩm dạng sệt"]
[114,"Khóa 07DHCK","Công nghệ Chế tạo máy","Thiết kế hệ thống sấy và khảo nghiệm chế độ sấy bơ ở nhiệt độ 40 [độ C]","2003160156","LÊ VĂN","HƯỞNG","01003009","Nguyễn Thị Út Hiền","Thiết kế hệ thống sấy và khảo nghiệm chế độ sấy bơ ở nhiệt độ 40 [độ C] để xác định ảnh hưởng của nhiệt độ, độ ẩm theo theo thời gian "]
[115,"Khóa 07DHCK","Công nghệ Chế tạo máy","Thiết kế hệ thống sấy và khảo nghiệm chế độ sấy bơ ở nhiệt độ 45 [độ C]","2003160286","NGUYỄN ĐĂNG","VŨ","01003009","Nguyễn Thị Út Hiền","Thiết kế hệ thống sấy và khảo nghiệm chế độ sấy bơ ở nhiệt độ 45 [độ C] để xác định ảnh hưởng của nhiệt độ, độ ẩm theo theo thời gian "]
[116,"Khóa 07DHCK","Công nghệ Chế tạo máy","Thiết kế hệ thống sấy và khảo nghiệm chế độ sấy bơ ở nhiệt độ 75 [độ C]",2003160285,"VÕ TUẤN","VŨ","01003009","Nguyễn Thị Út Hiền","Thiết kế hệ thống sấy và khảo nghiệm chế độ sấy bơ ở nhiệt độ 75 [độ C] để xác định ảnh hưởng của nhiệt độ, độ ẩm theo theo thời gian "]
[117,"Khóa 07DHCK","Công nghệ Chế tạo máy","Thiết kế hệ thống sấy và khảo nghiệm chế độ sấy bơ ở nhiệt độ 55 [độ C]","2003160290","ĐỖ VĂN","VỸ","01003009","Nguyễn Thị Út Hiền","Thiết kế hệ thống sấy và khảo nghiệm chế độ sấy bơ ở nhiệt độ 55 [độ C] để xác định ảnh hưởng của nhiệt độ, độ ẩm theo theo thời gian "]
[118,"Khóa 07DHCK","Công nghệ Chế tạo máy","Hệ thống lưu kho tự động_Kết cấu khung lưu trữ","2003160155","VŨ SƠN","HƯNG","01003028","Nguyễn Vũ Anh Duy","Hệ thống lưu kho tự động_Kết cấu khung lưu trữ: \nTinh toán thiết kế kết cấu thép của khung, thiết kế các module và chuẩn hóa việc lắp ráp kết cấu thép"]
[119,"Khóa 07DHCK","Công nghệ Chế tạo máy","Hệ thống lưu kho tự động_Động lưc học khung","2003160186","ĐỖ HOÀNG","MINH","01003028","Nguyễn Vũ Anh Duy","Hệ thống lưu kho tự động_Động lưc học khung: Phân tích động lực học của khung, tính toán và mô phỏng trên phần mềm SAP"]
[120,"Khóa 07DHCK","Công nghệ Chế tạo máy","Băng tải tự động chuyển hướng_Kết cấu băng tải","2003160200","DƯ TRỌNG","NGHĨA","01003028","Nguyễn Vũ Anh Duy","Thiết kế kết cấu băng tải xoay: Thiết kế kết cấu thép, con lăn, tang dẫn động "]
[121,"Khóa 07DHCK","Công nghệ Chế tạo máy","Hệ thống lưu kho tự động_Kết cấu Xe nâng chuyển hàng","2003160206","VÕ VĂN","NHẬT","01003028","Nguyễn Vũ Anh Duy","Hệ thống lưu kho tự động_Kết cấu Xe nâng chuyển hàng:\nThiết kế kết cấu thép,\nNguyên lý hoạt động của xe nâng hàng"]
[122,"Khóa 07DHCK","Công nghệ Chế tạo máy","Hệ thống lưu kho tự động_Động học và động lưc học xe nâng","2003160241","NGUYỄN THÀNH","TÂM","01003028","Nguyễn Vũ Anh Duy","Hệ thống lưu kho tự động_Động học và động lưc học xe nâng\nTính toán thiết kế phần tử truyền động và động cơ"]
[123,"Khóa 07DHCK","Công nghệ Chế tạo máy","Băng tải tự động chuyển hướng_Động học và động lực học","2003160249","NGUYỄN TẤN","THÀNH","01003028","Nguyễn Vũ Anh Duy","Thiết kế động học và động lực học băng tải xoay: Tính toán, thiết kế nguyên lý và các thông số động học và động lực học."]
[124,"Khóa 07DHCK","Công nghệ Chế tạo máy","Băng tải tự động chuyển hướng_Điều khiển","2003160072","LÊ MINH","THÀNH","01003028","Nguyễn Vũ Anh Duy","Tính toán thiết kế hệ thống điều khiển băng tải"]
[125,"Khóa 07DHCK","Công nghệ Chế tạo máy","Băng tải tự động chuyển hướng_Bộ phận giám sát ","2003160257","DƯƠNG TRẦN CÔNG","THUẬN","01003028","Nguyễn Vũ Anh Duy","Tinh toán các bộ phận kiểm soát hoạt động và an toàn của băng tải"]
[126,"Khóa 07DHCK","Công nghệ Chế tạo máy","Tổng quan đề tài, lựa chọn phương án thiết kế mô hình, xây dưng sơ đồ nguyên lý thiết bị thiết bị tách hạt ngô","2003160107","PHẠM TUẤN","ANH","01003024","Phạm Hữu Lộc","Lựa chọn phương án thiết kế mô hình, xây dưng sơ đồ nguyên lý thiết bị thiết bị tách hạt ngô"]
[127,"Khóa 07DHCK","Công nghệ Chế tạo máy","Tổng quan đề tài, lựa chọn phương án thiết kế mô hình, xây dưng sơ đồ nguyên lý thiết bị bóc vỏ hạt sen tươi","2003160004","TRẦN CÙ NHẬT","ANH","01003024","Phạm Hữu Lộc"," lựa chọn phương án thiết kế mô hình, xây dưng sơ đồ nguyên lý thiết bị bóc vỏ hạt sen tươi"]
[128,"Khóa 07DHCK","Công nghệ Chế tạo máy","tính toán, thiết kế và chế tạo mô hình thiết bị băng tải sấy bánh phồng","2003160122","CHÂU ÂU","DƯƠNG","01003024","Phạm Hữu Lộc"," thiết kế và chế tạo mô hình thiết bị băng tải sấy bánh phồng"]
[129,"Khóa 07DHCK","Công nghệ Chế tạo máy","Chế tạo, lắp ráp, vận hành chạy thử nghiệm mô hình, tìm ra thông số phù hợp","2003160030","LÊ CHÂU HUY","HOÀNG","01003024","Phạm Hữu Lộc","Chế tạo, lắp ráp, vận hành chạy thử nghiệm mô hình bóc vỏ hạt sen tươi"]
[130,"Khóa 07DHCK","Công nghệ Chế tạo máy","Chế tạo, lắp ráp, vận hành chạy thử nghiệm mô hình, tìm ra thông số phù hợp","2003160172","CAO VĂN","KIÊN","01003024","Phạm Hữu Lộc"," thiết kế và chế tạo mô hình thiết bị băng tải sấy bánh phồng"]
[131,"Khóa 07DHCK","Công nghệ Chế tạo máy","Tổng quan đề tài, lựa chọn phương án thiết kế mô hình, xây dưng sơ đồ nguyên lý thiết bị băng tải sấy bánh phồng","2003160040","LÊ DƯƠNG ANH","KHOA","01003024","Phạm Hữu Lộc","lựa chọn phương án thiết kế mô hình, xây dưng sơ đồ nguyên lý thiết bị băng tải sấy bánh phồng"]
[132,"Khóa 07DHCK","Công nghệ Chế tạo máy","Chế tạo, lắp ráp, vận hành chạy thử nghiệm mô hình, tìm ra thông số phù hợp","2003160179","ĐOÀN VĂN","LONG","01003024","Phạm Hữu Lộc","Chế tạo, lắp ráp, vận hành chạy thử nghiệm mô hình"]
[133,"Khóa 07DHCK","Công nghệ Chế tạo máy","tính toán, thiết kế và chế tạo mô hình thiết bị bóc vỏ hạt sen tươi","2003160048","ĐỖ VĂN","MẠNH","01003024","Phạm Hữu Lộc","thiết kế và chế tạo mô hình thiết bị bóc vỏ hạt sen tươi"]
[134,"Khóa 07DHCK","Công nghệ Chế tạo máy","Tổng quan đề tài, lựa chọn phương án thiết kế mô hình, xây dưng sơ đồ nguyên lý thiết bị tuốt đậu phộng","2003160198","NGUYỄN TRỌNG","NGHĨA","01003024","Phạm Hữu Lộc"," lựa chọn phương án thiết kế mô hình, xây dưng sơ đồ nguyên lý thiết bị tuốt đậu phộng"]
[135,"Khóa 07DHCK","Công nghệ Chế tạo máy","Tính toán, thiết kế và chế tạo mô hình thiết bịthiết bị tách hạt ngô","2003160204","PHAN VĂN","NHÂN","01003024","Phạm Hữu Lộc","thiết kế và chế tạo mô hình thiết bịthiết bị tách hạt ngô"]
[136,"Khóa 07DHCK","Công nghệ Chế tạo máy","tính toán, thiết kế và chế tạo mô hình thiết bị tuốt đậu phộng","2003160223","TRƯƠNG TẤN","PHƯỚC","01003024","Phạm Hữu Lộc","thiết kế và chế tạo mô hình thiết bị tuốt đậu phộng"]
[137,"Khóa 07DHCK","Công nghệ Chế tạo máy","Chế tạo, lắp ráp, vận hành chạy thử nghiệm mô hình, tìm ra thông số phù hợp","2003160098","ĐÀO XUÂN","TÌNH","01003024","Phạm Hữu Lộc","Chế tạo, lắp ráp, vận hành chạy thử nghiệm mô hình"]
[138,"Khóa 07DHCK","Công nghệ Chế tạo máy","tính toán, thiết kế và chế tạo mô hình thiết bị tuốt đậu phộng","2003160250","NGUYỄN THANH","THẢO","01003024","Phạm Hữu Lộc","thiết kế và chế tạo mô hình thiết bị tuốt đậu phộng"]
[139,"Khóa 07DHCK","Công nghệ Chế tạo máy","Tính toán, thiết kế và chế tạo mô hình thiết bị thiết bị tách hạt ngô","2003160264","PHẠM CÔNG","TRÍ","01003024","Phạm Hữu Lộc"," thiết kế và chế tạo mô hình thiết bị thiết bị tách hạt ngô"]
[140,"Khóa 07DHCK","Công nghệ Chế tạo máy","tính toán, thiết kế và chế tạo mô hình thiết bị bóc vỏ hạt sen tươi","2003160287","HUỲNH TUẤN ANH","VŨ","01003024","Phạm Hữu Lộc"," thiết kế và chế tạo mô hình thiết bị bóc vỏ hạt sen tươi"]
[141,"Khóa 07DHCK","Công nghệ Chế tạo máy","Nghiên cứu máy nghiền và ép khô rác thải dùng trong hộ gia đình","2003160235","ĐỖ HỒNG","SƠN","01003005","Phạm Thanh Vương","Nghiên cứu máy nghiền và ép khô rác thải dùng trong hộ gia đình:\n- nguyên lý hoạt động\n- tính toán nguyên lý"]
[142,"Khóa 07DHCK","Công nghệ Chế tạo máy","Thiết kế máy nghiền và ép khô rác thải dùng trong hộ gia đình","2003160233","NGUYỄN VĂN","SƠN","01003005","Phạm Thanh Vương","Thiết kế máy nghiền và ép khô rác thải dùng trong hộ gia đình:\n- thiết kế tính toán hệ truyền động\n- thiết kế tính toán các chi tiết"]
[143,"Khóa 07DHCK","Công nghệ Chế tạo máy","Chế tạo máy nghiền và ép khô rác thải dùng trong hộ gia đình","2003160089","TRẦN NGỌC ANH","TÚ","01003005","Phạm Thanh Vương","Chế tạo máy nghiền và ép khô rác thải dùng trong hộ gia đình:\n- lập qui trình chế tạo các chi tiết máy\n- lập qui trình lắp ráp máy"]
[144,"Khóa 07DHCK","Công nghệ Chế tạo máy","Mô hình hoá chi tiết dạng hộp và phân tích CAE tối ưu cho quá trình thiết kế khuôn ép phun","2003160113","HUỲNH CÔNG","CƯỜNG","01003001","Phan Hoàng Phụng","Thiết kế sản phẩm, mô tả dòng chảy, CAE tối ưu khuôn, xuất kết quả, mô phỏng 3D trên phần mềm"]
[145,"Khóa 07DHCK","Công nghệ Chế tạo máy","Thiết kế kết cấu máy cấp liệu tự động ","2003160123","PHẠM ANH","DUY","01003001","Phan Hoàng Phụng","Tính toán thiết kế kết cấu máy cấp liệu tự động, chọn loại vật liệu, giới hạn đầu vào, khả năng tải. Tính bền kết cấu. Thiết kế bản vẽ kết cấu máy"]
[146,"Khóa 07DHCK","Công nghệ Chế tạo máy","Thiết kế kết cấu máy rung đánh bóng kim loại","2003160126","TRẦN QUANG","DUY","01003001","Phan Hoàng Phụng","Tính toán thiết kế kết cấu máy rung đánh bóng kim loại, chọn loại vật liệu, giới hạn đầu vào, khả năng tải. Tính bền kết cấu. Thiết kế bản vẽ kết cấu máy"]
[147,"Khóa 07DHCK","Công nghệ Chế tạo máy","Thiết kế hệ thống điều khiển máy rung đánh bóng kim loại","2003160129","NGUYỄN HOÀNG","GIA","01003001","Phan Hoàng Phụng","Tính toán thiết kế hệ thống điều khiển máy rung đánh bóng kim loại. Thi công sơ đồ mạch, lắp ráp vận hành sản phẩm theo yêu cầu"]
[148,"Khóa 07DHCK","Công nghệ Chế tạo máy","Chế tạo thân máy rung đánh bóng kim loại","2003160165","LÊ QUANG","KHÁNH","01003001","Phan Hoàng Phụng","Tính toán quy trình công nghệ gia công thân máy của máy đánh bóng rung kim loại. Thi công chế tạo lắp ráp sản phẩm"]
[149,"Khóa 07DHCK","Công nghệ Chế tạo máy","Chế tạo phễu rung đánh bóng kim loại","2003160046","LÊ THANH","LONG","01003001","Phan Hoàng Phụng","Tính toán quy trình công nghệ gia công  phễu rung đánh bóng kim loại, thi công chế tạo lắp ráp sản phẩm"]
[150,"Khóa 07DHCK","Công nghệ Chế tạo máy","Thiết kế hệ thống điều kiển máy cấp liệu tự động ","2003160049","ĐINH NHẬT","MINH","01003001","Phan Hoàng Phụng","Tính toán thiết kế hệ thống điều khiển máy cập liệu tự động. Thi công sơ đồ mạch, lắp ráp vận hành sản phẩm theo yêu cầu"]
[151,"Khóa 07DHCK","Công nghệ Chế tạo máy","Thiết kế khuôn ép phun cho chi tiết dạng nắp","2003160521","TRẦN HOÀI","NAM","01003001","Phan Hoàng Phụng","Tính toán phân tích dòng chảy, tối ưu khuôn, chọn vật liệu, thiết kế các thành phần cơ bản của bộ khuôn ép phun cho chi tiết dạng nắp, mô hình 3D sản phẩm khuôn"]
[152,"Khóa 07DHCK","Công nghệ Chế tạo máy","Mô hình hoá chi tiết dạng hộp và phân tích CAE tối ưu cho quá trình thiết kế khuôn ép phun","2003160214","LÊ THANH","PHÁT","01003001","Phan Hoàng Phụng","Thiết kế sản phẩm, mô tả dòng chảy, CAE tối ưu khuôn, xuất kết quả, mô phỏng 3D trên phần mềm"]
[153,"Khóa 07DHCK","Công nghệ Chế tạo máy","Thiết kế quy trình công nghệ gia công khuôn ép phun cho chi tiết dạng nắp","2003160234","TRƯƠNG TUẤN","SƠN","01003001","Phan Hoàng Phụng","Tính toán thiết kế quy trình công nghệ gia công bộ khuôn ép phun. Chọn vật liệu, tính toán chế độ cắt, xuất bộ bản vẽ lên dung sai yêu cầu kỹ thuật."]
[154,"Khóa 07DHCK","Công nghệ Chế tạo máy","Chế tạo mô hình máy cấp liệu tự động ","2003160240","TRẦN PHAN NHẬT","TÀI","01003001","Phan Hoàng Phụng","Tính toán chế độ cắt, chọn máy, thiết kế đồ gá, vận hành máy công cụ gia công các chi tiết; lắp ghép, vận hành sản phẩm, cải tiến hoạn thiện sản phẩm."]
[155,"Khóa 07DHCK","Công nghệ Chế tạo máy","Thiết kế khuôn ép phun cho chi tiết dạng hộp","2003160262","THÁI VĂN","TOÀN","01003001","Phan Hoàng Phụng","Tính toán phân tích dòng chảy, tối ưu khuôn, chọn vật liệu, thiết kế các thành phần cơ bản của bộ khuôn ép phun cho chi tiết dạng hộp, mô hình 3D sản phẩm khuôn"]
[156,"Khóa 07DHCK","Công nghệ Chế tạo máy","Thiết kế quy trình công nghệ gia công khuôn ép phun cho chi tiết dạng hộp","2003160252","NGUYỄN HỒ MINH","THI","01003001","Phan Hoàng Phụng","Tính toán thiết kế quy trình công nghệ gia công bộ khuôn ép phun. Chọn vật liệu, tính toán chế độ cắt, xuất bộ bản vẽ lên dung sai yêu cầu kỹ thuật."]
[157,"Khóa 07DHCK","Công nghệ Chế tạo máy"," Chế tạo khuôn ép phun cho chi tiết dạng hộp","2003160268","GIANG XUÂN","TRỌNG","01003001","Phan Hoàng Phụng","Lập trình CAD/CAM/CCN gia công chế tạo khuôn, đánh bóng, làm nguội, ép thử sản phẩm, hoàn thiện khuôn khuôn chi tiết dạng hộp"]
[158,"Khóa 07DHCK","Công nghệ Chế tạo máy","Chế tạo khuôn ép phun cho chi tiết dạng nắp","2003160274","TRẦN MẠNH","TRƯỜNG","01003001","Phan Hoàng Phụng","Lập trình CAD/CAM/CNC gia công chế tạo khuôn, đánh bóng, làm nguội, ép thử sản phẩm, hoàn thiện khuôn khuôn chi tiết dạng nắp"]
[159,"Khóa 07DHCK","Công nghệ Chế tạo máy","Tính toán thiết kế hệ thống định lượng cho máy cấp liệu tự động ","2003160288","NGUYỄN THÀNH","VƯƠNG","01003001","Phan Hoàng Phụng","Xác định đầu vào của máy sản phẩm cần định lượng, Tính toán, thiết kế sơ đồ nguyên lý, thiết kế 3D hệ thống định lượng, tạo tập hồ sơ thiết kế"]
[160,"Khóa 07DHCK","Công nghệ Chế tạo máy","Tính toán kết cấu mô hình học cụ Đồ gá chi tiết dạng ống","2003160011","NGUYỄN VĂN","CHIẾN","01003019","Trần Quốc Nhiệm","- Tính toán lực kẹp cần thiết kế cho chi tiết dạng ống.\n- Tính toán đường kính bulong của hệ thống đồ gá\n- Tính toán bền và sai số chế tạo của đồ gá dạng ống"]
[161,"Khóa 07DHCK","Công nghệ Chế tạo máy","Tính toán kết cấu mô hình học cụ “ Đồ gá chi tiết dạng hộp\"","2003160508","VƯƠNG NHẬT","DUY","01003019","Trần Quốc Nhiệm","- Tính toán lực kẹp cần thiết kế cho chi tiết dạng hộp.\n- Tính toán đường kính bulong của hệ thống đồ gá\n- Tính toán bền và sai số chế tạo của đồ gá dạng hộp"]
[162,"Khóa 07DHCK","Công nghệ Chế tạo máy","Thiết kế kết cấu mô hình học cụ “ Đồ gá chi tiết dạng hộp\"","2003160143","LÊ MINH","HIỀN","01003019","Trần Quốc Nhiệm","- Triển khai, lên ý tưởng thiết kế mẫu của đồ gá chi tiết dạng hộp.\n- Thực hiện việc thiết kế đồ gá theo ý tưởng thống nhất.\n- Gửi GVHD xem xét và chỉnh sửa. Thống nhất tiến hành thiết kế"]
[163,"Khóa 07DHCK","Công nghệ Chế tạo máy","Thiết kế kết cấu máy mài dao bào gỗ","2003160158","TRƯƠNG VĂN","HUY","01003019","Trần Quốc Nhiệm","- Triển khai, lên ý tưởng thiết kế mẫu của máy mài dao bào gỗ\n- Thực hiện việc thiết kế máy mài dao bào gỗ theo ý tưởng thống nhất.\n- Gửi GVHD xem xét và chỉnh sửa. Thống nhất tiến hành thiết kế"]
[164,"Khóa 07DHCK","Công nghệ Chế tạo máy","Tính toán động học máy rửa chén hộ gía đình","2003160162","VÕ ĐỨC","KHANH","01003019","Trần Quốc Nhiệm","- Tính toán và chọn động cơ cho máy rửa chén.\n- Tính toán hệ thống phun nước vào hóa chất của máy."]
[165,"Khóa 07DHCK","Công nghệ Chế tạo máy","Thiết kế kết cấu máy rửa chén hộ gía đình","2003160167","NGUYỄN ĐĂNG","KHOA","01003019","Trần Quốc Nhiệm","- Triển khai, lên ý tưởng thiết kế mẫu của máy rửa chén hộ gia đình.\n- Thực hiện việc thiết kế máy rửa chén hộ gia đình theo ý tưởng thống nhất.\n- Gửi GVHD xem xét và chỉnh sửa. Thống nhất tiến hành thiết kế"]
[166,"Khóa 07DHCK","Công nghệ Chế tạo máy","Mô phỏng động máy mài dao bào gỗ","2003160177","TRƯƠNG THỊ MỸ","LINH","01003019","Trần Quốc Nhiệm","- Mô phỏng hiển thị các chi tiết trong hệ thống máy mài dao bào gỗ.\n- Mô phỏng quá trình lắp ráp hệ thống máy mài dao bào gỗ.\n- Mô phỏng tự động tháo lắp và hoạt động của máy mài dao bào gỗ."]
[167,"Khóa 07DHCK","Công nghệ Chế tạo máy","Chế tạo và lắp ráp máy mài dao bào gỗ","2003160178","VŨ ĐÌNH QUANG","LINH","01003019","Trần Quốc Nhiệm","- Dựa vào bản vẽ chi tiết đã thiết kế tiến hành lên kế hoạch chế tạo.\n- Cho ra phôi và chế tạo hoàn thành sản phẩm.\n- Lắp ráp hoàn thiện mô hình máy mài dao bào gỗ."]
[168,"Khóa 07DHCK","Công nghệ Chế tạo máy","Mô phỏng động máy rửa chén hộ gía đình","2003160189","VÕ HOÀNG CAO","MINH","01003019","Trần Quốc Nhiệm","- Mô phỏng hiển thị các chi tiết của máy.\n- Mô phỏng quá trình lắp ráp hệ thống máy.\n- Mô phỏng tự động tháo lắp và hoạt động của máy rửa chén hộ gia đình"]
[169,"Khóa 07DHCK","Công nghệ Chế tạo máy","Thiết kế kết cấu mô hình học cụ Đồ gá chi tiết dạng ống","2003160320","PHẠM VĂN","NAM","01003019","Trần Quốc Nhiệm","- Triển khai, lên ý tưởng thiết kế mẫu của đồ gá chi tiết dạng ống.\n- Thực hiện việc thiết kế đồ gá theo ý tưởng thống nhất.\n- Gửi GVHD xem xét và chỉnh sửa. Thống nhất tiến hành thiết kế"]
[170,"Khóa 07DHCK","Công nghệ Chế tạo máy","Tính toán động học máy mài dao bào gỗ","2003160226","VÕ MINH","QUANG","01003019","Trần Quốc Nhiệm","- Tính toán và chọn động cơ cho máy mài dao bào gỗ.\n- Tính toán hệ thống dao bào và hệ thống kẹp chạt của dao bào."]
[171,"Khóa 07DHCK","Công nghệ Chế tạo máy","Mô phỏng động kết cấu mô hình học cụ “ Đồ gá chi tiết dạng hộp\"","2003160243","LÊ ĐÌNH","TÂN","01003019","Trần Quốc Nhiệm","- Mô phỏng hiển thị các chi tiết trong hệ thống đồ gá.\n- Mô phỏng quá trình lắp ráp hệ thống đồ gá.\n- Mô phỏng tự động tháo lắp và hoạt động của đồ gá chi tiết dạng hộp."]
[172,"Khóa 07DHCK","Công nghệ Chế tạo máy","Chế tạo và lắp ráp máy rửa chén hộ gía đình","2003160079","NGUYỄN QUANG","TÍNH","01003019","Trần Quốc Nhiệm","- Dựa vào bản vẽ chi tiết đã thiết kế tiến hành lên kế hoạch chế tạo.\n- Cho ra phôi và chế tạo hoàn thành sản phẩm.\n- Lắp ráp hoàn thiện mô hình máy rửa chén."]
[173,"Khóa 07DHCK","Công nghệ Chế tạo máy","Tính toán kết cấu mô hình học cụ Đồ gá chi tiết dạng ống","2003160247","PHAN VĂN","THẮNG","01003019","Trần Quốc Nhiệm","- Tính toán lực kẹp cần thiết kế cho chi tiết dạng ống.\n- Tính toán đường kính bulong của hệ thống đồ gá\n- Tính toán bền và sai số chế tạo của đồ gá dạng ống."]
[174,"Khóa 07DHCK","Công nghệ Chế tạo máy","Thiết kế kết cấu mô hình học cụ Đồ gá chi tiết dạng ống","2003160265","NGUYỄN TẤN","TRÍ","01003019","Trần Quốc Nhiệm","- Triển khai, lên ý tưởng thiết kế mẫu của đồ gá chi tiết dạng ống.\n- Thực hiện việc thiết kế đồ gá theo ý tưởng thống nhất.\n- Gửi GVHD xem xét và chỉnh sửa. Thống nhất tiến hành thiết kế"]
[175,"Khóa 07DHCK","Công nghệ Chế tạo máy","Chế tạo và lắp ráp kết cấu mô hình học cụ “ Đồ gá chi tiết dạng hộp\"","2003160267","PHAN MINH","TRIỆU","01003019","Trần Quốc Nhiệm","- Dựa vào bản vẽ chi tiết đã thiết kế tiến hành lên kế hoạch chế tạo.\n- Cho ra phôi và chế tạo hoàn thành sản phẩm.\n- Lắp ráp hoàn thiện mô hình đồ gá chi tiết dạng hộp."]
[176,"Khóa 07DHCK","Công nghệ Chế tạo máy","Thiết kế, chế tạo bộ mẫu hợp kim nhôm dùng đúc khuôn cát - đất sét","2003160164","BÙI ĐÌNH","KHÁNH","01003002","Trịnh Tiến Thọ","Tìm hiểu bộ mẫu, thiết kế mẫu và chế tạo bộ mẫu bằng hợp kim nhôm"]
[177,"Khóa 07DHCK","Công nghệ Chế tạo máy","Thiết kế, chế tạo bộ mẫu hợp kim nhôm dùng đúc khuôn cát - đất sét","2003160168","ĐỖ ĐĂNG","KHOA","01003002","Trịnh Tiến Thọ","Lập bản vẽ thiết kế, lập quy trình công nghệ chế tạo"]
[178,"Khóa 07DHCK","Công nghệ Chế tạo máy","Thiết kế, chế tạo hòm khuôn thép có kích thước 320x240x100 phục vụ đúc khuôn cát - đất sét ","2003160173","DƯƠNG PHÚ","LÂM","01003002","Trịnh Tiến Thọ","Tìm hiểu bộ khuôn, thiết kế bộ hòm khuôn và chế tạo bộ hòm khuôn thép"]
[179,"Khóa 07DHCK","Công nghệ Chế tạo máy","Thiết kế, chế tạo hòm khuôn thép có kích thước 320x240x100 phục vụ đúc khuôn cát - đất sét ","2003160174","NGUYỄN GIA","LẬP","01003002","Trịnh Tiến Thọ","Lập bản vẽ thiết kế, lập quy trình công nghệ chế tạo"]
[180,"Khóa 07DHCK","Công nghệ Chế tạo máy","Tìm hiểu tổng quan và lựa chọn phương án thiết kế cho máy trộn hỗn hợp làm khuôn cát - đất sét, công suất 50Kg/mẻ","2003160042","NGUYỄN DANH HOÀI","LINH","01003002","Trịnh Tiến Thọ","Tìm hiểu về các loại máy trộn, phân tích ưu nhược điểm và lựa chọn phương án thiết kế"]
[181,"Khóa 07DHCK","Công nghệ Chế tạo máy","Tính toán các thông số cơ bản cho máy trộn hỗn hợp làm khuôn cát - đất sét, công suất 50Kg/mẻ","2003160293","LÊ ĐỨC QUANG","MINH","01003002","Trịnh Tiến Thọ","Tính toán buồng trộn, động cơ"]
[182,"Khóa 07DHCK","Công nghệ Chế tạo máy","Thiết kế và chế tạo mô hình máy trộn hỗn hợp làm khuôn cát - đất sét, công suất 50Kg/mẻ","2003160561","Lê Trí","Nghĩa","01003002","Trịnh Tiến Thọ","Lập bản vẽ thiết kế, lập quy trình công nghệ chế tạo"]
[183,"Khóa 07DHCK","Công nghệ Chế tạo máy","Vận hành, thực nghiệm và đánh giá kết quả máy trộn hỗn hợp làm khuôn cát - đất sét, công suất 50Kg/mẻ","2003160212","NGUYỄN CHÁNH","PHẨM","01003002","Trịnh Tiến Thọ","Lập kế hoạch thực nghiệm và đánh giá chất lượng của hỗn hợp"]
[184,"Khóa 07DHCK","Công nghệ Chế tạo máy","Thiết kế bộ cảm biến cho hệ thống cửa thông gió tự động","2003140304","Võ Huỳnh Gia","Bảo","01003008","Võ Kim Hằng","Tính chọn bộ cảm biến phù hợp cho hệ thống cửa thông gió tự động"]
[185,"Khóa 07DHCK","Công nghệ Chế tạo máy","Tính toán thiết kế hệ thống cửa thông gió tự động","2003160282","PHAN MINH","TUẤN","01003008","Võ Kim Hằng","Đưa ra cơ sở thiết kế. Tính toán, thiết kế hệ thống cửa thông gió tự động đóng lại khi gặp trời mưa. "]
[186,"Khóa 07DHCK","Công nghệ Chế tạo máy","Thiết kế được các bản vẽ hệ thống cửa thông gió tự động","2003160256","BÙI TÁ","THUẬN","01003008","Võ Kim Hằng","Lựa chọn thiết bị, bố trí các thiết bị ở vị trí phù hợp trên mô hình, thiết kế bản vẽ lắp đặt cho hệ thống cửa thông gió tự động"]
[187,"Khóa 07DHCK","Công nghệ Chế tạo máy","Chế tạo mô hình hệ thống cửa thông gió tự động","2003160270","LÝ MINH","TRỌNG","01003008","Võ Kim Hằng","Lựa chọn vật liệu, chế tạo mô hình hệ thống cửa thông gió tự động "]
[188,"Khóa 07DHCK","Công nghệ Chế tạo máy","Thiết kế mạch điện cho hệ thống cửa thông gió tự động","2003160273","NGUYỄN HẢI","TRUNG","01003008","Võ Kim Hằng","Lập bản vẽ mạch điện, lắp đặt tủ điện điều khiển cho hệ thống cửa thông gió tự động"]
[189,"Khóa 07DHCK","Công nghệ Chế tạo máy","Lắp đặt hệ thống cửa thông gió tự động","2003160289","HUỲNH HẢI","VƯƠNG","01003008","Võ Kim Hằng","Lắp đặt các thiết bị hệ thống cửa thông gió, tự động đóng cửa khi gặp thời tiết xấu."]
[190,"Khóa 07DHCDT","Công nghệ Kỹ thuật Cơ điện tử","Nghiên cứu máy vô xốp lưới bọc trái cây cho quả lê","2025160070","NGUYỄN MINH","DIỆM","01003016","Đinh Lê Cao Kỳ","Chế tạo cơ cấu vô xốp lưới bọc trái cây cho quả lê"]
[191,"Khóa 07DHCDT","Công nghệ Kỹ thuật Cơ điện tử","Thiết kế máy vô xốp lưới bọc trái cây cho quả lê","2025160076","HUỲNH TƯỜNG","DUY","01003016","Đinh Lê Cao Kỳ","Tính toán cơ cấu vô xốp lưới bọc trái cây cho quả lê"]
[192,"Khóa 07DHCDT","Công nghệ Kỹ thuật Cơ điện tử","Chế tạo máy vô xốp lưới bọc trái cây cho quả lê","2025160117","VÕ ĐĂNG","QUANG","01003016","Đinh Lê Cao Kỳ","Lắp ráp cơ cấu vô xốp lưới bọc trái cây cho quả lê"]
[193,"Khóa 07DHCDT","Công nghệ Kỹ thuật Cơ điện tử","Vận hành máy vô xốp lưới bọc trái cây cho quả lê","2025160045","NGUYỄN THẾ","VINH","01003016","Đinh Lê Cao Kỳ","Vận hành cơ cấu vô xốp lưới bọc trái cây cho quả lê"]
[194,"Khóa 07DHCDT","Công nghệ Kỹ thuật Cơ điện tử","Thiết kế hệ thống đóng hộp táo băng tải tự động","2025160059","NGUYỄN THÁI","BÌNH","01003025","Lê Thể Truyền","Thiết kế dây chuyền đóng hộp cho các quả táo"]
[195,"Khóa 07DHCDT","Công nghệ Kỹ thuật Cơ điện tử","Thiết kế hệ thống cảm biến đóng hộp táo","2025160309","PHẠM MINH","CƯỜNG","01003025","Lê Thể Truyền","Lựa chọn lắp đặt các loại cảm biến phù hợp"]
[196,"Khóa 07DHCDT","Công nghệ Kỹ thuật Cơ điện tử","Thiết kế tay gắp hộp táo","2025160329","PHAN THANH","LÂM","01003025","Lê Thể Truyền","Nghiên kết thiết kế tay gắp quả táo"]
[197,"Khóa 07DHCDT","Công nghệ Kỹ thuật Cơ điện tử","Thiết kế hệ thốngđiều khiển đóng hộp táo  tự động","2025160113","NGUYỄN ĐÌNH","PHÁT","01003025","Lê Thể Truyền","Thiết kế bộ điều khiển khí nén cho robot nhện"]
[198,"Khóa 07DHCDT","Công nghệ Kỹ thuật Cơ điện tử","Thiết kế tay gắp quả táo trong dây chuyền đóng gói","2025160210","BÙI THIÊN","ĐỨC","01003025","Lê Thể Truyền","Thiết kế tay gắp các sản phẩm mềm"]
[199,"Khóa 07DHCDT","Công nghệ Kỹ thuật Cơ điện tử","Thiết kế cánh tay robot gắp quả táo","2025160121","CHÂU NHUỆ","SƠN","01003025","Lê Thể Truyền","Thiết kế cơ khí cánh tay robot"]
[200,"Khóa 07DHCDT","Công nghệ Kỹ thuật Cơ điện tử","Thiết kế bộ điều khiển khí nén robor gắp quả táo","2025160123","PHẠM NGỌC","SƠN","01003025","Lê Thể Truyền","Thiết kế bộ điều khiển khí nén cho robot nhện"]
[201,"Khóa 07DHCDT","Công nghệ Kỹ thuật Cơ điện tử","Thiết kế cơ khí robot gắp quả táo","2025160359","LÊ CHÍ","THÔNG","01003025","Lê Thể Truyền","Thiết kế tay gắp vận hành bằng khí nén"]
[202,"Khóa 07DHCDT","Công nghệ Kỹ thuật Cơ điện tử","Thiết kế máy in 3D thực phẩm","2025160323","NGUYỄN HUY","HOÀNG","01003027","Nguyễn Hữu Thọ","Thiết kế cơ khí, vẽ các bản vẽ 2D và 3D cho máy in thực phẩm, sau đó thực nghiệm chế tạo và đánh giá cải tiến."]
[203,"Khóa 07DHCDT","Công nghệ Kỹ thuật Cơ điện tử","Chế tạo máy in 3D thực phẩm","2025160159","LÊ QUANG","LƯU","01003027","Nguyễn Hữu Thọ","Thiết kế cơ khí, vẽ các bản vẽ 2D và 3D cho máy in thực phẩm, sau đó thực nghiệm chế tạo và đánh giá cải tiến."]
[204,"Khóa 07DHCDT","Công nghệ Kỹ thuật Cơ điện tử","Đánh giá mô hình máy in 3D thực phẩm","2025160104","BÙI NGỌC","MINH","01003027","Nguyễn Hữu Thọ","Thực nghiệm chế tạo mô hình máy in 3D thực phẩm"]
[205,"Khóa 07DHCDT","Công nghệ Kỹ thuật Cơ điện tử","Tìm hiểu nguyên lý và kết cấu thang máy 5 tầng","2025160223","LƯU ĐƯỜNG","MINH","01002021","Nguyễn Lê Thái","Lựa chọn phương án thiết kế mô hình, xây dưng sơ đồ nguyên lý"]
[206,"Khóa 07DHCDT","Công nghệ Kỹ thuật Cơ điện tử","Tìm hiểu động lực học thang máy 5 tầng","2025160179","NGUYỄN KHẢI","MINH","01002021","Nguyễn Lê Thái","Lựa chọn phương án thiết kế, xây dưng mô hình động lực học"]
[207,"Khóa 07DHCDT","Công nghệ Kỹ thuật Cơ điện tử","Thiết kế mô hình thang máy 5 tầng","2025160119","VÕ VĂN","SANG","01002021","Nguyễn Lê Thái","Tính toán, thiết kế chi tiết mô hình"]
[208,"Khóa 07DHCDT","Công nghệ Kỹ thuật Cơ điện tử","Chế tạo mô hình thang máy 5 tầng","2025160134","TRẦN QUANG","TÙNG","01002021","Nguyễn Lê Thái","Gia công các chi tiết, lắp ráp và vận hành mô hình"]
[209,"Khóa 07DHCDT","Công nghệ Kỹ thuật Cơ điện tử","Thiết kế mô hình hệ thống lưu kho tự động","2025160073","NGUYỄN TẤN","DƯƠNG","01003003","Phạm Văn Toàn",{"$f":"D216 & \"\n- Lựa chọn phương pháp thực hiện\n- Thiết kế hệ thống\n- Xây dựng mô hình\n- Viết chương trình điều khiển\"","v":"Thiết kế mô hình hệ thống lưu kho tự động\n- Lựa chọn phương pháp thực hiện\n- Thiết kế hệ thống\n- Xây dựng mô hình\n- Viết chương trình điều khiển"}]
[210,"Khóa 07DHCDT","Công nghệ Kỹ thuật Cơ điện tử","Chế tạo mô hình hệ thống lưu kho tự động","2025160068","TRẦN QUỐC","ĐẠT","01003003","Phạm Văn Toàn",{"$f":"D217 & \"\n- Lựa chọn phương pháp thực hiện\n- Thiết kế hệ thống\n- Xây dựng mô hình\n- Viết chương trình điều khiển\"","v":"Chế tạo mô hình hệ thống lưu kho tự động\n- Lựa chọn phương pháp thực hiện\n- Thiết kế hệ thống\n- Xây dựng mô hình\n- Viết chương trình điều khiển"}]
[211,"Khóa 07DHCDT","Công nghệ Kỹ thuật Cơ điện tử","Thiết kế bộ điều khiển 2 trục cho  hệ thống lưu kho tự động","2025160500","TRẦN LINH","TUẤN","01003003","Phạm Văn Toàn","Thiết kế bộ điều khiển 2 trục cho  hệ thống lưu kho tự động\n- Lựa chọn phương pháp thực hiện\n- Thiết kế hệ thống\n- Xây dựng mô hình\n- Viết chương trình điều khiển"]
[212,"Khóa 07DHCDT","Công nghệ Kỹ thuật Cơ điện tử","Thiết kế bộ gắp phôi cho hệ thống lưu kho tự động","2025160138","NGUYỄN HOÀNG","VINH","01003003","Phạm Văn Toàn","Thiết kế bộ gắp phôi cho hệ thống lưu kho tự động\n- Lựa chọn phương pháp thực hiện\n- Thiết kế hệ thống\n- Xây dựng mô hình\n- Viết chương trình điều khiển"]
[213,"Khóa 07DHCDT","Công nghệ Kỹ thuật Cơ điện tử","Nghiên cứu mô hình kiểm soát lưu lượng tưới","2025160060","NGUYỄN PHƯƠNG","BÌNH","01003016","Đinh Lê Cao Kỳ","Nghiên cứu mô hình kiểm soát lưu lượng tưới\n- Lựa chọn phương pháp thực hiện\n- Thiết kế hệ thống\n- Xây dựng mô hình\n- Viết chương trình điều khiển"]
[214,"Khóa 07DHCDT","Công nghệ Kỹ thuật Cơ điện tử","Thiết kế mô hình kiểm soát lưu lượng tưới","2025160074","NGUYỄN ĐỨC","DUY","01003016","Đinh Lê Cao Kỳ","Thiết kế mô hình kiểm soát lưu lượng tưới\n- Lựa chọn phương pháp thực hiện\n- Thiết kế hệ thống\n- Xây dựng mô hình\n- Viết chương trình điều khiển"]
[215,"Khóa 07DHCDT","Công nghệ Kỹ thuật Cơ điện tử","Chế tạo mô hình kiểm soát lưu lượng tưới","2025160066","NGUYỄN HỮU","ĐĂNG","01003016","Đinh Lê Cao Kỳ","Chế tạo mô hình kiểm soát lưu lượng tưới\n- Lựa chọn phương pháp thực hiện\n- Thiết kế hệ thống\n- Xây dựng mô hình\n- Viết chương trình điều khiển"]
[216,"Khóa 07DHCDT","Công nghệ Kỹ thuật Cơ điện tử","Thiết kế thang máy 4 tầng","2025160220","TRẦN NHẬT","HÀO","01003027","Nguyễn Hữu Thọ","Thiết kế thang máy 4 tầng\n- Lựa chọn phương pháp thực hiện\n- Thiết kế hệ thống\n- Xây dựng mô hình\n- Viết chương trình điều khiển"]
[217,"Khóa 07DHCDT","Công nghệ Kỹ thuật Cơ điện tử","Điều khiển thang máy 4 tầng","2025160169","TRẦN VŨ","KIỆT","01003027","Nguyễn Hữu Thọ","Điều khiển thang máy 4 tầng\n- Lựa chọn phương pháp thực hiện\n- Thiết kế hệ thống\n- Xây dựng mô hình\n- Viết chương trình điều khiển"]
[218,"Khóa 07DHCDT","Công nghệ Kỹ thuật Cơ điện tử","Chế tạo thang máy 4 tầng","2025160181","LÊ PHÁT","TÀI","01003027","Nguyễn Hữu Thọ","Chế tạo thang máy 4 tầng\n- Lựa chọn phương pháp thực hiện\n- Thiết kế hệ thống\n- Xây dựng mô hình\n- Viết chương trình điều khiển"]
[219,"Khóa 07DHCDT","Công nghệ Kỹ thuật Cơ điện tử","Thực nghiệm và đánh giá mô hình thang máy 4 tầng","2025160125","NGUYỄN TUẤN","TÀI","01003027","Nguyễn Hữu Thọ","Thực nghiệm và đánh giá mô hình thang máy 4 tầng\n- Lựa chọn phương pháp thực hiện\n- Thiết kế hệ thống\n- Xây dựng mô hình\n- Viết chương trình điều khiển"]
[220,"Khóa 07DHCDT","Công nghệ Kỹ thuật Cơ điện tử","Tìm hiểu nguyên lý và kết cấu máy chế biến và chiết rót chanh dây","2025160079","NGUYỄN THANH","HẢI","01002021","Nguyễn Lê Thái","Lựa chọn phương án thiết kế mô hình, xây dưng sơ đồ nguyên lý"]
[221,"Khóa 07DHCDT","Công nghệ Kỹ thuật Cơ điện tử","Thiết kế máy chế biến và chiết rót chanh dây","2025160021","TRIỆU CÔNG","HUY","01002021","Nguyễn Lê Thái","Tính toán, thiết kế chi tiết mô hình"]
[222,"Khóa 07DHCDT","Công nghệ Kỹ thuật Cơ điện tử","Chế tạo máy chế biến và chiết rót chanh dây","2025160135","ĐÀO THANH","TÙNG","01002021","Nguyễn Lê Thái","Gia công các chi tiết, lắp ráp và vận hành mô hình"]
[223,"Khóa 07DHCDT","Công nghệ Kỹ thuật Cơ điện tử","Nghiên cứu tổng quan vận hành kho hàng thông minh","2025160165","KIỀU ĐỨC","ĐẠO","01003015","Nguyễn Tấn Ken","Nghiên cứu tổng quan vận hành kho hàng thông minh\n- Lựa chọn phương pháp thực hiện\n- Thiết kế hệ thống\n- Xây dựng mô hình\n- Viết chương trình điều khiển"]
[224,"Khóa 07DHCDT","Công nghệ Kỹ thuật Cơ điện tử","Thiết kế qui trình vận hành kho hàng thông minh","2025160174","TRƯƠNG HOÀNG DUY","KHANH","01003015","Nguyễn Tấn Ken","Thiết kế qui trình vận hành kho hàng thông minh\n- Lựa chọn phương pháp thực hiện\n- Thiết kế hệ thống\n- Xây dựng mô hình\n- Viết chương trình điều khiển"]
[225,"Khóa 07DHCDT","Công nghệ Kỹ thuật Cơ điện tử","Mô phỏng qui trình vận hành kho hàng thông minh","2025160105","NGUYỄN HOÀI","NAM","01003015","Nguyễn Tấn Ken","Mô phỏng qui trình vận hành kho hàng thông minh\n- Lựa chọn phương pháp thực hiện\n- Thiết kế hệ thống\n- Xây dựng mô hình\n- Viết chương trình điều khiển"]
[226,"Khóa 07DHCDT","Công nghệ Kỹ thuật Cơ điện tử","Chế tạo mô hình vận hành kho hàng thông minh","2025160136","HUỲNH THANH","VĂN","01003015","Nguyễn Tấn Ken","Chế tạo mô hình vận hành kho hàng thông minh\n- Lựa chọn phương pháp thực hiện\n- Thiết kế hệ thống\n- Xây dựng mô hình\n- Viết chương trình điều khiển"]
[227,"Khóa 07DHCDT","Công nghệ Kỹ thuật Cơ điện tử","Thiết kế và chế tạo mô hình điều khiển ổn định mực nước trong bồn chứa","2025160319","TRẦN ĐÌNH ĐỨC","HIẾU","01003003","Phạm Văn Toàn","Thiết kế và chế tạo mô hình điều khiển ổn định mực nước trong bồn chứa\n- Lựa chọn phương pháp thực hiện\n- Thiết kế hệ thống\n- Xây dựng mô hình\n- Viết chương trình điều khiển"]
[228,"Khóa 07DHCDT","Công nghệ Kỹ thuật Cơ điện tử","Thiết kế robot delta 2 bậc tự do","2025160156","ĐINH VĂN","TUẤN","01003025","Lê Thể Truyền","Thiết kế chế tạo mô hình robot nhện 2 bậc tự do"]
[229,"Khóa 07DHCDT","Công nghệ Kỹ thuật Cơ điện tử","Thiết kế bộ điều khiển khí nén robor delta 2 bậc tự do","2025160127","NGUYỄN MINH","TRÍ","01003025","Lê Thể Truyền","Thiết kế ngón tay robot nhện"]
[230,"Khóa 07DHCDT","Công nghệ Kỹ thuật Cơ điện tử","Xây dựng phần mềm điều khiển robot Delta 2 bậc tự do","2025160130","TRẦN HỮU","TRƯỜNG","01003025","Lê Thể Truyền","Thiết kế bộ điều khiển khí nén cho robot nhện"]
[231,"Khóa 07DHCDT","Công nghệ Kỹ thuật Cơ điện tử","Xây dựng giải thuật xử lý ảnh nhận diện sản phẩm","2025160171","NGÔ QUỐC","VIỆT","01003025","Lê Thể Truyền","Xây dựng giải thuật nhận diện sản phẩm theo hình dáng hì nh học"]
[232,"Khóa 07DHCDT","Công nghệ Kỹ thuật Cơ điện tử","Nghiên cứu nguyên lý và kết cấu thiết bị lọc nước dùng năng lượng mặt trời","2025160069","NGUYỄN VĂN","DI","01002021","Nguyễn Lê Thái","Lựa chọn phương án thiết kế mô hình, xây dưng sơ đồ nguyên lý"]
[233,"Khóa 07DHCDT","Công nghệ Kỹ thuật Cơ điện tử","Nghiên cứu động học và động lực học thiết bị lọc nước dùng năng lượng mặt trời","2025160075","MAI","DUY","01002021","Nguyễn Lê Thái","Lựa chọn phương án thiết kế, xây dưng mô hình động lực học"]
[234,"Khóa 07DHCDT","Công nghệ Kỹ thuật Cơ điện tử","Thiết kế mô hình lọc nước dùng năng lượng mặt trời","2025160026","NGUYỄN MINH","KHÔI","01002021","Nguyễn Lê Thái","Tính toán, thiết kế chi tiết mô hình"]
[235,"Khóa 07DHCDT","Công nghệ Kỹ thuật Cơ điện tử","Chế tạo mô hình lọc nước dùng năng lượng mặt trời","2025160120","MAI HOÀNG","SƠN","01002021","Nguyễn Lê Thái","Gia công các chi tiết, lắp ráp và vận hành mô hình"]
[236,"Khóa 07DHCDT","Công nghệ Kỹ thuật Cơ điện tử","Nghiên cứu động học robot Delta","2025160056","ĐỖ NGUYỄN CAO","ÂN","01003025","Lê Thể Truyền","Nghiên cứu động học robot nhện"]
[237,"Khóa 07DHCDT","Công nghệ Kỹ thuật Cơ điện tử","Thiết kế mạch điều khiển robot Delta","2025160072","PHẠM TIẾN","DŨNG","01003025","Lê Thể Truyền","Xây dựng phần mềm điều khiển vị trí bộ phận đầu cuối của robot nhện"]
[238,"Khóa 07DHCDT","Công nghệ Kỹ thuật Cơ điện tử","Xây dựng phần mềm điều khiển robot Delta","2025160093","LÊ ĐỨC","HUY","01003025","Lê Thể Truyền",{"$f":"$D$245","v":"Xây dựng phần mềm điều khiển robot Delta"}]
[239,"Khóa 07DHCDT","Công nghệ Kỹ thuật Cơ điện tử","Nghiên cứu qui trình chế tạo tay gắp sản phẩm robot Delta","2025160204","TRẦN VĂN","HUY","01003025","Lê Thể Truyền","Lập qui trình công nghệ gia công và lắp ráp tự động"]
[240,"Khóa 07DHCDT","Công nghệ Kỹ thuật Cơ điện tử","Tìm hiểu nguyên lý và kết cấu máy vặn nắp chai","2025160058","NGUYỄN HẢI","ÂU","01002021","Nguyễn Lê Thái","Lựa chọn phương án thiết kế mô hình, xây dưng sơ đồ nguyên lý"]
[241,"Khóa 07DHCDT","Công nghệ Kỹ thuật Cơ điện tử","Thiết kế mô hình văn nắp chai","2025160046","NGUYỄN VĂN","LONG","01002021","Nguyễn Lê Thái","Tính toán, thiết kế chi tiết mô hình"]
[242,"Khóa 07DHCDT","Công nghệ Kỹ thuật Cơ điện tử","Chế tạo mô hình văn nắp chai","2025160112","PHẠM TẤN","PHÁT","01002021","Nguyễn Lê Thái","Gia công các chi tiết, lắp ráp và vận hành mô hình"]
[243,"Khóa 07DHCDT","Công nghệ Kỹ thuật Cơ điện tử","Tìm hiểu nguyên lý và kết cấu máy chiết rót đóng gói tự động","2025160063","NGUYỄN THÀNH","CHUNG","01002021","Nguyễn Lê Thái","Lựa chọn phương án thiết kế mô hình, xây dưng sơ đồ nguyên lý"]
[244,"Khóa 07DHCDT","Công nghệ Kỹ thuật Cơ điện tử","Tìm hiểu động học và động lực học máy chiết rót đóng gói tự động","2025160015","TRẦN LUƠNG","DUY","01002021","Nguyễn Lê Thái","Lựa chọn phương án thiết kế, xây dưng mô hình động lực học"]
[245,"Khóa 07DHCDT","Công nghệ Kỹ thuật Cơ điện tử","Thiết kế mô hình chiết rót đóng gói tự động","2025160114","NGUYỄN NHỰT ANH","PHI","01002021","Nguyễn Lê Thái","Tính toán, thiết kế chi tiết mô hình"]
[246,"Khóa 07DHCDT","Công nghệ Kỹ thuật Cơ điện tử","Chế tạo mô hình chiết rót đóng gói tự động","2025160118","NGUYỄN ĐỨC ANH","QUYỀN","01002021","Nguyễn Lê Thái","Gia công các chi tiết, lắp ráp và vận hành mô hình"]
[247,"Khóa 07DHCDT","Công nghệ Kỹ thuật Cơ điện tử","Thiết kế chế tạo mobile robot ứng dụng xử lý ảnh.","2025160080","NGUYỄN TRUNG","HẠNH","TG0000027","Đào Thanh Liêm","Xây dựng giải thuật xử lý ảnh nhận diện sản phẩm theo màu sắc"]
[248,"Khóa 07DHCDT","Công nghệ Kỹ thuật Cơ điện tử","Nghiên cứu điều khiển robot di động bám bám theo đối tượng.","2025160318","NGUYỄN QUỐC ANH","HIẾU","TG0000027","Đào Thanh Liêm","Thiết kế giải thuật điều khiển bám đối tượng"]
[249,"Khóa 07DHCDT","Công nghệ Kỹ thuật Cơ điện tử","Thiết kế chế tạo robot di động phát hiện và di chuyển vật cản.","2025160039","LÊ PHẨM","TÂN","TG0000027","Đào Thanh Liêm","Thiết kế  robot di động phát hiện và di chuyển vật cản "]
[250,"Khóa 07DHCDT","Công nghệ Kỹ thuật Cơ điện tử","Ứng dụng điều khiển rmobile robot định vị và gắp đối tượng.","2025160086","LÊ HUY","HOÀNG","TG0000027","Đào Thanh Liêm","Điều khiển vị trí và lực tay gắp sản phẩm"]
[251,"Khóa 07DHCDT","Công nghệ Kỹ thuật Cơ điện tử","Thiết kế và điều khiển hệ thống smart home","2025160099","PHAN HÀ TẤN","LỘC","TG0000027","Đào Thanh Liêm","Thiết kế ngôi nhà thông minh tự động hóa các thiết bị gia dụng trong ngôi nhà"]
[252,"Khóa 07DHCDT","Công nghệ Kỹ thuật Cơ điện tử","Ứng dụng điều khiển không dây trong hệ thống nhà thông minh","2025160350","NGUYỄN TRUNG","TÂM","TG0000027","Đào Thanh Liêm","Xây dựng và phát triển điều khiển không dây trong hệ thống nhà thông minh"]
[253,"Khóa 07DHCDT","Công nghệ Kỹ thuật Cơ điện tử","Ứng dụng IOT trong thiết kế và điều khiển thiết bị gia đình","2025160367","ĐẶNG THANH","TRỰC","TG0000027","Đào Thanh Liêm","Ứng dụng IOT trong thiết kế và điều khiển thiết bị gia đình"]
[254,"Khóa 07DHCDT","Công nghệ Kỹ thuật Cơ điện tử","Thiết kế chế tạo mô hình smarthome bằng thiết bị không dây","2025160006","TRẦN QUANG","CHÍ","TG0000027","Đào Thanh Liêm","Thiết kế chế tạo mô hình smarthome bằng thiết bị không dây"]
[255,"Khóa 07DHCDT","Công nghệ Kỹ thuật Cơ điện tử","Thiết kế chế tạo hệ thống sắp hàng theo màu sắc","2025160071","NGUYỄN QUANG","DỦ","TG0000027","Đào Thanh Liêm","Thiết kế chế tạo hệ thống sắp hàng theo màu sắc"]
[256,"Khóa 07DHCDT","Công nghệ Kỹ thuật Cơ điện tử","Ứng dụng xử lý ảnh trong hệ thống phân loại hàng bằng màu sắc","2025160315","PHẠM HUỲNH","ĐỨC","TG0000027","Đào Thanh Liêm","Ứng dụng xử lý ảnh trong hệ thống phân loại hàng bằng màu sắc"]
[257,"Khóa 07DHCDT","Công nghệ Kỹ thuật Cơ điện tử","Thiết kế chế tạo hệ thống phân loại hàng theo chiều cao ","2025160101","ĐỖ THANH","LONG","TG0000027","Đào Thanh Liêm","Thiết kế chế tạo hệ thống phân loại hàng theo chiều cao "]
[258,"Khóa 07DHCDT","Công nghệ Kỹ thuật Cơ điện tử","Thiết kế mô hình điều khiển ổn định nhiệt độ","2025160107","ĐẶNG VĂN","NGHĨA","01003003","Phạm Văn Toàn",{"$f":"D265 & \"\n- Lựa chọn phương pháp thực hiện\n- Thiết kế hệ thống\n- Xây dựng mô hình\n- Viết chương trình điều khiển\"","v":"Thiết kế mô hình điều khiển ổn định nhiệt độ\n- Lựa chọn phương pháp thực hiện\n- Thiết kế hệ thống\n- Xây dựng mô hình\n- Viết chương trình điều khiển"}]
[259,"Khóa 07DHCDT","Công nghệ Kỹ thuật Cơ điện tử","Thiết kế mô hình điều khiển ổn định tốc độ động cơ DC 24V đa năng","2025160335","VÕ TRUNG","NGHĨA","01003003","Phạm Văn Toàn","Thiết kế mô hình điều khiển ổn định tốc độ động cơ DC 24V đa năng\n- Lựa chọn phương pháp thực hiện\n- Thiết kế hệ thống\n- Xây dựng mô hình\n- Viết chương trình điều khiển"]
[260,"Khóa 07DHCDT","Công nghệ Kỹ thuật Cơ điện tử","Chế tạo mô hình điều khiển ổn định tốc độ động cơ DC 24V đa năng","2025160348","VŨ VĂN NGỌC","SƠN","01003003","Phạm Văn Toàn","Chế tạo mô hình điều khiển ổn định tốc độ động cơ DC 24V đa năng\n- Lựa chọn phương pháp thực hiện\n- Thiết kế hệ thống\n- Xây dựng mô hình\n- Viết chương trình điều khiển"]
[261,"Khóa 07DHCDT","Công nghệ Kỹ thuật Cơ điện tử","Chế tạo mô hình điều khiển ổn định nhiệt độ","2025160057","LÝ ĐỨC","ANH","01003003","Phạm Văn Toàn","Chế tạo mô hình điều khiển ổn định nhiệt độ\n- Lựa chọn phương pháp thực hiện\n- Thiết kế hệ thống\n- Xây dựng mô hình\n- Viết chương trình điều khiển"]
[262,"Khóa 07DHCDT","Công nghệ Kỹ thuật Cơ điện tử","Thiết kế mô hình điều khiển ổn định tốc độ động cơ AC 3 pha đa năng","2025160005","PHẠM HỮU","BỮU","01003003","Phạm Văn Toàn","Thiết kế mô hình điều khiển ổn định tốc độ động cơ AC 3 pha đa năng\n- Lựa chọn phương pháp thực hiện\n- Thiết kế hệ thống\n- Xây dựng mô hình\n- Viết chương trình điều khiển"]
[263,"Khóa 07DHCDT","Công nghệ Kỹ thuật Cơ điện tử","Chế tạo mô hình điều khiển ổn định tốc độ động cơ AC 3 pha đa năng","2025160109","HỒ VĨNH","NGUYÊN","01003003","Phạm Văn Toàn","Chế tạo mô hình điều khiển ổn định tốc độ động cơ AC 3 pha đa năng\n- Lựa chọn phương pháp thực hiện\n- Thiết kế hệ thống\n- Xây dựng mô hình\n- Viết chương trình điều khiển"]
[264,"Khóa 07DHCDT","Công nghệ Kỹ thuật Cơ điện tử","Nghiên cứu tổng quan qui trình vận hành bãi đậu xe ôtô thông minh","2025160007","PHẠM TẤN","CƯỜNG","01003015","Nguyễn Tấn Ken","Nghiên cứu tổng quan qui trình vận hành bãi đậu xe ôtô thông minh\n- Lựa chọn phương pháp thực hiện\n- Thiết kế hệ thống\n- Xây dựng mô hình\n- Viết chương trình điều khiển"]
[265,"Khóa 07DHCDT","Công nghệ Kỹ thuật Cơ điện tử","Thiết kế qui trình vận hành bãi đậu xe ôtô thông minh","2025160089","NGUYỄN ĐĂNG","HÙNG","01003015","Nguyễn Tấn Ken","Thiết kế qui trình vận hành bãi đậu xe ôtô thông minh\n- Lựa chọn phương pháp thực hiện\n- Thiết kế hệ thống\n- Xây dựng mô hình\n- Viết chương trình điều khiển"]
[266,"Khóa 07DHCDT","Công nghệ Kỹ thuật Cơ điện tử","Mô phỏng qui trình vận hành bãi đậu xe ôtô thông minh trên phần mềm","2025160100","ĐINH ĐỨC","LỘC","01003015","Nguyễn Tấn Ken","Mô phỏng qui trình vận hành bãi đậu xe ôtô thông minh trên phần mềm\n- Lựa chọn phương pháp thực hiện\n- Thiết kế hệ thống\n- Xây dựng mô hình\n- Viết chương trình điều khiển"]
[267,"Khóa 07DHCDT","Công nghệ Kỹ thuật Cơ điện tử","Chế tạo mô hình bãi đậu xe ôtô thông minh","2025160110","ĐỖ LƯU BẢO","NHÂN","01003015","Nguyễn Tấn Ken","Chế tạo mô hình bãi đậu xe ôtô thông minh\n- Lựa chọn phương pháp thực hiện\n- Thiết kế hệ thống\n- Xây dựng mô hình\n- Viết chương trình điều khiển"]
[268,"Khóa 07DHCDT","Công nghệ Kỹ thuật Cơ điện tử","Thiết kế hệ thống bãi giữ xe thông minh","2025160305","NGUYỄN","CÔNG","01003015","Phạm Văn Toàn","Thiết kế hệ thống bãi giữ xe thông minh\n- Lựa chọn phương pháp thực hiện\n- Thiết kế hệ thống\n- Xây dựng mô hình\n- Viết chương trình điều khiển"]
[269,"Khóa 07DHCDT","Công nghệ Kỹ thuật Cơ điện tử","Chế tạo mô hình hệ thống bãi giữ xe thông minh","2025160328","LÊ QUANG","HUY","01003015","Phạm Văn Toàn","Chế tạo mô hình hệ thống bãi giữ xe thông minh\n- Lựa chọn phương pháp thực hiện\n- Thiết kế hệ thống\n- Xây dựng mô hình\n- Viết chương trình điều khiển"]
[270,"Khóa 07DHCDT","Công nghệ Kỹ thuật Cơ điện tử","Thiết kế bộ điều khiển tự nhận dạng xe trong bãi xe","2025160337","NGUYỄN NGỌC TRẦN","NGUYÊN","01003015","Phạm Văn Toàn","Thiết kế bộ điều khiển tự nhận dạng xe trong bãi xe\n- Lựa chọn phương pháp thực hiện\n- Thiết kế hệ thống\n- Xây dựng mô hình\n- Viết chương trình điều khiển"]
[271,"Khóa 07DHCDT","Công nghệ Kỹ thuật Cơ điện tử","Thiết kế bộ điều khiển cơ cấu xếpvà lấy xe tự động","2025160373","NGUYỄN LÊ HỒNG","TƯƠI","01003015","Phạm Văn Toàn","Thiết kế bộ điều khiển cơ cấu xếpvà lấy xe tự động\n- Lựa chọn phương pháp thực hiện\n- Thiết kế hệ thống\n- Xây dựng mô hình\n- Viết chương trình điều khiển"]
[272,"Khóa 07DHCDT","Công nghệ Kỹ thuật Cơ điện tử","Thiết kế hệ thống khoan tự động linh hoạt","2025160078","BÙI NGỌC","HẢI","01003015","Phạm Văn Toàn","Thiết kế hệ thống khoan tự động linh hoạt\n- Lựa chọn phương pháp thực hiện\n- Thiết kế hệ thống\n- Xây dựng mô hình\n- Viết chương trình điều khiển"]
[273,"Khóa 07DHCDT","Công nghệ Kỹ thuật Cơ điện tử","Chế tạo hệ thống khoan tự động linh hoạt","2025160141","DƯƠNG THANH","LONG","01003015","Phạm Văn Toàn","Chế tạo hệ thống khoan tự động linh hoạt\n- Lựa chọn phương pháp thực hiện\n- Thiết kế hệ thống\n- Xây dựng mô hình\n- Viết chương trình điều khiển"]
[274,"Khóa 07DHCDT","Công nghệ Kỹ thuật Cơ điện tử","Thiết kế hệ thống đóng nắp và phân loại tự động","2025160154","NGUYỄN CHÍ","THIỆN","01003015","Phạm Văn Toàn","Thiết kế hệ thống đóng nắp và phân loại tự động\n- Lựa chọn phương pháp thực hiện\n- Thiết kế hệ thống\n- Xây dựng mô hình\n- Viết chương trình điều khiển"]
[275,"Khóa 07DHCDT","Công nghệ Kỹ thuật Cơ điện tử","Chế tạo hệ thống đóng nắp và phân loại tự động","2025160129","HOÀNG VĂN","TRUNG","01003015","Phạm Văn Toàn","Chế tạo hệ thống đóng nắp và phân loại tự động\n- Lựa chọn phương pháp thực hiện\n- Thiết kế hệ thống\n- Xây dựng mô hình\n- Viết chương trình điều khiển"]
[276,"Khóa 07DHCDT","Công nghệ Kỹ thuật Cơ điện tử","Thiết kế chế tạo robot di động đa hướng","2025160094","NGUYỄN VIẾT","KHIÊM","TG0000027","Đào Thanh Liêm","Thiết kế chế tạo robot di động đa hướng"]
[277,"Khóa 07DHCDT","Công nghệ Kỹ thuật Cơ điện tử","Ứng dụng điều khiển mobile robot di chuyển linh hoạt","2025160097","LÊ QUỐC","LÀNH","TG0000027","Đào Thanh Liêm","Ứng dụng điều khiển mobile robot di chuyển linh hoạt"]
[278,"Khóa 07DHCDT","Công nghệ Kỹ thuật Cơ điện tử","Ứng dụng không dây trong điều khiển mobile robot đa hướng","2025160103","NGUYỄN ĐÌNH","MINH","TG0000027","Đào Thanh Liêm","Ứng dụng không dây trong điều khiển mobile robot đa hướng"]
[279,"Khóa 07DHCDT","Công nghệ Kỹ thuật Cơ điện tử","Hệ thống cửa sổ gia đình thông minh dùng năng lượng mặt trời","2025160213","HUỲNH ANH","THÁI","TG0000027","Đào Thanh Liêm","Hệ thống cửa sổ gia đình thông minh dùng năng lượng mặt trời"]
[280,"Khóa 07DHCDT","Công nghệ Kỹ thuật Cơ điện tử","Ứng dụng hệ thống năng lượng mặt trời tự xoay điều khiển thiết bị gia đình","2025160162","NGUYỄN THANH","VŨ","TG0000027","Đào Thanh Liêm","Ứng dụng hệ thống năng lượng mặt trời tự xoay điều khiển thiết bị gia đình"]
[281,"Khóa 07DHCDT","Công nghệ Kỹ thuật Cơ điện tử","Máy bán hàng tự động _Nguyên lý và kết cấu máy","2025160002","TRẦN TRIỂN","BÀNG","01003028","Nguyễn Vũ Anh Duy","Máy bán hàng tự động _Nguyên lý và kết cấu máy\nTính toán thiết kế nguyên lý hoạt động của máy\nThiết kế kết cấu của máy"]
[282,"Khóa 07DHCDT","Công nghệ Kỹ thuật Cơ điện tử","Máy bán hàng tự động_Động học và động lực học máy","2025160061","TĂNG KHẮC","CAO","01003028","Nguyễn Vũ Anh Duy","Máy bán hàng tự động_Động học và động lực học máy\nTính toán thiết kế cơ cấu truyền động và động cơ"]
[283,"Khóa 07DHCDT","Công nghệ Kỹ thuật Cơ điện tử","Máy bán hàng tự động_Điều khiển ","2025160067","LÊ QUỐC","ĐẠT","01003028","Nguyễn Vũ Anh Duy","Máy bán hàng tự động_Điều khiển\nTính toán thiết kế bộ điều khiển cho máy"]
[284,"Khóa 07DHCDT","Công nghệ Kỹ thuật Cơ điện tử","Máy bán hàng tự động_Nhận dạng hình ảnh tiền ","2025160082","ĐẶNG MINH","HIỀN","01003028","Nguyễn Vũ Anh Duy","Máy bán hàng tự động_Nhận dạng hình ảnh tiền\nThiết kế giải thuật nhận diện tiền đưa vào máy, phân biệt tiền giả/thật"]
[285,"Khóa 07DHCDT","Công nghệ Kỹ thuật Cơ điện tử","Thiết kế robot 6 chân_nguyên lý và kết cấu","2025160092","NGUYỄN QUANG","HUY","01003028","Nguyễn Vũ Anh Duy","Máy bán hàng tự động_Gia công chế tạo mô hình\nGia công chế tạo mô hình của máy"]
[286,"Khóa 07DHCDT","Công nghệ Kỹ thuật Cơ điện tử","Thiết kế robot 6 chân_động học và động lực học","2025160098","NGUYỄN","LINH","01003028","Nguyễn Vũ Anh Duy","Tính toán, thiết kế nguyên lý hoạt động và hình dạng hình học"]
[287,"Khóa 07DHCDT","Công nghệ Kỹ thuật Cơ điện tử","Thiết kế robot 6 chân_điều khiển ","2025160106","BÙI TIẾN","NAM","01003028","Nguyễn Vũ Anh Duy","Tinh toán, thiết kế giải thuật điều khiển và thực hiện mô hình điều khiển "]

{"sheet":"G.ĐT theo đơn ĐH","index":6,"n_rows":7,"n_cols":10,"rows_kept":7,"cut":false,"hidden":false,"merged":[[0,0,0,6],[1,0,1,6]]}
["CÔNG KHAI THÔNG TIN CHẤT LƯỢNG ĐÀO TẠO THỰC TẾ CỦA CƠ SỞ GIÁO DỤC ĐẠI HỌC\nNăm học 2019 - 2020",null,null,null,null,null,null,null,null,"ïTrở về\nDanh mục"]
["G. Công khai thông tin đào tạo theo đơn đặt hàng của nhà nước, địa phương và doanh nghiệp"]
[]
["Đơn vị:",null,{"$f":"'C.Môn học'!C4","v":"Khoa Công nghệ Cơ khí"}]
["STT","Tên đơn vị đặt hàng đào tạo","Số lượng","Trình độ đào tạo","Chuyên ngành đào tạo","Số lượng học viên","Kết quả đào tạo"]
[1]
[2]

{"sheet":"H.Hội nghị... ","index":7,"n_rows":6,"n_cols":10,"rows_kept":6,"cut":false,"hidden":false,"merged":[[4,3,5,3],[4,4,5,4],[4,0,5,0],[1,0,1,6],[0,0,0,6],[4,5,4,6],[4,1,5,1],[4,2,5,2]]}
["CÔNG KHAI THÔNG TIN CHẤT LƯỢNG ĐÀO TẠO THỰC TẾ CỦA CƠ SỞ GIÁO DỤC ĐẠI HỌC\nNăm học 2019- 2020",null,null,null,null,null,null,null,null,"ïTrở về\nDanh mục"]
["H. Công khai hội nghị, hội thảo khoa học do cơ sở giáo dục tổ chức"]
["Đơn vị:",null,{"$f":"'A.Qui mô'!C4","v":"Khoa Công nghệ Cơ khí"}]
[]
["STT","Tên chủ đề hội nghị, hội thảo khoa học","Phạm vi","Thời gian tổ chức","Địa điểm tổ chức","Số lượng đại biểu tham dự"]
[null,null,null,null,null,"Trong trường","Khách mời"]

{"sheet":"I.NCKH-CGCN","index":8,"n_rows":5,"n_cols":14,"rows_kept":5,"cut":false,"hidden":false,"merged":[[0,0,0,11],[1,0,1,11],[3,0,4,0],[3,1,4,1],[3,2,3,4],[3,5,4,5],[3,6,4,6],[3,7,4,7],[3,8,4,8],[3,9,3,11],[2,2,2,6]]}
["CÔNG KHAI THÔNG TIN CHẤT LƯỢNG ĐÀO TẠO THỰC TẾ CỦA CƠ SỞ GIÁO DỤC ĐẠI HỌC\nNăm học 2019 - 2020",null,null,null,null,null,null,null,null,null,null,null,null,"ïTrở về\nDanh mục"]
["I. Công khai thông tin về các hoạt động nghiên cứu khoa học, chuyển giao công nghệ, sản xuất thử và tư vấn"]
["Đơn vị:",null,{"$f":"'A.Qui mô'!C4","v":"Khoa Công nghệ Cơ khí"}]
["STT","Tên dự án, nhiệm vụ khoa học công nghệ","Chủ nhiệm đề tài và các thành viên",null,null,"Đối tác trong nước và quốc tế","Thời gian thực hiện","Kinh phí thực hiện","Tóm tắt sản phẩm, ứng dụng thực tiễn","Phân loại đề tài\n(đánh dấu x)"]
[null,null,"Mã số CBVC/ MSSV","Họ và tên","Chủ nhiệm\nđề tài (đánh dấu x)",null,null,null,null,"Cấp Nhà nước","Cấp Bộ","Cấp Trường"]

{"sheet":"J.Tạp chí","index":9,"n_rows":6,"n_cols":15,"rows_kept":6,"cut":false,"hidden":false,"merged":[[4,7,5,7],[3,1,5,1],[3,3,5,3],[3,4,5,4],[0,0,0,13],[1,0,1,13],[3,0,5,0],[3,2,5,2],[3,5,3,7],[3,8,5,8],[3,9,3,13],[4,9,4,11],[4,12,5,12],[4,13,5,13],[4,5,5,5],[4,6,5,6]]}
["CÔNG KHAI THÔNG TIN CHẤT LƯỢNG ĐÀO TẠO THỰC TẾ CỦA CƠ SỞ GIÁO DỤC ĐẠI HỌC\nNăm học 2019 - 2020",null,null,null,null,null,null,null,null,null,null,null,null,null,"ïTrở về\nDanh mục"]
["J. Công khai thông tin các bài được đăng tạp chí"]
["Đơn vị:",null,null,{"$f":"'A.Qui mô'!C4","v":"Khoa Công nghệ Cơ khí"}]
["STT","Ngành\n(Nếu có)","Tên bài báo","Lĩnh vực","Tên bài báo/tạp chí","Tác giả chính và các thành viên",null,null,"Tóm tắt bài báo","Phân loại tạp chí (đánh dấu x)"]
[null,null,null,null,null,"Mã số CBVC/ MSSV","Họ và tên","Tác giả chính (đánh dấu x)",null,"Tạp chí KH quốc tế",null,null,"Tạp chí KH cấp Ngành trong nước","Tạp chí/tập san cấp trường"]
[null,null,null,null,null,null,null,null,null,"Danh mục ISI","Danh mục Scopus","Khác"]

{"sheet":"K.Thông tin KNPVCD","index":10,"n_rows":15,"n_cols":9,"rows_kept":15,"cut":false,"hidden":false,"merged":[[0,0,0,6],[1,0,1,6]]}
["CÔNG KHAI THÔNG TIN CHẤT LƯỢNG ĐÀO TẠO THỰC TẾ CỦA CƠ SỞ GIÁO DỤC ĐẠI HỌC \nNăm học 2019 - 2020",null,null,null,null,null,null,null,"ïTrở về\nDanh mục"]
["K. Công khai thông tin về các hoạt động kết nối và phục vụ cộng đồng"]
["Đơn vị:",null,{"$f":"'A.Qui mô'!C4","v":"Khoa Công nghệ Cơ khí"}]
["STT","Tên các hoạt động kết nối và phục vụ cộng đồng","Người chủ trì và các thành viên","Đối tác trong nước và quốc tế","Thời gian thực hiện","Kinh phí thực hiện","Tóm tắt kết quả hoạt động"]
["I","Lớp ngắn hạn"]
[1,"Lớp ngắn hạn Bồi dưỡng kỹ thuật viên cơ khí khóa 03","Hồ Thị Mỹ Nữ","Công ty Esuhai","Tháng 12/2019",4910000,"16 học viên hoàn tất khóa học"]
[2,"Lớp ngắn hạn Bồi dưỡng kỹ thuật viên cơ khí khóa 04","Hồ Thị Mỹ Nữ","Công ty Esuhai","Tháng 12/2019",5404000,"18 học viên hoàn tất khóa học"]
[3,"Lớp ngắn hạn Bồi dưỡng kỹ thuật viên cơ khí khóa 05","Hồ Thị Mỹ Nữ","Công ty Esuhai","Tháng 12/2019",4669000,"15 học viên hoàn tất khóa học"]
["II","Các hoạt động vì cộng đồng của Công đoàn trường:"]
[1,"Hội diễn văn nghệ toàn trường năm 2019","Chủ trì: BCH Công đoàn Trường; Thành viên: Công đoàn viên khoa CNCK",null,"20/10/2019 và 17/11/2020","Tự túc","Đạt giải Khuyến khích Vòng Chung kết Hội diễn văn nghệ HUFI"]
["III","Các hoạt động tình nguyện vì cộng đồng của Đoàn viên, thanh niên trong Trường:"]
[1,"Tổ chức Gala chào Tân sinh viên cho sinh viên khóa 10DH, 19CD","Hồ Thị Mỹ Nữ\nVõ Thị Thu Hiền\nLê Văn Nam","Sinh viên Khoa CNCK","Tháng 9 năm 2019","Khoa tự túc","- Tạo sân chơi bổ ích cho các em tân sinh viên vào trường.\n- Tạo sân chơi bổ ích, lành mạnh cho sinh viên toàn trường. Tổ chức được sân chơi lành mạnh, bổ ích sau những giờ giảng dạy, học tập căng thẳng. Từ đó sẽ tạo ra động lực thi đua dạy tốt, học tập, rèn luyện tốt hơn, đồng thời thông qua các hoạt động thi đua nhằm phát hiện, bồi dưỡng các hạt nhân trong phong trào văn hoá - văn nghệ, làm lực lượng nòng cốt cho động phong trào, giúp sinh viên hiểu rõ hơn về ngành học của mình, cơ hội nghề nghiệp trong tương lai, và được chia sẻ các kinh nghiệm học tập từ các anh chị sinh viên đi trước."]
[2,"Hoạt động bóng chuyền cấp khoa","Võ Thị Thu Hiền\nLê Văn Nam","Sinh viên Khoa CNCK","Tháng 9 năm 2019","Khoa tự túc","20 đội nam cùng tranh tài quyết liệt suốt 2 tháng ròng rã, bất chấp cái nắng mùa hè và những cơn mưa bất chợt. Giải bóng chuyền đã diễn ra thành công ngoài mong đợi, những cái tên đã được xướng lên cùng với nhiều cảm xúc và niềm tự hào. Không thể không nhắc đến nguồn lực cổ động viên nhiệt tình, gần 400 bạn sinh viên có đam mê mãnh liệt với những đường chuyền tốc biến, khiến không khí của mỗi trận đấu đều náo nhiệt. Đội vô địch nam: 07DHCDT2; "]
[3,"Hoạt động Hội trại Liên khoa","Võ Thị Thu Hiền\nPhan Thị Minh Phương\nLê Văn Nam\nNgô Minh Phương","Sinh viên khoa CNCK\nSinh viên khoa TC-KT","Tháng 11 năm 2019","2 khoa tự túc","-\tCa ngợi tinh thần tôn sư trọng đạo, chào mừng ngày nhà giáo Việt Nam 20/11.\n-\tKhơi dậy niềm tự hào dân tộc, tự hào về truyền thống xây dựng, cống hiến và trưởng thành của Đoàn TNCS Hồ Chí Minh trong mỗi cán bộ, đoàn viên, thanh niên. Phát huy vai trò xung kích, tinh thần tình nguyện, sự sáng tạo của tuổi trẻ trong các hoạt động phong trào công tác Đoàn.\n-\tTạo sân chơi lành mạnh, bổ ích cho các đoàn viên, thanh niên cũng như trang bị các kỹ năng công tác Đoàn cho các đoàn viên trong nhà trường. \n-\tThông qua chương trình giáo dục Đoàn viên thanh niên tham gia tích cực các hoạt động do nhà trường cũng như Liên chi Đoàn Khoa tổ chức.\n-\tTạo điều kiện cho Đoàn viên thanh niên có cơ hội giao lưu cùng với bạn bè, qua đó đọng lại trong ký ức mỗi sinh viên một kỷ niệm đẹp của thời sinh viên sôi nổi và đầy nhiệt huyết."]
[4,"Hoạt động Chào mừng Ngày Nhà giáo Việt Nam 20/11","Võ Thị Thu Hiền\nLê Văn Nam","Sinh viên khoa CNCK","Tháng 11 năm 2019","Khoa tự túc","-\tTạo không khí vui tươi, phấn khởi trong sinh viên toàn khoa thiết thực chào mừng ngày Nhà giáo Việt Nam 20/11/2019.\n-\tTạo cơ hội cho sinh viên của khoa được giao lưu, trao đổi kinh nghiệm, học hỏi lẫn nhau giữa các chi đoàn khoa Công nghệ Cơ khí.\n-\tHoạt động “Hội thi văn nghệ”, “Làm thiệp theo chủ đề”, “Làm video clip theo chủ đề” góp phần nâng cao chất lượng giáo dục toàn diện sinh viên. Tạo không khí thi đua sôi nổi hướng về ngày Nhà giáo Việt Nam, tôn vinh nghề dạy học.\n-\tThông qua hoạt động, tạo điều kiện để sinh viên được phát huy năng khiếu, thể hiện khả năng, giáo dục tinh thần đoàn kết, ý thức kỷ luật. Tạo không khí vui tươi, phấn khởi sau những giờ học tập và làm việc căng thẳng.\n-\tNhằm phát hiện những sinh viên có năng khiếu, đồng thời lựa chọn ra những tiết mục xuất sắc nhất để biểu diễn, trình chiếu vào đêm chung kết văn nghệ của trường  ngày 20/11."]

{"sheet":"L.KĐCL CSGD","index":11,"n_rows":19,"n_cols":10,"rows_kept":19,"cut":false,"hidden":false,"merged":[[0,0,0,7],[1,0,1,7],[3,0,4,0],[3,1,4,1],[3,2,4,2],[3,3,4,3],[3,4,4,4],[3,5,4,5],[3,6,3,7]]}
["CÔNG KHAI THÔNG TIN CHẤT LƯỢNG ĐÀO TẠO THỰC TẾ CỦA CƠ SỞ GIÁO DỤC ĐẠI HỌC \nNăm học 2019 - 2020",null,null,null,null,null,null,null,null,"ïTrở về\nDanh mục"]
["L. Công khai thông tin kiểm định cơ sở giáo dục và chương trình giáo dục"]
["Đơn vị:",null,{"$f":"'A.Qui mô'!C4","v":"Khoa Công nghệ Cơ khí"}]
["STT","Tên cơ sở đào tạo/ Chương trình đào tạo","Thời điểm đánh giá ngoài","Kết quả đánh giá/ Công nhận","Nghị quyết của Hội đồng KĐCLGD","Công nhận đạt/ Không đạt chất lượng giáo dục","Giấy chứng nhận/ Công nhận"]
[null,null,null,null,null,null,"Ngày cấp","Giá trị đến"]
[]
[]
[]
[]
[]
[]
[]
[]
[]
[]
[]
[]
[]
[null,null,null," "]

{"sheet":"DSDonvi","index":12,"n_rows":15,"n_cols":1,"rows_kept":15,"cut":false,"hidden":true,"merged":[]}
["Hãy Click vào đây"]
["Khoa Chính trị - Luật"]
["Khoa Công nghệ Cơ khí"]
["Khoa Công nghệ Điện - Điện tử"]
["Khoa Công nghệ Hóa học"]
["Khoa Công nghệ May và Thời trang"]
["Khoa Công nghệ Sinh học"]
["Khoa Công nghệ Thông tin"]
["Khoa Công nghệ Thực phẩm"]
["Khoa Du lịch và Ẩm thực"]
["Khoa Môi trường - Tài nguyên và biến đổi khí hậu"]
["Khoa Ngoại ngữ"]
["Khoa Quản trị kinh doanh"]
["Khoa Tài chính Kế toán"]
["Khoa Thủy sản"]

{"sheet":"ListDLNhap","index":13,"n_rows":2,"n_cols":1,"rows_kept":2,"cut":false,"hidden":true,"merged":[]}
["Danh dau x"]
["x"]